Workbook

Sheet Database (hidden)
B4: Database_Low | AD4: Database_High
A5: 1 | B5: Crop | C5: Lookup Yield | D5: Row | E5: Alfalfa-Old | F5: Alfalfa-New | H5: Soybeans | I5: Edible beans | J5: peas | K5: Clover/Trefoil | L5: fallow | M5: Grass/legume | N5: Grass/Hay | O5: Pasture | P5: Corn | Q5: Wheat | R5: Oats | S5: Potatoes | T5: SugarBeets | U5: Rye | V5: Barley | W5: Buckwheat | X5: Canola | Y5: Millet | Z5: sorghum | AA5: sunflowers | AB5: sweet corn | AC5: vegetables | AD5: Crop | AE5: Lookup Yield | AF5: Row | AG5: Alfalfa-Old | AH5: Alfalfa-New | AJ5: Soybeans | AK5: Edible beans | AL5: peas | AM5: Clover/Trefoil | AN5: Fallow | AO5: Grass/legume | AP5: Grass/Hay | AQ5: Pasture | AR5: Corn | AS5: Wheat | AT5: Oats | AU5: Potatoes | AV5: SugarBeets | AW5: Rye | AX5: Barley | AY5: Buckwheat | AZ5: Canola | BA5: Millet | BB5: sorghum | BC5: sunflowers | BD5: sweet corn | BE5: vegetables
A6: 2
A7: 3
A8: 4 | B8: CORN | C8: 0 | D8: 8 | E8: ='Data Update Form'!$C$7 -> 0 | F8: ='Data Update Form'!$C$9 -> 30 | H8: ='Data Update Form'!$C$11 -> 100 | I8: ='Data Update Form'!$C$13 -> 125 | J8: ='Data Update Form'!$C$13 -> 125 | K8: ='Data Update Form'!$C$15 -> 70 | L8: ='Data Update Form'!$C$15 -> 70 | M8: ='Data Update Form'!$C$15 -> 70 | N8: ='Data Update Form'!$C$15 -> 70 | O8: ='Data Update Form'!$C$15 -> 70 | P8: ='Data Update Form'!$C$17 -> 145 | Q8: ='Data Update Form'!$C$17 -> 145 | R8: ='Data Update Form'!$C$17 -> 145 | S8: ='Data Update Form'!$C$17 -> 145 | T8: ='Data Update Form'!$C$17 -> 145 | U8: ='Data Update Form'!$C$17 -> 145 | V8: ='Data Update Form'!$C$17 -> 145 | W8: ='Data Update Form'!$C$17 -> 145 | X8: ='Data Update Form'!$C$17 -> 145 | Y8: ='Data Update Form'!$C$17 -> 145 | Z8: ='Data Update Form'!$C$17 -> 145 | AA8: ='Data Update Form'!$C$17 -> 145 | AB8: ='Data Update Form'!$C$17 -> 145 | AC8: ='Data Update Form'!$C$17 -> 145 | AD8: CORN | AE8: 0 | AF8: 8 | AG8: ='Data Update Form'!$C$8 -> 0 | AH8: ='Data Update Form'!$C$10 -> 30 | AJ8: ='Data Update Form'!$C$12 -> 100 | AK8: ='Data Update Form'!$C$14 -> 125 | AL8: ='Data Update Form'!$C$14 -> 125 | AM8: ='Data Update Form'!$C$16 -> 70 | AN8: ='Data Update Form'!$C$16 -> 70 | AO8: ='Data Update Form'!$C$16 -> 70 | AP8: ='Data Update Form'!$C$16 -> 70 | AQ8: ='Data Update Form'!$C$16 -> 70 | AR8: ='Data Update Form'!$C$18 -> 145 | AS8: ='Data Update Form'!$C$18 -> 145 | AT8: ='Data Update Form'!$C$18 -> 145 | AU8: ='Data Update Form'!$C$18 -> 145 | AV8: ='Data Update Form'!$C$18 -> 145 | AW8: ='Data Update Form'!$C$18 -> 145 | AX8: ='Data Update Form'!$C$18 -> 145 | AY8: ='Data Update Form'!$C$18 -> 145 | AZ8: ='Data Update Form'!$C$18 -> 145 | BA8: ='Data Update Form'!$C$18 -> 145 | BB8: ='Data Update Form'!$C$18 -> 145 | BC8: ='Data Update Form'!$C$18 -> 145 | BD8: ='Data Update Form'!$C$18 -> 145 | BE8: ='Data Update Form'!$C$18 -> 145
A9: 5 | B9: CORN | C9: 100 | D9: 8 | E9: ='Data Update Form'!$D$7 -> 0 | F9: ='Data Update Form'!$D$9 -> 30 | H9: ='Data Update Form'!$D$11 -> 100 | I9: ='Data Update Form'!$D$13 -> 125 | J9: ='Data Update Form'!$D$13 -> 125 | K9: ='Data Update Form'!$D$15 -> 70 | L9: ='Data Update Form'!$D$15 -> 70 | M9: ='Data Update Form'!$D$15 -> 70 | N9: ='Data Update Form'!$D$15 -> 70 | O9: ='Data Update Form'!$D$15 -> 70 | P9: ='Data Update Form'!$D$17 -> 145 | Q9: ='Data Update Form'!$D$17 -> 145 | R9: ='Data Update Form'!$D$17 -> 145 | S9: ='Data Update Form'!$D$17 -> 145 | T9: ='Data Update Form'!$D$17 -> 145 | U9: ='Data Update Form'!$D$17 -> 145 | V9: ='Data Update Form'!$D$17 -> 145 | W9: ='Data Update Form'!$D$17 -> 145 | X9: ='Data Update Form'!$D$17 -> 145 | Y9: ='Data Update Form'!$D$17 -> 145 | Z9: ='Data Update Form'!$D$17 -> 145 | AA9: ='Data Update Form'!$D$17 -> 145 | AB9: ='Data Update Form'!$D$17 -> 145 | AC9: ='Data Update Form'!$D$17 -> 145 | AD9: CORN | AE9: 100 | AF9: 8 | AG9: ='Data Update Form'!$D$8 -> 0 | AH9: ='Data Update Form'!$D$10 -> 30 | AJ9: ='Data Update Form'!$D$12 -> 100 | AK9: ='Data Update Form'!$D$14 -> 125 | AL9: ='Data Update Form'!$D$14 -> 125 | AM9: ='Data Update Form'!$D$16 -> 70 | AN9: ='Data Update Form'!$D$16 -> 70 | AO9: ='Data Update Form'!$D$16 -> 70 | AP9: ='Data Update Form'!$D$16 -> 70 | AQ9: ='Data Update Form'!$D$16 -> 70 | AR9: ='Data Update Form'!$D$18 -> 145 | AS9: ='Data Update Form'!$D$18 -> 145 | AT9: ='Data Update Form'!$D$18 -> 145 | AU9: ='Data Update Form'!$D$18 -> 145 | AV9: ='Data Update Form'!$D$18 -> 145 | AW9: ='Data Update Form'!$D$18 -> 145 | AX9: ='Data Update Form'!$D$18 -> 145 | AY9: ='Data Update Form'!$D$18 -> 145 | AZ9: ='Data Update Form'!$D$18 -> 145 | BA9: ='Data Update Form'!$D$18 -> 145 | BB9: ='Data Update Form'!$D$18 -> 145 | BC9: ='Data Update Form'!$D$18 -> 145 | BD9: ='Data Update Form'!$D$18 -> 145 | BE9: ='Data Update Form'!$D$18 -> 145
A10: 6 | B10: CORN | C10: 125 | D10: 8 | E10: ='Data Update Form'!$E$7 -> 40 | F10: ='Data Update Form'!$E$9 -> 80 | H10: ='Data Update Form'!$E$11 -> 150 | I10: ='Data Update Form'!$E$13 -> 175 | J10: ='Data Update Form'!$E$13 -> 175 | K10: ='Data Update Form'!$E$15 -> 120 | L10: ='Data Update Form'!$E$15 -> 120 | M10: ='Data Update Form'!$E$15 -> 120 | N10: ='Data Update Form'!$E$15 -> 120 | O10: ='Data Update Form'!$E$15 -> 120 | P10: ='Data Update Form'!$E$17 -> 195 | Q10: ='Data Update Form'!$E$17 -> 195 | R10: ='Data Update Form'!$E$17 -> 195 | S10: ='Data Update Form'!$E$17 -> 195 | T10: ='Data Update Form'!$E$17 -> 195 | U10: ='Data Update Form'!$E$17 -> 195 | V10: ='Data Update Form'!$E$17 -> 195 | W10: ='Data Update Form'!$E$17 -> 195 | X10: ='Data Update Form'!$E$17 -> 195 | Y10: ='Data Update Form'!$E$17 -> 195 | Z10: ='Data Update Form'!$E$17 -> 195 | AA10: ='Data Update Form'!$E$17 -> 195 | AB10: ='Data Update Form'!$E$17 -> 195 | AC10: ='Data Update Form'!$E$17 -> 195 | AD10: CORN | AE10: 125 | AF10: 8 | AG10: ='Data Update Form'!$E$8 -> 40 | AH10: ='Data Update Form'!$E$10 -> 80 | AJ10: ='Data Update Form'!$E$12 -> 150 | AK10: ='Data Update Form'!$E$14 -> 175 | AL10: ='Data Update Form'!$E$14 -> 175 | AM10: ='Data Update Form'!$E$16 -> 120 | AN10: ='Data Update Form'!$E$16 -> 120 | AO10: ='Data Update Form'!$E$16 -> 120 | AP10: ='Data Update Form'!$E$16 -> 120 | AQ10: ='Data Update Form'!$E$16 -> 120 | AR10: ='Data Update Form'!$E$18 -> 195 | AS10: ='Data Update Form'!$E$18 -> 195 | AT10: ='Data Update Form'!$E$18 -> 195 | AU10: ='Data Update Form'!$E$18 -> 195 | AV10: ='Data Update Form'!$E$18 -> 195 | AW10: ='Data Update Form'!$E$18 -> 195 | AX10: ='Data Update Form'!$E$18 -> 195 | AY10: ='Data Update Form'!$E$18 -> 195 | AZ10: ='Data Update Form'!$E$18 -> 195 | BA10: ='Data Update Form'!$E$18 -> 195 | BB10: ='Data Update Form'!$E$18 -> 195 | BC10: ='Data Update Form'!$E$18 -> 195 | BD10: ='Data Update Form'!$E$18 -> 195 | BE10: ='Data Update Form'!$E$18 -> 195
A11: 7 | B11: CORN | C11: 150 | D11: 8 | E11: ='Data Update Form'!$F$7 -> 40 | F11: ='Data Update Form'!$F$9 -> 80 | H11: ='Data Update Form'!$F$11 -> 150 | I11: ='Data Update Form'!$F$13 -> 175 | J11: ='Data Update Form'!$F$13 -> 175 | K11: ='Data Update Form'!$F$15 -> 120 | L11: ='Data Update Form'!$F$15 -> 120 | M11: ='Data Update Form'!$F$15 -> 120 | N11: ='Data Update Form'!$F$15 -> 120 | O11: ='Data Update Form'!$F$15 -> 120 | P11: ='Data Update Form'!$F$17 -> 195 | Q11: ='Data Update Form'!$F$17 -> 195 | R11: ='Data Update Form'!$F$17 -> 195 | S11: ='Data Update Form'!$F$17 -> 195 | T11: ='Data Update Form'!$F$17 -> 195 | U11: ='Data Update Form'!$F$17 -> 195 | V11: ='Data Update Form'!$F$17 -> 195 | W11: ='Data Update Form'!$F$17 -> 195 | X11: ='Data Update Form'!$F$17 -> 195 | Y11: ='Data Update Form'!$F$17 -> 195 | Z11: ='Data Update Form'!$F$17 -> 195 | AA11: ='Data Update Form'!$F$17 -> 195 | AB11: ='Data Update Form'!$F$17 -> 195 | AC11: ='Data Update Form'!$F$17 -> 195 | AD11: CORN | AE11: 150 | AF11: 8 | AG11: ='Data Update Form'!$F$8 -> 40 | AH11: ='Data Update Form'!$F$10 -> 80 | AJ11: ='Data Update Form'!$F$12 -> 150 | AK11: ='Data Update Form'!$F$14 -> 175 | AL11: ='Data Update Form'!$F$14 -> 175 | AM11: ='Data Update Form'!$F$16 -> 120 | AN11: ='Data Update Form'!$F$16 -> 120 | AO11: ='Data Update Form'!$F$16 -> 120 | AP11: ='Data Update Form'!$F$16 -> 120 | AQ11: ='Data Update Form'!$F$16 -> 120 | AR11: ='Data Update Form'!$F$18 -> 195 | AS11: ='Data Update Form'!$F$18 -> 195 | AT11: ='Data Update Form'!$F$18 -> 195 | AU11: ='Data Update Form'!$F$18 -> 195 | AV11: ='Data Update Form'!$F$18 -> 195 | AW11: ='Data Update Form'!$F$18 -> 195 | AX11: ='Data Update Form'!$F$18 -> 195 | AY11: ='Data Update Form'!$F$18 -> 195 | AZ11: ='Data Update Form'!$F$18 -> 195 | BA11: ='Data Update Form'!$F$18 -> 195 | BB11: ='Data Update Form'!$F$18 -> 195 | BC11: ='Data Update Form'!$F$18 -> 195 | BD11: ='Data Update Form'!$F$18 -> 195 | BE11: ='Data Update Form'!$F$18 -> 195
A12: 8 | B12: CORN | C12: 175 | D12: 8 | E12: ='Data Update Form'!$G$7 -> 40 | F12: ='Data Update Form'!$G$9 -> 80 | H12: ='Data Update Form'!$G$11 -> 150 | I12: ='Data Update Form'!$G$13 -> 175 | J12: ='Data Update Form'!$G$13 -> 175 | K12: ='Data Update Form'!$G$15 -> 120 | L12: ='Data Update Form'!$G$15 -> 120 | M12: ='Data Update Form'!$G$15 -> 120 | N12: ='Data Update Form'!$G$15 -> 120 | O12: ='Data Update Form'!$G$15 -> 120 | P12: ='Data Update Form'!$G$17 -> 195 | Q12: ='Data Update Form'!$G$17 -> 195 | R12: ='Data Update Form'!$G$17 -> 195 | S12: ='Data Update Form'!$G$17 -> 195 | T12: ='Data Update Form'!$G$17 -> 195 | U12: ='Data Update Form'!$G$17 -> 195 | V12: ='Data Update Form'!$G$17 -> 195 | W12: ='Data Update Form'!$G$17 -> 195 | X12: ='Data Update Form'!$G$17 -> 195 | Y12: ='Data Update Form'!$G$17 -> 195 | Z12: ='Data Update Form'!$G$17 -> 195 | AA12: ='Data Update Form'!$G$17 -> 195 | AB12: ='Data Update Form'!$G$17 -> 195 | AC12: ='Data Update Form'!$G$17 -> 195 | AD12: CORN | AE12: 175 | AF12: 8 | AG12: ='Data Update Form'!$G$8 -> 40 | AH12: ='Data Update Form'!$G$10 -> 80 | AJ12: ='Data Update Form'!$G$12 -> 150 | AK12: ='Data Update Form'!$G$14 -> 175 | AL12: ='Data Update Form'!$G$14 -> 175 | AM12: ='Data Update Form'!$G$16 -> 120 | AN12: ='Data Update Form'!$G$16 -> 120 | AO12: ='Data Update Form'!$G$16 -> 120 | AP12: ='Data Update Form'!$G$16 -> 120 | AQ12: ='Data Update Form'!$G$16 -> 120 | AR12: ='Data Update Form'!$G$18 -> 195 | AS12: ='Data Update Form'!$G$18 -> 195 | AT12: ='Data Update Form'!$G$18 -> 195 | AU12: ='Data Update Form'!$G$18 -> 195 | AV12: ='Data Update Form'!$G$18 -> 195 | AW12: ='Data Update Form'!$G$18 -> 195 | AX12: ='Data Update Form'!$G$18 -> 195 | AY12: ='Data Update Form'!$G$18 -> 195 | AZ12: ='Data Update Form'!$G$18 -> 195 | BA12: ='Data Update Form'!$G$18 -> 195 | BB12: ='Data Update Form'!$G$18 -> 195 | BC12: ='Data Update Form'!$G$18 -> 195 | BD12: ='Data Update Form'!$G$18 -> 195 | BE12: ='Data Update Form'!$G$18 -> 195
A13: 9 | B13: CORN | C13: 200 | D13: 8 | E13: ='Data Update Form'!$H$7 -> 40 | F13: ='Data Update Form'!$H$9 -> 80 | H13: ='Data Update Form'!$H$11 -> 150 | I13: ='Data Update Form'!$H$13 -> 175 | J13: ='Data Update Form'!$H$13 -> 175 | K13: ='Data Update Form'!$H$15 -> 120 | L13: ='Data Update Form'!$H$15 -> 120 | M13: ='Data Update Form'!$H$15 -> 120 | N13: ='Data Update Form'!$H$15 -> 120 | O13: ='Data Update Form'!$H$15 -> 120 | P13: ='Data Update Form'!$H$17 -> 195 | Q13: ='Data Update Form'!$H$17 -> 195 | R13: ='Data Update Form'!$H$17 -> 195 | S13: ='Data Update Form'!$H$17 -> 195 | T13: ='Data Update Form'!$H$17 -> 195 | U13: ='Data Update Form'!$H$17 -> 195 | V13: ='Data Update Form'!$H$17 -> 195 | W13: ='Data Update Form'!$H$17 -> 195 | X13: ='Data Update Form'!$H$17 -> 195 | Y13: ='Data Update Form'!$H$17 -> 195 | Z13: ='Data Update Form'!$H$17 -> 195 | AA13: ='Data Update Form'!$H$17 -> 195 | AB13: ='Data Update Form'!$H$17 -> 195 | AC13: ='Data Update Form'!$H$17 -> 195 | AD13: CORN | AE13: 200 | AF13: 8 | AG13: ='Data Update Form'!$H$8 -> 40 | AH13: ='Data Update Form'!$H$10 -> 80 | AJ13: ='Data Update Form'!$H$12 -> 150 | AK13: ='Data Update Form'!$H$14 -> 175 | AL13: ='Data Update Form'!$H$14 -> 175 | AM13: ='Data Update Form'!$H$16 -> 120 | AN13: ='Data Update Form'!$H$16 -> 120 | AO13: ='Data Update Form'!$H$16 -> 120 | AP13: ='Data Update Form'!$H$16 -> 120 | AQ13: ='Data Update Form'!$H$16 -> 120 | AR13: ='Data Update Form'!$H$18 -> 195 | AS13: ='Data Update Form'!$H$18 -> 195 | AT13: ='Data Update Form'!$H$18 -> 195 | AU13: ='Data Update Form'!$H$18 -> 195 | AV13: ='Data Update Form'!$H$18 -> 195 | AW13: ='Data Update Form'!$H$18 -> 195 | AX13: ='Data Update Form'!$H$18 -> 195 | AY13: ='Data Update Form'!$H$18 -> 195 | AZ13: ='Data Update Form'!$H$18 -> 195 | BA13: ='Data Update Form'!$H$18 -> 195 | BB13: ='Data Update Form'!$H$18 -> 195 | BC13: ='Data Update Form'!$H$18 -> 195 | BD13: ='Data Update Form'!$H$18 -> 195 | BE13: ='Data Update Form'!$H$18 -> 195
A14: 10
A15: 11 | B15: WHEAT | C15: 0 | D15: 25 | E15: ='Data Update Form'!$C$31 -> 0 | F15: ='Data Update Form'!$C$33 -> 30 | H15: ='Data Update Form'!$C$35 -> 60 | I15: ='Data Update Form'!$C$37 -> 70 | J15: ='Data Update Form'!$C$37 -> 70 | K15: ='Data Update Form'!$C$39 -> 30 | L15: ='Data Update Form'!$C$39 -> 30 | M15: ='Data Update Form'!$C$39 -> 30 | N15: ='Data Update Form'!$C$39 -> 30 | O15: ='Data Update Form'!$C$39 -> 30 | P15: ='Data Update Form'!$C$41 -> 80 | Q15: ='Data Update Form'!$C$41 -> 80 | R15: ='Data Update Form'!$C$41 -> 80 | S15: ='Data Update Form'!$C$41 -> 80 | T15: ='Data Update Form'!$C$41 -> 80 | U15: ='Data Update Form'!$C$41 -> 80 | V15: ='Data Update Form'!$C$41 -> 80 | W15: ='Data Update Form'!$C$41 -> 80 | X15: ='Data Update Form'!$C$41 -> 80 | Y15: ='Data Update Form'!$C$41 -> 80 | Z15: ='Data Update Form'!$C$41 -> 80 | AA15: ='Data Update Form'!$C$41 -> 80 | AB15: ='Data Update Form'!$C$41 -> 80 | AC15: ='Data Update Form'!$C$41 -> 80 | AD15: WHEAT | AE15: 0 | AF15: 25 | AG15: ='Data Update Form'!$C$32 -> 0 | AH15: ='Data Update Form'!$C$34 -> 0 | AJ15: ='Data Update Form'!$C$36 -> 40 | AK15: ='Data Update Form'!$C$38 -> 50 | AL15: ='Data Update Form'!$C$38 -> 50 | AM15: ='Data Update Form'!$C$40 -> 0 | AN15: ='Data Update Form'!$C$40 -> 0 | AO15: ='Data Update Form'!$C$40 -> 0 | AP15: ='Data Update Form'!$C$40 -> 0 | AQ15: ='Data Update Form'!$C$40 -> 0 | AR15: ='Data Update Form'!$C$42 -> 60 | AS15: ='Data Update Form'!$C$42 -> 60 | AT15: ='Data Update Form'!$C$42 -> 60 | AU15: ='Data Update Form'!$C$42 -> 60 | AV15: ='Data Update Form'!$C$42 -> 60 | AW15: ='Data Update Form'!$C$42 -> 60 | AX15: ='Data Update Form'!$C$42 -> 60 | AY15: ='Data Update Form'!$C$42 -> 60 | AZ15: ='Data Update Form'!$C$42 -> 60 | BA15: ='Data Update Form'!$C$42 -> 60 | BB15: ='Data Update Form'!$C$42 -> 60 | BC15: ='Data Update Form'!$C$42 -> 60 | BD15: ='Data Update Form'!$C$42 -> 60 | BE15: ='Data Update Form'!$C$42 -> 60
A16: 12 | B16: WHEAT | C16: 50 | D16: 25 | E16: ='Data Update Form'!$D$31 -> 30 | F16: ='Data Update Form'!$D$33 -> 55 | H16: ='Data Update Form'!$D$35 -> 85 | I16: ='Data Update Form'!$D$37 -> 95 | J16: ='Data Update Form'!$D$37 -> 95 | K16: ='Data Update Form'!$D$39 -> 55 | L16: ='Data Update Form'!$D$39 -> 55 | M16: ='Data Update Form'!$D$39 -> 55 | N16: ='Data Update Form'!$D$39 -> 55 | O16: ='Data Update Form'!$D$39 -> 55 | P16: ='Data Update Form'!$D$41 -> 105 | Q16: ='Data Update Form'!$D$41 -> 105 | R16: ='Data Update Form'!$D$41 -> 105 | S16: ='Data Update Form'!$D$41 -> 105 | T16: ='Data Update Form'!$D$41 -> 105 | U16: ='Data Update Form'!$D$41 -> 105 | V16: ='Data Update Form'!$D$41 -> 105 | W16: ='Data Update Form'!$D$41 -> 105 | X16: ='Data Update Form'!$D$41 -> 105 | Y16: ='Data Update Form'!$D$41 -> 105 | Z16: ='Data Update Form'!$D$41 -> 105 | AA16: ='Data Update Form'!$D$41 -> 105 | AB16: ='Data Update Form'!$D$41 -> 105 | AC16: ='Data Update Form'!$D$41 -> 105 | AD16: WHEAT | AE16: 50 | AF16: 25 | AG16: ='Data Update Form'!$D$32 -> 0 | AH16: ='Data Update Form'!$D$34 -> 35 | AJ16: ='Data Update Form'!$D$36 -> 65 | AK16: ='Data Update Form'!$D$38 -> 75 | AL16: ='Data Update Form'!$D$38 -> 75 | AM16: ='Data Update Form'!$D$40 -> 35 | AN16: ='Data Update Form'!$D$40 -> 35 | AO16: ='Data Update Form'!$D$40 -> 35 | AP16: ='Data Update Form'!$D$40 -> 35 | AQ16: ='Data Update Form'!$D$40 -> 35 | AR16: ='Data Update Form'!$D$42 -> 85 | AS16: ='Data Update Form'!$D$42 -> 85 | AT16: ='Data Update Form'!$D$42 -> 85 | AU16: ='Data Update Form'!$D$42 -> 85 | AV16: ='Data Update Form'!$D$42 -> 85 | AW16: ='Data Update Form'!$D$42 -> 85 | AX16: ='Data Update Form'!$D$42 -> 85 | AY16: ='Data Update Form'!$D$42 -> 85 | AZ16: ='Data Update Form'!$D$42 -> 85 | BA16: ='Data Update Form'!$D$42 -> 85 | BB16: ='Data Update Form'!$D$42 -> 85 | BC16: ='Data Update Form'!$D$42 -> 85 | BD16: ='Data Update Form'!$D$42 -> 85 | BE16: ='Data Update Form'!$D$42 -> 85
A17: 13 | B17: WHEAT | C17: 60 | D17: 25 | E17: ='Data Update Form'!$E$31 -> 55 | F17: ='Data Update Form'!$E$33 -> 80 | H17: ='Data Update Form'!$E$35 -> 110 | I17: ='Data Update Form'!$E$37 -> 120 | J17: ='Data Update Form'!$E$37 -> 120 | K17: ='Data Update Form'!$E$39 -> 80 | L17: ='Data Update Form'!$E$39 -> 80 | M17: ='Data Update Form'!$E$39 -> 80 | N17: ='Data Update Form'!$E$39 -> 80 | O17: ='Data Update Form'!$E$39 -> 80 | P17: ='Data Update Form'!$E$41 -> 130 | Q17: ='Data Update Form'!$E$41 -> 130 | R17: ='Data Update Form'!$E$41 -> 130 | S17: ='Data Update Form'!$E$41 -> 130 | T17: ='Data Update Form'!$E$41 -> 130 | U17: ='Data Update Form'!$E$41 -> 130 | V17: ='Data Update Form'!$E$41 -> 130 | W17: ='Data Update Form'!$E$41 -> 130 | X17: ='Data Update Form'!$E$41 -> 130 | Y17: ='Data Update Form'!$E$41 -> 130 | Z17: ='Data Update Form'!$E$41 -> 130 | AA17: ='Data Update Form'!$E$41 -> 130 | AB17: ='Data Update Form'!$E$41 -> 130 | AC17: ='Data Update Form'!$E$41 -> 130 | AD17: WHEAT | AE17: 60 | AF17: 25 | AG17: ='Data Update Form'!$E$32 -> 35 | AH17: ='Data Update Form'!$E$34 -> 60 | AJ17: ='Data Update Form'!$E$36 -> 90 | AK17: ='Data Update Form'!$E$38 -> 100 | AL17: ='Data Update Form'!$E$38 -> 100 | AM17: ='Data Update Form'!$E$40 -> 60 | AN17: ='Data Update Form'!$E$40 -> 60 | AO17: ='Data Update Form'!$E$40 -> 60 | AP17: ='Data Update Form'!$E$40 -> 60 | AQ17: ='Data Update Form'!$E$40 -> 60 | AR17: ='Data Update Form'!$E$42 -> 110 | AS17: ='Data Update Form'!$E$42 -> 110 | AT17: ='Data Update Form'!$E$42 -> 110 | AU17: ='Data Update Form'!$E$42 -> 110 | AV17: ='Data Update Form'!$E$42 -> 110 | AW17: ='Data Update Form'!$E$42 -> 110 | AX17: ='Data Update Form'!$E$42 -> 110 | AY17: ='Data Update Form'!$E$42 -> 110 | AZ17: ='Data Update Form'!$E$42 -> 110 | BA17: ='Data Update Form'!$E$42 -> 110 | BB17: ='Data Update Form'!$E$42 -> 110 | BC17: ='Data Update Form'!$E$42 -> 110 | BD17: ='Data Update Form'!$E$42 -> 110 | BE17: ='Data Update Form'!$E$42 -> 110
A18: 14 | B18: WHEAT | C18: 70 | D18: 25 | E18: ='Data Update Form'!$F$31 -> 80 | F18: ='Data Update Form'!$F$33 -> 105 | H18: ='Data Update Form'!$F$35 -> 135 | I18: ='Data Update Form'!$F$37 -> 145 | J18: ='Data Update Form'!$F$37 -> 145 | K18: ='Data Update Form'!$F$39 -> 105 | L18: ='Data Update Form'!$F$39 -> 105 | M18: ='Data Update Form'!$F$39 -> 105 | N18: ='Data Update Form'!$F$39 -> 105 | O18: ='Data Update Form'!$F$39 -> 105 | P18: ='Data Update Form'!$F$41 -> 155 | Q18: ='Data Update Form'!$F$41 -> 155 | R18: ='Data Update Form'!$F$41 -> 155 | S18: ='Data Update Form'!$F$41 -> 155 | T18: ='Data Update Form'!$F$41 -> 155 | U18: ='Data Update Form'!$F$41 -> 155 | V18: ='Data Update Form'!$F$41 -> 155 | W18: ='Data Update Form'!$F$41 -> 155 | X18: ='Data Update Form'!$F$41 -> 155 | Y18: ='Data Update Form'!$F$41 -> 155 | Z18: ='Data Update Form'!$F$41 -> 155 | AA18: ='Data Update Form'!$F$41 -> 155 | AB18: ='Data Update Form'!$F$41 -> 155 | AC18: ='Data Update Form'!$F$41 -> 155 | AD18: WHEAT | AE18: 70 | AF18: 25 | AG18: ='Data Update Form'!$F$32 -> 60 | AH18: ='Data Update Form'!$F$34 -> 85 | AJ18: ='Data Update Form'!$F$36 -> 115 | AK18: ='Data Update Form'!$F$38 -> 125 | AL18: ='Data Update Form'!$F$38 -> 125 | AM18: ='Data Update Form'!$F$40 -> 85 | AN18: ='Data Update Form'!$F$40 -> 85 | AO18: ='Data Update Form'!$F$40 -> 85 | AP18: ='Data Update Form'!$F$40 -> 85 | AQ18: ='Data Update Form'!$F$40 -> 85 | AR18: ='Data Update Form'!$F$42 -> 135 | AS18: ='Data Update Form'!$F$42 -> 135 | AT18: ='Data Update Form'!$F$42 -> 135 | AU18: ='Data Update Form'!$F$42 -> 135 | AV18: ='Data Update Form'!$F$42 -> 135 | AW18: ='Data Update Form'!$F$42 -> 135 | AX18: ='Data Update Form'!$F$42 -> 135 | AY18: ='Data Update Form'!$F$42 -> 135 | AZ18: ='Data Update Form'!$F$42 -> 135 | BA18: ='Data Update Form'!$F$42 -> 135 | BB18: ='Data Update Form'!$F$42 -> 135 | BC18: ='Data Update Form'!$F$42 -> 135 | BD18: ='Data Update Form'!$F$42 -> 135 | BE18: ='Data Update Form'!$F$42 -> 135
A19: 15 | B19: WHEAT | C19: 80 | D19: 25 | E19: ='Data Update Form'!$G$31 -> 95 | F19: ='Data Update Form'!$G$33 -> 120 | H19: ='Data Update Form'!$G$35 -> 150 | I19: ='Data Update Form'!$G$37 -> 160 | J19: ='Data Update Form'!$G$37 -> 160 | K19: ='Data Update Form'!$G$39 -> 120 | L19: ='Data Update Form'!$G$39 -> 120 | M19: ='Data Update Form'!$G$39 -> 120 | N19: ='Data Update Form'!$G$39 -> 120 | O19: ='Data Update Form'!$G$39 -> 120 | P19: ='Data Update Form'!$G$41 -> 170 | Q19: ='Data Update Form'!$G$41 -> 170 | R19: ='Data Update Form'!$G$41 -> 170 | S19: ='Data Update Form'!$G$41 -> 170 | T19: ='Data Update Form'!$G$41 -> 170 | U19: ='Data Update Form'!$G$41 -> 170 | V19: ='Data Update Form'!$G$41 -> 170 | W19: ='Data Update Form'!$G$41 -> 170 | X19: ='Data Update Form'!$G$41 -> 170 | Y19: ='Data Update Form'!$G$41 -> 170 | Z19: ='Data Update Form'!$G$41 -> 170 | AA19: ='Data Update Form'!$G$41 -> 170 | AB19: ='Data Update Form'!$G$41 -> 170 | AC19: ='Data Update Form'!$G$41 -> 170 | AD19: WHEAT | AE19: 80 | AF19: 25 | AG19: ='Data Update Form'!$G$32 -> 75 | AH19: ='Data Update Form'!$G$34 -> 100 | AJ19: ='Data Update Form'!$G$36 -> 130 | AK19: ='Data Update Form'!$G$38 -> 140 | AL19: ='Data Update Form'!$G$38 -> 140 | AM19: ='Data Update Form'!$G$40 -> 100 | AN19: ='Data Update Form'!$G$40 -> 100 | AO19: ='Data Update Form'!$G$40 -> 100 | AP19: ='Data Update Form'!$G$40 -> 100 | AQ19: ='Data Update Form'!$G$40 -> 100 | AR19: ='Data Update Form'!$G$42 -> 150 | AS19: ='Data Update Form'!$G$42 -> 150 | AT19: ='Data Update Form'!$G$42 -> 150 | AU19: ='Data Update Form'!$G$42 -> 150 | AV19: ='Data Update Form'!$G$42 -> 150 | AW19: ='Data Update Form'!$G$42 -> 150 | AX19: ='Data Update Form'!$G$42 -> 150 | AY19: ='Data Update Form'!$G$42 -> 150 | AZ19: ='Data Update Form'!$G$42 -> 150 | BA19: ='Data Update Form'!$G$42 -> 150 | BB19: ='Data Update Form'!$G$42 -> 150 | BC19: ='Data Update Form'!$G$42 -> 150 | BD19: ='Data Update Form'!$G$42 -> 150 | BE19: ='Data Update Form'!$G$42 -> 150
A20: 16
A21: 17 | B21: BARLEY | C21: 0 | D21: 4 | E21: ='Data Update Form'!$C$51 -> 0 | F21: ='Data Update Form'!$C$53 -> 30 | H21: ='Data Update Form'!$C$55 -> 30 | I21: ='Data Update Form'!$C$57 -> 40 | J21: ='Data Update Form'!$C$57 -> 40 | K21: ='Data Update Form'!$C$59 -> 0 | L21: ='Data Update Form'!$C$59 -> 0 | M21: ='Data Update Form'!$C$59 -> 0 | N21: ='Data Update Form'!$C$59 -> 0 | O21: ='Data Update Form'!$C$59 -> 0 | P21: ='Data Update Form'!$C$61 -> 50 | Q21: ='Data Update Form'!$C$61 -> 50 | R21: ='Data Update Form'!$C$61 -> 50 | S21: ='Data Update Form'!$C$61 -> 50 | T21: ='Data Update Form'!$C$61 -> 50 | U21: ='Data Update Form'!$C$61 -> 50 | V21: ='Data Update Form'!$C$61 -> 50 | W21: ='Data Update Form'!$C$61 -> 50 | X21: ='Data Update Form'!$C$61 -> 50 | Y21: ='Data Update Form'!$C$61 -> 50 | Z21: ='Data Update Form'!$C$61 -> 50 | AA21: ='Data Update Form'!$C$61 -> 50 | AB21: ='Data Update Form'!$C$61 -> 50 | AC21: ='Data Update Form'!$C$61 -> 50 | AD21: BARLEY | AE21: 0 | AF21: 4 | AG21: ='Data Update Form'!$C$52 -> 0 | AH21: ='Data Update Form'!$C$54 -> 0 | AJ21: ='Data Update Form'!$C$56 -> 0 | AK21: ='Data Update Form'!$C$58 -> 0 | AL21: ='Data Update Form'!$C$58 -> 0 | AM21: ='Data Update Form'!$C$60 -> 0 | AN21: ='Data Update Form'!$C$60 -> 0 | AO21: ='Data Update Form'!$C$60 -> 0 | AP21: ='Data Update Form'!$C$60 -> 0 | AQ21: ='Data Update Form'!$C$60 -> 0 | AR21: ='Data Update Form'!$C$62 -> 30 | AS21: ='Data Update Form'!$C$62 -> 30 | AT21: ='Data Update Form'!$C$62 -> 30 | AU21: ='Data Update Form'!$C$62 -> 30 | AV21: ='Data Update Form'!$C$62 -> 30 | AW21: ='Data Update Form'!$C$62 -> 30 | AX21: ='Data Update Form'!$C$62 -> 30 | AY21: ='Data Update Form'!$C$62 -> 30 | AZ21: ='Data Update Form'!$C$62 -> 30 | BA21: ='Data Update Form'!$C$62 -> 30 | BB21: ='Data Update Form'!$C$62 -> 30 | BC21: ='Data Update Form'!$C$62 -> 30 | BD21: ='Data Update Form'!$C$62 -> 30 | BE21: ='Data Update Form'!$C$62 -> 30
A22: 18 | B22: BARLEY | C22: 50 | D22: 4 | E22: ='Data Update Form'!$D$51 -> 0 | F22: ='Data Update Form'!$D$53 -> 50 | H22: ='Data Update Form'!$D$55 -> 50 | I22: ='Data Update Form'!$D$57 -> 60 | J22: ='Data Update Form'!$D$57 -> 60 | K22: ='Data Update Form'!$D$59 -> 20 | L22: ='Data Update Form'!$D$59 -> 20 | M22: ='Data Update Form'!$D$59 -> 20 | N22: ='Data Update Form'!$D$59 -> 20 | O22: ='Data Update Form'!$D$59 -> 20 | P22: ='Data Update Form'!$D$61 -> 70 | Q22: ='Data Update Form'!$D$61 -> 70 | R22: ='Data Update Form'!$D$61 -> 70 | S22: ='Data Update Form'!$D$61 -> 70 | T22: ='Data Update Form'!$D$61 -> 70 | U22: ='Data Update Form'!$D$61 -> 70 | V22: ='Data Update Form'!$D$61 -> 70 | W22: ='Data Update Form'!$D$61 -> 70 | X22: ='Data Update Form'!$D$61 -> 70 | Y22: ='Data Update Form'!$D$61 -> 70 | Z22: ='Data Update Form'!$D$61 -> 70 | AA22: ='Data Update Form'!$D$61 -> 70 | AB22: ='Data Update Form'!$D$61 -> 70 | AC22: ='Data Update Form'!$D$61 -> 70 | AD22: BARLEY | AE22: 50 | AF22: 4 | AG22: ='Data Update Form'!$D$52 -> 0 | AH22: ='Data Update Form'!$D$54 -> 30 | AJ22: ='Data Update Form'!$D$56 -> 30 | AK22: ='Data Update Form'!$D$58 -> 40 | AL22: ='Data Update Form'!$D$58 -> 40 | AM22: ='Data Update Form'!$D$60 -> 0 | AN22: ='Data Update Form'!$D$60 -> 0 | AO22: ='Data Update Form'!$D$60 -> 0 | AP22: ='Data Update Form'!$D$60 -> 0 | AQ22: ='Data Update Form'!$D$60 -> 0 | AR22: ='Data Update Form'!$D$62 -> 50 | AS22: ='Data Update Form'!$D$62 -> 50 | AT22: ='Data Update Form'!$D$62 -> 50 | AU22: ='Data Update Form'!$D$62 -> 50 | AV22: ='Data Update Form'!$D$62 -> 50 | AW22: ='Data Update Form'!$D$62 -> 50 | AX22: ='Data Update Form'!$D$62 -> 50 | AY22: ='Data Update Form'!$D$62 -> 50 | AZ22: ='Data Update Form'!$D$62 -> 50 | BA22: ='Data Update Form'!$D$62 -> 50 | BB22: ='Data Update Form'!$D$62 -> 50 | BC22: ='Data Update Form'!$D$62 -> 50 | BD22: ='Data Update Form'!$D$62 -> 50 | BE22: ='Data Update Form'!$D$62 -> 50
A23: 19 | B23: BARLEY | C23: 60 | D23: 4 | E23: ='Data Update Form'!$E$51 -> 15 | F23: ='Data Update Form'!$E$53 -> 65 | H23: ='Data Update Form'!$E$55 -> 65 | I23: ='Data Update Form'!$E$57 -> 75 | J23: ='Data Update Form'!$E$57 -> 75 | K23: ='Data Update Form'!$E$59 -> 35 | L23: ='Data Update Form'!$E$59 -> 35 | M23: ='Data Update Form'!$E$59 -> 35 | N23: ='Data Update Form'!$E$59 -> 35 | O23: ='Data Update Form'!$E$59 -> 35 | P23: ='Data Update Form'!$E$61 -> 85 | Q23: ='Data Update Form'!$E$61 -> 85 | R23: ='Data Update Form'!$E$61 -> 85 | S23: ='Data Update Form'!$E$61 -> 85 | T23: ='Data Update Form'!$E$61 -> 85 | U23: ='Data Update Form'!$E$61 -> 85 | V23: ='Data Update Form'!$E$61 -> 85 | W23: ='Data Update Form'!$E$61 -> 85 | X23: ='Data Update Form'!$E$61 -> 85 | Y23: ='Data Update Form'!$E$61 -> 85 | Z23: ='Data Update Form'!$E$61 -> 85 | AA23: ='Data Update Form'!$E$61 -> 85 | AB23: ='Data Update Form'!$E$61 -> 85 | AC23: ='Data Update Form'!$E$61 -> 85 | AD23: BARLEY | AE23: 60 | AF23: 4 | AG23: ='Data Update Form'!$E$52 -> 0 | AH23: ='Data Update Form'!$E$54 -> 45 | AJ23: ='Data Update Form'!$E$56 -> 45 | AK23: ='Data Update Form'!$E$58 -> 55 | AL23: ='Data Update Form'!$E$58 -> 55 | AM23: ='Data Update Form'!$E$60 -> 15 | AN23: ='Data Update Form'!$E$60 -> 15 | AO23: ='Data Update Form'!$E$60 -> 15 | AP23: ='Data Update Form'!$E$60 -> 15 | AQ23: ='Data Update Form'!$E$60 -> 15 | AR23: ='Data Update Form'!$E$62 -> 65 | AS23: ='Data Update Form'!$E$62 -> 65 | AT23: ='Data Update Form'!$E$62 -> 65 | AU23: ='Data Update Form'!$E$62 -> 65 | AV23: ='Data Update Form'!$E$62 -> 65 | AW23: ='Data Update Form'!$E$62 -> 65 | AX23: ='Data Update Form'!$E$62 -> 65 | AY23: ='Data Update Form'!$E$62 -> 65 | AZ23: ='Data Update Form'!$E$62 -> 65 | BA23: ='Data Update Form'!$E$62 -> 65 | BB23: ='Data Update Form'!$E$62 -> 65 | BC23: ='Data Update Form'!$E$62 -> 65 | BD23: ='Data Update Form'!$E$62 -> 65 | BE23: ='Data Update Form'!$E$62 -> 65
A24: 20 | B24: BARLEY | C24: 70 | D24: 4 | E24: ='Data Update Form'!$F$51 -> 30 | F24: ='Data Update Form'!$F$53 -> 80 | H24: ='Data Update Form'!$F$55 -> 80 | I24: ='Data Update Form'!$F$57 -> 90 | J24: ='Data Update Form'!$F$57 -> 90 | K24: ='Data Update Form'!$F$59 -> 50 | L24: ='Data Update Form'!$F$59 -> 50 | M24: ='Data Update Form'!$F$59 -> 50 | N24: ='Data Update Form'!$F$59 -> 50 | O24: ='Data Update Form'!$F$59 -> 50 | P24: ='Data Update Form'!$F$61 -> 100 | Q24: ='Data Update Form'!$F$61 -> 100 | R24: ='Data Update Form'!$F$61 -> 100 | S24: ='Data Update Form'!$F$61 -> 100 | T24: ='Data Update Form'!$F$61 -> 100 | U24: ='Data Update Form'!$F$61 -> 100 | V24: ='Data Update Form'!$F$61 -> 100 | W24: ='Data Update Form'!$F$61 -> 100 | X24: ='Data Update Form'!$F$61 -> 100 | Y24: ='Data Update Form'!$F$61 -> 100 | Z24: ='Data Update Form'!$F$61 -> 100 | AA24: ='Data Update Form'!$F$61 -> 100 | AB24: ='Data Update Form'!$F$61 -> 100 | AC24: ='Data Update Form'!$F$61 -> 100 | AD24: BARLEY | AE24: 70 | AF24: 4 | AG24: ='Data Update Form'!$F$52 -> 10 | AH24: ='Data Update Form'!$F$54 -> 60 | AJ24: ='Data Update Form'!$F$56 -> 60 | AK24: ='Data Update Form'!$F$58 -> 70 | AL24: ='Data Update Form'!$F$58 -> 70 | AM24: ='Data Update Form'!$F$60 -> 30 | AN24: ='Data Update Form'!$F$60 -> 30 | AO24: ='Data Update Form'!$F$60 -> 30 | AP24: ='Data Update Form'!$F$60 -> 30 | AQ24: ='Data Update Form'!$F$60 -> 30 | AR24: ='Data Update Form'!$F$62 -> 80 | AS24: ='Data Update Form'!$F$62 -> 80 | AT24: ='Data Update Form'!$F$62 -> 80 | AU24: ='Data Update Form'!$F$62 -> 80 | AV24: ='Data Update Form'!$F$62 -> 80 | AW24: ='Data Update Form'!$F$62 -> 80 | AX24: ='Data Update Form'!$F$62 -> 80 | AY24: ='Data Update Form'!$F$62 -> 80 | AZ24: ='Data Update Form'!$F$62 -> 80 | BA24: ='Data Update Form'!$F$62 -> 80 | BB24: ='Data Update Form'!$F$62 -> 80 | BC24: ='Data Update Form'!$F$62 -> 80 | BD24: ='Data Update Form'!$F$62 -> 80 | BE24: ='Data Update Form'!$F$62 -> 80
A25: 21 | B25: BARLEY | C25: 80 | D25: 4 | E25: ='Data Update Form'!$G$51 -> 45 | F25: ='Data Update Form'!$G$53 -> 95 | H25: ='Data Update Form'!$G$55 -> 95 | I25: ='Data Update Form'!$G$57 -> 105 | J25: ='Data Update Form'!$G$57 -> 105 | K25: ='Data Update Form'!$G$59 -> 65 | L25: ='Data Update Form'!$G$59 -> 65 | M25: ='Data Update Form'!$G$59 -> 65 | N25: ='Data Update Form'!$G$59 -> 65 | O25: ='Data Update Form'!$G$59 -> 65 | P25: ='Data Update Form'!$G$61 -> 115 | Q25: ='Data Update Form'!$G$61 -> 115 | R25: ='Data Update Form'!$G$61 -> 115 | S25: ='Data Update Form'!$G$61 -> 115 | T25: ='Data Update Form'!$G$61 -> 115 | U25: ='Data Update Form'!$G$61 -> 115 | V25: ='Data Update Form'!$G$61 -> 115 | W25: ='Data Update Form'!$G$61 -> 115 | X25: ='Data Update Form'!$G$61 -> 115 | Y25: ='Data Update Form'!$G$61 -> 115 | Z25: ='Data Update Form'!$G$61 -> 115 | AA25: ='Data Update Form'!$G$61 -> 115 | AB25: ='Data Update Form'!$G$61 -> 115 | AC25: ='Data Update Form'!$G$61 -> 115 | AD25: BARLEY | AE25: 80 | AF25: 4 | AG25: ='Data Update Form'!$G$52 -> 25 | AH25: ='Data Update Form'!$G$54 -> 75 | AJ25: ='Data Update Form'!$G$56 -> 75 | AK25: ='Data Update Form'!$G$58 -> 85 | AL25: ='Data Update Form'!$G$58 -> 85 | AM25: ='Data Update Form'!$G$60 -> 45 | AN25: ='Data Update Form'!$G$60 -> 45 | AO25: ='Data Update Form'!$G$60 -> 45 | AP25: ='Data Update Form'!$G$60 -> 45 | AQ25: ='Data Update Form'!$G$60 -> 45 | AR25: ='Data Update Form'!$G$62 -> 95 | AS25: ='Data Update Form'!$G$62 -> 95 | AT25: ='Data Update Form'!$G$62 -> 95 | AU25: ='Data Update Form'!$G$62 -> 95 | AV25: ='Data Update Form'!$G$62 -> 95 | AW25: ='Data Update Form'!$G$62 -> 95 | AX25: ='Data Update Form'!$G$62 -> 95 | AY25: ='Data Update Form'!$G$62 -> 95 | AZ25: ='Data Update Form'!$G$62 -> 95 | BA25: ='Data Update Form'!$G$62 -> 95 | BB25: ='Data Update Form'!$G$62 -> 95 | BC25: ='Data Update Form'!$G$62 -> 95 | BD25: ='Data Update Form'!$G$62 -> 95 | BE25: ='Data Update Form'!$G$62 -> 95
A26: 22 | B26: BARLEY | C26: 90 | D26: 4 | E26: ='Data Update Form'!$H$51 -> 60 | F26: ='Data Update Form'!$H$53 -> 110 | H26: ='Data Update Form'!$H$55 -> 110 | I26: ='Data Update Form'!$H$57 -> 120 | J26: ='Data Update Form'!$H$57 -> 120 | K26: ='Data Update Form'!$H$59 -> 80 | L26: ='Data Update Form'!$H$59 -> 80 | M26: ='Data Update Form'!$H$59 -> 80 | N26: ='Data Update Form'!$H$59 -> 80 | O26: ='Data Update Form'!$H$59 -> 80 | P26: ='Data Update Form'!$H$61 -> 130 | Q26: ='Data Update Form'!$H$61 -> 130 | R26: ='Data Update Form'!$H$61 -> 130 | S26: ='Data Update Form'!$H$61 -> 130 | T26: ='Data Update Form'!$H$61 -> 130 | U26: ='Data Update Form'!$H$61 -> 130 | V26: ='Data Update Form'!$H$61 -> 130 | W26: ='Data Update Form'!$H$61 -> 130 | X26: ='Data Update Form'!$H$61 -> 130 | Y26: ='Data Update Form'!$H$61 -> 130 | Z26: ='Data Update Form'!$H$61 -> 130 | AA26: ='Data Update Form'!$H$61 -> 130 | AB26: ='Data Update Form'!$H$61 -> 130 | AC26: ='Data Update Form'!$H$61 -> 130 | AD26: BARLEY | AE26: 90 | AF26: 4 | AG26: ='Data Update Form'!$H$52 -> 40 | AH26: ='Data Update Form'!$H$54 -> 90 | AJ26: ='Data Update Form'!$H$56 -> 90 | AK26: ='Data Update Form'!$H$58 -> 100 | AL26: ='Data Update Form'!$H$58 -> 100 | AM26: ='Data Update Form'!$H$60 -> 60 | AN26: ='Data Update Form'!$H$60 -> 60 | AO26: ='Data Update Form'!$H$60 -> 60 | AP26: ='Data Update Form'!$H$60 -> 60 | AQ26: ='Data Update Form'!$H$60 -> 60 | AR26: ='Data Update Form'!$H$62 -> 110 | AS26: ='Data Update Form'!$H$62 -> 110 | AT26: ='Data Update Form'!$H$62 -> 110 | AU26: ='Data Update Form'!$H$62 -> 110 | AV26: ='Data Update Form'!$H$62 -> 110 | AW26: ='Data Update Form'!$H$62 -> 110 | AX26: ='Data Update Form'!$H$62 -> 110 | AY26: ='Data Update Form'!$H$62 -> 110 | AZ26: ='Data Update Form'!$H$62 -> 110 | BA26: ='Data Update Form'!$H$62 -> 110 | BB26: ='Data Update Form'!$H$62 -> 110 | BC26: ='Data Update Form'!$H$62 -> 110 | BD26: ='Data Update Form'!$H$62 -> 110 | BE26: ='Data Update Form'!$H$62 -> 110
A27: 23 | B27: BARLEY | C27: 100 | D27: 4 | E27: ='Data Update Form'!$I$51 -> 75 | F27: ='Data Update Form'!$I$53 -> 125 | H27: ='Data Update Form'!$I$55 -> 125 | I27: ='Data Update Form'!$I$57 -> 135 | J27: ='Data Update Form'!$I$57 -> 135 | K27: ='Data Update Form'!$I$59 -> 95 | L27: ='Data Update Form'!$I$59 -> 95 | M27: ='Data Update Form'!$I$59 -> 95 | N27: ='Data Update Form'!$I$59 -> 95 | O27: ='Data Update Form'!$I$59 -> 95 | P27: ='Data Update Form'!$I$61 -> 145 | Q27: ='Data Update Form'!$I$61 -> 145 | R27: ='Data Update Form'!$I$61 -> 145 | S27: ='Data Update Form'!$I$61 -> 145 | T27: ='Data Update Form'!$I$61 -> 145 | U27: ='Data Update Form'!$I$61 -> 145 | V27: ='Data Update Form'!$I$61 -> 145 | W27: ='Data Update Form'!$I$61 -> 145 | X27: ='Data Update Form'!$I$61 -> 145 | Y27: ='Data Update Form'!$I$61 -> 145 | Z27: ='Data Update Form'!$I$61 -> 145 | AA27: ='Data Update Form'!$I$61 -> 145 | AB27: ='Data Update Form'!$I$61 -> 145 | AC27: ='Data Update Form'!$I$61 -> 145 | AD27: BARLEY | AE27: 100 | AF27: 4 | AG27: ='Data Update Form'!$I$52 -> 55 | AH27: ='Data Update Form'!$I$54 -> 105 | AJ27: ='Data Update Form'!$I$56 -> 105 | AK27: ='Data Update Form'!$I$58 -> 115 | AL27: ='Data Update Form'!$I$58 -> 115 | AM27: ='Data Update Form'!$I$60 -> 75 | AN27: ='Data Update Form'!$I$60 -> 75 | AO27: ='Data Update Form'!$I$60 -> 75 | AP27: ='Data Update Form'!$I$60 -> 75 | AQ27: ='Data Update Form'!$I$60 -> 75 | AR27: ='Data Update Form'!$I$62 -> 125 | AS27: ='Data Update Form'!$I$62 -> 125 | AT27: ='Data Update Form'!$I$62 -> 125 | AU27: ='Data Update Form'!$I$62 -> 125 | AV27: ='Data Update Form'!$I$62 -> 125 | AW27: ='Data Update Form'!$I$62 -> 125 | AX27: ='Data Update Form'!$I$62 -> 125 | AY27: ='Data Update Form'!$I$62 -> 125 | AZ27: ='Data Update Form'!$I$62 -> 125 | BA27: ='Data Update Form'!$I$62 -> 125 | BB27: ='Data Update Form'!$I$62 -> 125 | BC27: ='Data Update Form'!$I$62 -> 125 | BD27: ='Data Update Form'!$I$62 -> 125 | BE27: ='Data Update Form'!$I$62 -> 125
A28: 24
A29: 25 | B29: OATS | C29: 0 | D29: 14 | E29: ='Data Update Form'!$C$73 -> 0 | F29: ='Data Update Form'!$C$75 -> 0 | H29: ='Data Update Form'!$C$77 -> 0 | I29: ='Data Update Form'!$C$79 -> 20 | J29: ='Data Update Form'!$C$79 -> 20 | K29: ='Data Update Form'!$C$81 -> 0 | L29: ='Data Update Form'!$C$81 -> 0 | M29: ='Data Update Form'!$C$81 -> 0 | N29: ='Data Update Form'!$C$81 -> 0 | O29: ='Data Update Form'!$C$81 -> 0 | P29: ='Data Update Form'!$C$83 -> 40 | Q29: ='Data Update Form'!$C$83 -> 40 | R29: ='Data Update Form'!$C$83 -> 40 | S29: ='Data Update Form'!$C$83 -> 40 | T29: ='Data Update Form'!$C$83 -> 40 | U29: ='Data Update Form'!$C$83 -> 40 | V29: ='Data Update Form'!$C$83 -> 40 | W29: ='Data Update Form'!$C$83 -> 40 | X29: ='Data Update Form'!$C$83 -> 40 | Y29: ='Data Update Form'!$C$83 -> 40 | Z29: ='Data Update Form'!$C$83 -> 40 | AA29: ='Data Update Form'!$C$83 -> 40 | AB29: ='Data Update Form'!$C$83 -> 40 | AC29: ='Data Update Form'!$C$83 -> 40 | AD29: OATS | AE29: 0 | AF29: 14 | AG29: ='Data Update Form'!$C$74 -> 0 | AH29: ='Data Update Form'!$C$76 -> 0 | AJ29: ='Data Update Form'!$C$78 -> 0 | AK29: ='Data Update Form'!$C$80 -> 10 | AL29: ='Data Update Form'!$C$80 -> 10 | AM29: ='Data Update Form'!$C$82 -> 0 | AN29: ='Data Update Form'!$C$82 -> 0 | AO29: ='Data Update Form'!$C$82 -> 0 | AP29: ='Data Update Form'!$C$82 -> 0 | AQ29: ='Data Update Form'!$C$82 -> 0 | AR29: ='Data Update Form'!$C$84 -> 30 | AS29: ='Data Update Form'!$C$84 -> 30 | AT29: ='Data Update Form'!$C$84 -> 30 | AU29: ='Data Update Form'!$C$84 -> 30 | AV29: ='Data Update Form'!$C$84 -> 30 | AW29: ='Data Update Form'!$C$84 -> 30 | AX29: ='Data Update Form'!$C$84 -> 30 | AY29: ='Data Update Form'!$C$84 -> 30 | AZ29: ='Data Update Form'!$C$84 -> 30 | BA29: ='Data Update Form'!$C$84 -> 30 | BB29: ='Data Update Form'!$C$84 -> 30 | BC29: ='Data Update Form'!$C$84 -> 30 | BD29: ='Data Update Form'!$C$84 -> 30 | BE29: ='Data Update Form'!$C$84 -> 30
A30: 26 | B30: OATS | C30: 61 | D30: 14 | E30: ='Data Update Form'!$D$73 -> 0 | F30: ='Data Update Form'!$D$75 -> 20 | H30: ='Data Update Form'!$D$77 -> 20 | I30: ='Data Update Form'!$D$79 -> 40 | J30: ='Data Update Form'!$D$79 -> 40 | K30: ='Data Update Form'!$D$81 -> 0 | L30: ='Data Update Form'!$D$81 -> 0 | M30: ='Data Update Form'!$D$81 -> 0 | N30: ='Data Update Form'!$D$81 -> 0 | O30: ='Data Update Form'!$D$81 -> 0 | P30: ='Data Update Form'!$D$83 -> 60 | Q30: ='Data Update Form'!$D$83 -> 60 | R30: ='Data Update Form'!$D$83 -> 60 | S30: ='Data Update Form'!$D$83 -> 60 | T30: ='Data Update Form'!$D$83 -> 60 | U30: ='Data Update Form'!$D$83 -> 60 | V30: ='Data Update Form'!$D$83 -> 60 | W30: ='Data Update Form'!$D$83 -> 60 | X30: ='Data Update Form'!$D$83 -> 60 | Y30: ='Data Update Form'!$D$83 -> 60 | Z30: ='Data Update Form'!$D$83 -> 60 | AA30: ='Data Update Form'!$D$83 -> 60 | AB30: ='Data Update Form'!$D$83 -> 60 | AC30: ='Data Update Form'!$D$83 -> 60 | AD30: OATS | AE30: 61 | AF30: 14 | AG30: ='Data Update Form'!$D$74 -> 0 | AH30: ='Data Update Form'!$D$76 -> 0 | AJ30: ='Data Update Form'!$D$78 -> 0 | AK30: ='Data Update Form'!$D$80 -> 30 | AL30: ='Data Update Form'!$D$80 -> 30 | AM30: ='Data Update Form'!$D$82 -> 0 | AN30: ='Data Update Form'!$D$82 -> 0 | AO30: ='Data Update Form'!$D$82 -> 0 | AP30: ='Data Update Form'!$D$82 -> 0 | AQ30: ='Data Update Form'!$D$82 -> 0 | AR30: ='Data Update Form'!$D$84 -> 50 | AS30: ='Data Update Form'!$D$84 -> 50 | AT30: ='Data Update Form'!$D$84 -> 50 | AU30: ='Data Update Form'!$D$84 -> 50 | AV30: ='Data Update Form'!$D$84 -> 50 | AW30: ='Data Update Form'!$D$84 -> 50 | AX30: ='Data Update Form'!$D$84 -> 50 | AY30: ='Data Update Form'!$D$84 -> 50 | AZ30: ='Data Update Form'!$D$84 -> 50 | BA30: ='Data Update Form'!$D$84 -> 50 | BB30: ='Data Update Form'!$D$84 -> 50 | BC30: ='Data Update Form'!$D$84 -> 50 | BD30: ='Data Update Form'!$D$84 -> 50 | BE30: ='Data Update Form'!$D$84 -> 50
A31: 27 | B31: OATS | C31: 81 | D31: 14 | E31: ='Data Update Form'!$E$73 -> 0 | F31: ='Data Update Form'!$E$75 -> 40 | H31: ='Data Update Form'!$E$77 -> 40 | I31: ='Data Update Form'!$E$79 -> 60 | J31: ='Data Update Form'!$E$79 -> 60 | K31: ='Data Update Form'!$E$81 -> 0 | L31: ='Data Update Form'!$E$81 -> 0 | M31: ='Data Update Form'!$E$81 -> 0 | N31: ='Data Update Form'!$E$81 -> 0 | O31: ='Data Update Form'!$E$81 -> 0 | P31: ='Data Update Form'!$E$83 -> 80 | Q31: ='Data Update Form'!$E$83 -> 80 | R31: ='Data Update Form'!$E$83 -> 80 | S31: ='Data Update Form'!$E$83 -> 80 | T31: ='Data Update Form'!$E$83 -> 80 | U31: ='Data Update Form'!$E$83 -> 80 | V31: ='Data Update Form'!$E$83 -> 80 | W31: ='Data Update Form'!$E$83 -> 80 | X31: ='Data Update Form'!$E$83 -> 80 | Y31: ='Data Update Form'!$E$83 -> 80 | Z31: ='Data Update Form'!$E$83 -> 80 | AA31: ='Data Update Form'!$E$83 -> 80 | AB31: ='Data Update Form'!$E$83 -> 80 | AC31: ='Data Update Form'!$E$83 -> 80 | AD31: OATS | AE31: 81 | AF31: 14 | AG31: ='Data Update Form'!$E$74 -> 0 | AH31: ='Data Update Form'!$E$76 -> 30 | AJ31: ='Data Update Form'!$E$78 -> 30 | AK31: ='Data Update Form'!$E$80 -> 50 | AL31: ='Data Update Form'!$E$80 -> 50 | AM31: ='Data Update Form'!$E$82 -> 0 | AN31: ='Data Update Form'!$E$82 -> 0 | AO31: ='Data Update Form'!$E$82 -> 0 | AP31: ='Data Update Form'!$E$82 -> 0 | AQ31: ='Data Update Form'!$E$82 -> 0 | AR31: ='Data Update Form'!$E$84 -> 70 | AS31: ='Data Update Form'!$E$84 -> 70 | AT31: ='Data Update Form'!$E$84 -> 70 | AU31: ='Data Update Form'!$E$84 -> 70 | AV31: ='Data Update Form'!$E$84 -> 70 | AW31: ='Data Update Form'!$E$84 -> 70 | AX31: ='Data Update Form'!$E$84 -> 70 | AY31: ='Data Update Form'!$E$84 -> 70 | AZ31: ='Data Update Form'!$E$84 -> 70 | BA31: ='Data Update Form'!$E$84 -> 70 | BB31: ='Data Update Form'!$E$84 -> 70 | BC31: ='Data Update Form'!$E$84 -> 70 | BD31: ='Data Update Form'!$E$84 -> 70 | BE31: ='Data Update Form'!$E$84 -> 70
A32: 28 | B32: OATS | C32: 101 | D32: 14 | E32: ='Data Update Form'!$F$73 -> 0 | F32: ='Data Update Form'!$F$75 -> 60 | H32: ='Data Update Form'!$F$77 -> 60 | I32: ='Data Update Form'!$F$79 -> 80 | J32: ='Data Update Form'!$F$79 -> 80 | K32: ='Data Update Form'!$F$81 -> 25 | L32: ='Data Update Form'!$F$81 -> 25 | M32: ='Data Update Form'!$F$81 -> 25 | N32: ='Data Update Form'!$F$81 -> 25 | O32: ='Data Update Form'!$F$81 -> 25 | P32: ='Data Update Form'!$F$83 -> 100 | Q32: ='Data Update Form'!$F$83 -> 100 | R32: ='Data Update Form'!$F$83 -> 100 | S32: ='Data Update Form'!$F$83 -> 100 | T32: ='Data Update Form'!$F$83 -> 100 | U32: ='Data Update Form'!$F$83 -> 100 | V32: ='Data Update Form'!$F$83 -> 100 | W32: ='Data Update Form'!$F$83 -> 100 | X32: ='Data Update Form'!$F$83 -> 100 | Y32: ='Data Update Form'!$F$83 -> 100 | Z32: ='Data Update Form'!$F$83 -> 100 | AA32: ='Data Update Form'!$F$83 -> 100 | AB32: ='Data Update Form'!$F$83 -> 100 | AC32: ='Data Update Form'!$F$83 -> 100 | AD32: OATS | AE32: 101 | AF32: 14 | AG32: ='Data Update Form'!$F$74 -> 0 | AH32: ='Data Update Form'!$F$76 -> 50 | AJ32: ='Data Update Form'!$F$78 -> 50 | AK32: ='Data Update Form'!$F$80 -> 70 | AL32: ='Data Update Form'!$F$80 -> 70 | AM32: ='Data Update Form'!$F$82 -> 15 | AN32: ='Data Update Form'!$F$82 -> 15 | AO32: ='Data Update Form'!$F$82 -> 15 | AP32: ='Data Update Form'!$F$82 -> 15 | AQ32: ='Data Update Form'!$F$82 -> 15 | AR32: ='Data Update Form'!$F$84 -> 90 | AS32: ='Data Update Form'!$F$84 -> 90 | AT32: ='Data Update Form'!$F$84 -> 90 | AU32: ='Data Update Form'!$F$84 -> 90 | AV32: ='Data Update Form'!$F$84 -> 90 | AW32: ='Data Update Form'!$F$84 -> 90 | AX32: ='Data Update Form'!$F$84 -> 90 | AY32: ='Data Update Form'!$F$84 -> 90 | AZ32: ='Data Update Form'!$F$84 -> 90 | BA32: ='Data Update Form'!$F$84 -> 90 | BB32: ='Data Update Form'!$F$84 -> 90 | BC32: ='Data Update Form'!$F$84 -> 90 | BD32: ='Data Update Form'!$F$84 -> 90 | BE32: ='Data Update Form'!$F$84 -> 90
A33: 29 | B33: OATS | C33: 121 | D33: 14 | E33: ='Data Update Form'!$G$73 -> 0 | F33: ='Data Update Form'!$G$75 -> 80 | H33: ='Data Update Form'!$G$77 -> 80 | I33: ='Data Update Form'!$G$79 -> 100 | J33: ='Data Update Form'!$G$79 -> 100 | K33: ='Data Update Form'!$G$81 -> 45 | L33: ='Data Update Form'!$G$81 -> 45 | M33: ='Data Update Form'!$G$81 -> 45 | N33: ='Data Update Form'!$G$81 -> 45 | O33: ='Data Update Form'!$G$81 -> 45 | P33: ='Data Update Form'!$G$83 -> 120 | Q33: ='Data Update Form'!$G$83 -> 120 | R33: ='Data Update Form'!$G$83 -> 120 | S33: ='Data Update Form'!$G$83 -> 120 | T33: ='Data Update Form'!$G$83 -> 120 | U33: ='Data Update Form'!$G$83 -> 120 | V33: ='Data Update Form'!$G$83 -> 120 | W33: ='Data Update Form'!$G$83 -> 120 | X33: ='Data Update Form'!$G$83 -> 120 | Y33: ='Data Update Form'!$G$83 -> 120 | Z33: ='Data Update Form'!$G$83 -> 120 | AA33: ='Data Update Form'!$G$83 -> 120 | AB33: ='Data Update Form'!$G$83 -> 120 | AC33: ='Data Update Form'!$G$83 -> 120 | AD33: OATS | AE33: 121 | AF33: 14 | AG33: ='Data Update Form'!$G$74 -> 0 | AH33: ='Data Update Form'!$G$76 -> 70 | AJ33: ='Data Update Form'!$G$78 -> 70 | AK33: ='Data Update Form'!$G$80 -> 90 | AL33: ='Data Update Form'!$G$80 -> 90 | AM33: ='Data Update Form'!$G$82 -> 35 | AN33: ='Data Update Form'!$G$82 -> 35 | AO33: ='Data Update Form'!$G$82 -> 35 | AP33: ='Data Update Form'!$G$82 -> 35 | AQ33: ='Data Update Form'!$G$82 -> 35 | AR33: ='Data Update Form'!$G$84 -> 110 | AS33: ='Data Update Form'!$G$84 -> 110 | AT33: ='Data Update Form'!$G$84 -> 110 | AU33: ='Data Update Form'!$G$84 -> 110 | AV33: ='Data Update Form'!$G$84 -> 110 | AW33: ='Data Update Form'!$G$84 -> 110 | AX33: ='Data Update Form'!$G$84 -> 110 | AY33: ='Data Update Form'!$G$84 -> 110 | AZ33: ='Data Update Form'!$G$84 -> 110 | BA33: ='Data Update Form'!$G$84 -> 110 | BB33: ='Data Update Form'!$G$84 -> 110 | BC33: ='Data Update Form'!$G$84 -> 110 | BD33: ='Data Update Form'!$G$84 -> 110 | BE33: ='Data Update Form'!$G$84 -> 110
A34: 30
A35: 31 | B35: ALFALFA | C35: 0 | D35: 1 | AD35: ALFALFA | AE35: 0 | AF35: 1
A36: 32
A37: 33 | B37: GRASS/HAY | C37: 0 | D37: 11 | AD37: GRASS/HAY | AE37: 0 | AF37: 11
A38: 34
A39: 35 | B39: SOYBEANS | C39: 0 | D39: 20 | AD39: SOYBEANS | AE39: 0 | AF39: 20
A40: 36
A41: 37 | B41: SILAGE | C41: 0 | D41: 19 | AD41: SILAGE | AE41: 0 | AF41: 19
A42: 38
A43: 39 | B43: Buckwheat | C43: 0 | D43: 5 | E43: ='Data Update Form'!$C$93 -> 0 | F43: ='Data Update Form'!$C$95 -> 0 | H43: ='Data Update Form'!$C$97 -> 0 | I43: ='Data Update Form'!$C$99 -> 20 | J43: ='Data Update Form'!$C$99 -> 20 | K43: ='Data Update Form'!$C$101 -> 0 | L43: ='Data Update Form'!$C$101 -> 0 | M43: ='Data Update Form'!$C$101 -> 0 | N43: ='Data Update Form'!$C$101 -> 0 | O43: ='Data Update Form'!$C$101 -> 0 | P43: ='Data Update Form'!$C$103 -> 40 | Q43: ='Data Update Form'!$C$103 -> 40 | R43: ='Data Update Form'!$C$103 -> 40 | S43: ='Data Update Form'!$C$103 -> 40 | T43: ='Data Update Form'!$C$103 -> 40 | U43: ='Data Update Form'!$C$103 -> 40 | V43: ='Data Update Form'!$C$103 -> 40 | W43: ='Data Update Form'!$C$103 -> 40 | X43: ='Data Update Form'!$C$103 -> 40 | Y43: ='Data Update Form'!$C$103 -> 40 | Z43: ='Data Update Form'!$C$103 -> 40 | AA43: ='Data Update Form'!$C$103 -> 40 | AB43: ='Data Update Form'!$C$103 -> 40 | AC43: ='Data Update Form'!$C$103 -> 40 | AD43: Buckwheat | AE43: 0 | AF43: 5 | AG43: ='Data Update Form'!$C$94 -> 0 | AH43: ='Data Update Form'!$C$96 -> 0 | AJ43: ='Data Update Form'!$C$98 -> 0 | AK43: ='Data Update Form'!$C$100 -> 0 | AL43: ='Data Update Form'!$C$100 -> 0 | AM43: ='Data Update Form'!$C$102 -> 0 | AN43: ='Data Update Form'!$C$102 -> 0 | AO43: ='Data Update Form'!$C$102 -> 0 | AP43: ='Data Update Form'!$C$102 -> 0 | AQ43: ='Data Update Form'!$C$102 -> 0 | AR43: ='Data Update Form'!$C$104 -> 20 | AS43: ='Data Update Form'!$C$104 -> 20 | AT43: ='Data Update Form'!$C$104 -> 20 | AU43: ='Data Update Form'!$C$104 -> 20 | AV43: ='Data Update Form'!$C$104 -> 20 | AW43: ='Data Update Form'!$C$104 -> 20 | AX43: ='Data Update Form'!$C$104 -> 20 | AY43: ='Data Update Form'!$C$104 -> 20 | AZ43: ='Data Update Form'!$C$104 -> 20 | BA43: ='Data Update Form'!$C$104 -> 20 | BB43: ='Data Update Form'!$C$104 -> 20 | BC43: ='Data Update Form'!$C$104 -> 20 | BD43: ='Data Update Form'!$C$104 -> 20 | BE43: ='Data Update Form'!$C$104 -> 20
A44: 40 | B44: Buckwheat | C44: 1451 | D44: 5 | E44: ='Data Update Form'!$D$93 -> 0 | F44: ='Data Update Form'!$D$95 -> 10 | H44: ='Data Update Form'!$D$97 -> 10 | I44: ='Data Update Form'!$D$99 -> 30 | J44: ='Data Update Form'!$D$99 -> 30 | K44: ='Data Update Form'!$D$101 -> 0 | L44: ='Data Update Form'!$D$101 -> 0 | M44: ='Data Update Form'!$D$101 -> 0 | N44: ='Data Update Form'!$D$101 -> 0 | O44: ='Data Update Form'!$D$101 -> 0 | P44: ='Data Update Form'!$D$103 -> 50 | Q44: ='Data Update Form'!$D$103 -> 50 | R44: ='Data Update Form'!$D$103 -> 50 | S44: ='Data Update Form'!$D$103 -> 50 | T44: ='Data Update Form'!$D$103 -> 50 | U44: ='Data Update Form'!$D$103 -> 50 | V44: ='Data Update Form'!$D$103 -> 50 | W44: ='Data Update Form'!$D$103 -> 50 | X44: ='Data Update Form'!$D$103 -> 50 | Y44: ='Data Update Form'!$D$103 -> 50 | Z44: ='Data Update Form'!$D$103 -> 50 | AA44: ='Data Update Form'!$D$103 -> 50 | AB44: ='Data Update Form'!$D$103 -> 50 | AC44: ='Data Update Form'!$D$103 -> 50 | AD44: Buckwheat | AE44: 1451 | AF44: 5 | AG44: ='Data Update Form'!$D$94 -> 0 | AH44: ='Data Update Form'!$D$96 -> 0 | AJ44: ='Data Update Form'!$D$98 -> 0 | AK44: ='Data Update Form'!$D$100 -> 10 | AL44: ='Data Update Form'!$D$100 -> 10 | AM44: ='Data Update Form'!$D$102 -> 0 | AN44: ='Data Update Form'!$D$102 -> 0 | AO44: ='Data Update Form'!$D$102 -> 0 | AP44: ='Data Update Form'!$D$102 -> 0 | AQ44: ='Data Update Form'!$D$102 -> 0 | AR44: ='Data Update Form'!$D$104 -> 30 | AS44: ='Data Update Form'!$D$104 -> 30 | AT44: ='Data Update Form'!$D$104 -> 30 | AU44: ='Data Update Form'!$D$104 -> 30 | AV44: ='Data Update Form'!$D$104 -> 30 | AW44: ='Data Update Form'!$D$104 -> 30 | AX44: ='Data Update Form'!$D$104 -> 30 | AY44: ='Data Update Form'!$D$104 -> 30 | AZ44: ='Data Update Form'!$D$104 -> 30 | BA44: ='Data Update Form'!$D$104 -> 30 | BB44: ='Data Update Form'!$D$104 -> 30 | BC44: ='Data Update Form'!$D$104 -> 30 | BD44: ='Data Update Form'!$D$104 -> 30 | BE44: ='Data Update Form'!$D$104 -> 30
A45: 41 | B45: Buckwheat | C45: 1701 | D45: 5 | E45: ='Data Update Form'!$E$93 -> 0 | F45: ='Data Update Form'!$E$95 -> 20 | H45: ='Data Update Form'!$E$97 -> 20 | I45: ='Data Update Form'!$E$99 -> 40 | J45: ='Data Update Form'!$E$99 -> 40 | K45: ='Data Update Form'!$E$101 -> 0 | L45: ='Data Update Form'!$E$101 -> 0 | M45: ='Data Update Form'!$E$101 -> 0 | N45: ='Data Update Form'!$E$101 -> 0 | O45: ='Data Update Form'!$E$101 -> 0 | P45: ='Data Update Form'!$E$103 -> 60 | Q45: ='Data Update Form'!$E$103 -> 60 | R45: ='Data Update Form'!$E$103 -> 60 | S45: ='Data Update Form'!$E$103 -> 60 | T45: ='Data Update Form'!$E$103 -> 60 | U45: ='Data Update Form'!$E$103 -> 60 | V45: ='Data Update Form'!$E$103 -> 60 | W45: ='Data Update Form'!$E$103 -> 60 | X45: ='Data Update Form'!$E$103 -> 60 | Y45: ='Data Update Form'!$E$103 -> 60 | Z45: ='Data Update Form'!$E$103 -> 60 | AA45: ='Data Update Form'!$E$103 -> 60 | AB45: ='Data Update Form'!$E$103 -> 60 | AC45: ='Data Update Form'!$E$103 -> 60 | AD45: Buckwheat | AE45: 1701 | AF45: 5 | AG45: ='Data Update Form'!$E$94 -> 0 | AH45: ='Data Update Form'!$E$96 -> 0 | AJ45: ='Data Update Form'!$E$98 -> 0 | AK45: ='Data Update Form'!$E$100 -> 20 | AL45: ='Data Update Form'!$E$100 -> 20 | AM45: ='Data Update Form'!$E$102 -> 0 | AN45: ='Data Update Form'!$E$102 -> 0 | AO45: ='Data Update Form'!$E$102 -> 0 | AP45: ='Data Update Form'!$E$102 -> 0 | AQ45: ='Data Update Form'!$E$102 -> 0 | AR45: ='Data Update Form'!$E$104 -> 40 | AS45: ='Data Update Form'!$E$104 -> 40 | AT45: ='Data Update Form'!$E$104 -> 40 | AU45: ='Data Update Form'!$E$104 -> 40 | AV45: ='Data Update Form'!$E$104 -> 40 | AW45: ='Data Update Form'!$E$104 -> 40 | AX45: ='Data Update Form'!$E$104 -> 40 | AY45: ='Data Update Form'!$E$104 -> 40 | AZ45: ='Data Update Form'!$E$104 -> 40 | BA45: ='Data Update Form'!$E$104 -> 40 | BB45: ='Data Update Form'!$E$104 -> 40 | BC45: ='Data Update Form'!$E$104 -> 40 | BD45: ='Data Update Form'!$E$104 -> 40 | BE45: ='Data Update Form'!$E$104 -> 40
A46: 42 | B46: Buckwheat | C46: 1951 | D46: 5 | E46: ='Data Update Form'!$F$93 -> 0 | F46: ='Data Update Form'!$F$95 -> 30 | H46: ='Data Update Form'!$F$97 -> 30 | I46: ='Data Update Form'!$F$99 -> 50 | J46: ='Data Update Form'!$F$99 -> 50 | K46: ='Data Update Form'!$F$101 -> 0 | L46: ='Data Update Form'!$F$101 -> 0 | M46: ='Data Update Form'!$F$101 -> 0 | N46: ='Data Update Form'!$F$101 -> 0 | O46: ='Data Update Form'!$F$101 -> 0 | P46: ='Data Update Form'!$F$103 -> 70 | Q46: ='Data Update Form'!$F$103 -> 70 | R46: ='Data Update Form'!$F$103 -> 70 | S46: ='Data Update Form'!$F$103 -> 70 | T46: ='Data Update Form'!$F$103 -> 70 | U46: ='Data Update Form'!$F$103 -> 70 | V46: ='Data Update Form'!$F$103 -> 70 | W46: ='Data Update Form'!$F$103 -> 70 | X46: ='Data Update Form'!$F$103 -> 70 | Y46: ='Data Update Form'!$F$103 -> 70 | Z46: ='Data Update Form'!$F$103 -> 70 | AA46: ='Data Update Form'!$F$103 -> 70 | AB46: ='Data Update Form'!$F$103 -> 70 | AC46: ='Data Update Form'!$F$103 -> 70 | AD46: Buckwheat | AE46: 1951 | AF46: 5 | AG46: ='Data Update Form'!$F$94 -> 0 | AH46: ='Data Update Form'!$F$96 -> 0 | AJ46: ='Data Update Form'!$F$98 -> 0 | AK46: ='Data Update Form'!$F$100 -> 30 | AL46: ='Data Update Form'!$F$100 -> 30 | AM46: ='Data Update Form'!$F$102 -> 0 | AN46: ='Data Update Form'!$F$102 -> 0 | AO46: ='Data Update Form'!$F$102 -> 0 | AP46: ='Data Update Form'!$F$102 -> 0 | AQ46: ='Data Update Form'!$F$102 -> 0 | AR46: ='Data Update Form'!$F$104 -> 50 | AS46: ='Data Update Form'!$F$104 -> 50 | AT46: ='Data Update Form'!$F$104 -> 50 | AU46: ='Data Update Form'!$F$104 -> 50 | AV46: ='Data Update Form'!$F$104 -> 50 | AW46: ='Data Update Form'!$F$104 -> 50 | AX46: ='Data Update Form'!$F$104 -> 50 | AY46: ='Data Update Form'!$F$104 -> 50 | AZ46: ='Data Update Form'!$F$104 -> 50 | BA46: ='Data Update Form'!$F$104 -> 50 | BB46: ='Data Update Form'!$F$104 -> 50 | BC46: ='Data Update Form'!$F$104 -> 50 | BD46: ='Data Update Form'!$F$104 -> 50 | BE46: ='Data Update Form'!$F$104 -> 50
A47: 43
A48: 44 | B48: Canola | C48: 0 | D48: 6 | E48: ='Data Update Form'!$C$113 -> 0 | F48: ='Data Update Form'!$C$115 -> 0 | H48: ='Data Update Form'!$C$117 -> 0 | I48: ='Data Update Form'!$C$119 -> 20 | J48: ='Data Update Form'!$C$119 -> 20 | K48: ='Data Update Form'!$C$121 -> 0 | L48: ='Data Update Form'!$C$121 -> 0 | M48: ='Data Update Form'!$C$121 -> 0 | N48: ='Data Update Form'!$C$121 -> 0 | O48: ='Data Update Form'!$C$121 -> 0 | P48: ='Data Update Form'!$C$123 -> 40 | Q48: ='Data Update Form'!$C$123 -> 40 | R48: ='Data Update Form'!$C$123 -> 40 | S48: ='Data Update Form'!$C$123 -> 40 | T48: ='Data Update Form'!$C$123 -> 40 | U48: ='Data Update Form'!$C$123 -> 40 | V48: ='Data Update Form'!$C$123 -> 40 | W48: ='Data Update Form'!$C$123 -> 40 | X48: ='Data Update Form'!$C$123 -> 40 | Y48: ='Data Update Form'!$C$123 -> 40 | Z48: ='Data Update Form'!$C$123 -> 40 | AA48: ='Data Update Form'!$C$123 -> 40 | AB48: ='Data Update Form'!$C$123 -> 40 | AC48: ='Data Update Form'!$C$123 -> 40 | AD48: Canola | AE48: 0 | AF48: 6 | AG48: ='Data Update Form'!$C$114 -> 0 | AH48: ='Data Update Form'!$C$116 -> 0 | AJ48: ='Data Update Form'!$C$118 -> 0 | AK48: ='Data Update Form'!$C$120 -> 0 | AL48: ='Data Update Form'!$C$120 -> 0 | AM48: ='Data Update Form'!$C$122 -> 0 | AN48: ='Data Update Form'!$C$122 -> 0 | AO48: ='Data Update Form'!$C$122 -> 0 | AP48: ='Data Update Form'!$C$122 -> 0 | AQ48: ='Data Update Form'!$C$122 -> 0 | AR48: ='Data Update Form'!$C$124 -> 20 | AS48: ='Data Update Form'!$C$124 -> 20 | AT48: ='Data Update Form'!$C$124 -> 20 | AU48: ='Data Update Form'!$C$124 -> 20 | AV48: ='Data Update Form'!$C$124 -> 20 | AW48: ='Data Update Form'!$C$124 -> 20 | AX48: ='Data Update Form'!$C$124 -> 20 | AY48: ='Data Update Form'!$C$124 -> 20 | AZ48: ='Data Update Form'!$C$124 -> 20 | BA48: ='Data Update Form'!$C$124 -> 20 | BB48: ='Data Update Form'!$C$124 -> 20 | BC48: ='Data Update Form'!$C$124 -> 20 | BD48: ='Data Update Form'!$C$124 -> 20 | BE48: ='Data Update Form'!$C$124 -> 20
A49: 45 | B49: Canola | C49: 16 | D49: 6 | E49: ='Data Update Form'!$D$113 -> 0 | F49: ='Data Update Form'!$D$115 -> 10 | H49: ='Data Update Form'!$D$117 -> 10 | I49: ='Data Update Form'!$D$119 -> 30 | J49: ='Data Update Form'!$D$119 -> 30 | K49: ='Data Update Form'!$D$121 -> 0 | L49: ='Data Update Form'!$D$121 -> 0 | M49: ='Data Update Form'!$D$121 -> 0 | N49: ='Data Update Form'!$D$121 -> 0 | O49: ='Data Update Form'!$D$121 -> 0 | P49: ='Data Update Form'!$D$123 -> 50 | Q49: ='Data Update Form'!$D$123 -> 50 | R49: ='Data Update Form'!$D$123 -> 50 | S49: ='Data Update Form'!$D$123 -> 50 | T49: ='Data Update Form'!$D$123 -> 50 | U49: ='Data Update Form'!$D$123 -> 50 | V49: ='Data Update Form'!$D$123 -> 50 | W49: ='Data Update Form'!$D$123 -> 50 | X49: ='Data Update Form'!$D$123 -> 50 | Y49: ='Data Update Form'!$D$123 -> 50 | Z49: ='Data Update Form'!$D$123 -> 50 | AA49: ='Data Update Form'!$D$123 -> 50 | AB49: ='Data Update Form'!$D$123 -> 50 | AC49: ='Data Update Form'!$D$123 -> 50 | AD49: Canola | AE49: 16 | AF49: 6 | AG49: ='Data Update Form'!$D$114 -> 0 | AH49: ='Data Update Form'!$D$116 -> 0 | AJ49: ='Data Update Form'!$D$118 -> 0 | AK49: ='Data Update Form'!$D$120 -> 10 | AL49: ='Data Update Form'!$D$120 -> 10 | AM49: ='Data Update Form'!$D$122 -> 0 | AN49: ='Data Update Form'!$D$122 -> 0 | AO49: ='Data Update Form'!$D$122 -> 0 | AP49: ='Data Update Form'!$D$122 -> 0 | AQ49: ='Data Update Form'!$D$122 -> 0 | AR49: ='Data Update Form'!$D$124 -> 30 | AS49: ='Data Update Form'!$D$124 -> 30 | AT49: ='Data Update Form'!$D$124 -> 30 | AU49: ='Data Update Form'!$D$124 -> 30 | AV49: ='Data Update Form'!$D$124 -> 30 | AW49: ='Data Update Form'!$D$124 -> 30 | AX49: ='Data Update Form'!$D$124 -> 30 | AY49: ='Data Update Form'!$D$124 -> 30 | AZ49: ='Data Update Form'!$D$124 -> 30 | BA49: ='Data Update Form'!$D$124 -> 30 | BB49: ='Data Update Form'!$D$124 -> 30 | BC49: ='Data Update Form'!$D$124 -> 30 | BD49: ='Data Update Form'!$D$124 -> 30 | BE49: ='Data Update Form'!$D$124 -> 30
A50: 46 | B50: Canola | C50: 21 | D50: 6 | E50: ='Data Update Form'!$E$113 -> 0 | F50: ='Data Update Form'!$E$115 -> 20 | H50: ='Data Update Form'!$E$117 -> 20 | I50: ='Data Update Form'!$E$119 -> 40 | J50: ='Data Update Form'!$E$119 -> 40 | K50: ='Data Update Form'!$E$121 -> 0 | L50: ='Data Update Form'!$E$121 -> 0 | M50: ='Data Update Form'!$E$121 -> 0 | N50: ='Data Update Form'!$E$121 -> 0 | O50: ='Data Update Form'!$E$121 -> 0 | P50: ='Data Update Form'!$E$123 -> 60 | Q50: ='Data Update Form'!$E$123 -> 60 | R50: ='Data Update Form'!$E$123 -> 60 | S50: ='Data Update Form'!$E$123 -> 60 | T50: ='Data Update Form'!$E$123 -> 60 | U50: ='Data Update Form'!$E$123 -> 60 | V50: ='Data Update Form'!$E$123 -> 60 | W50: ='Data Update Form'!$E$123 -> 60 | X50: ='Data Update Form'!$E$123 -> 60 | Y50: ='Data Update Form'!$E$123 -> 60 | Z50: ='Data Update Form'!$E$123 -> 60 | AA50: ='Data Update Form'!$E$123 -> 60 | AB50: ='Data Update Form'!$E$123 -> 60 | AC50: ='Data Update Form'!$E$123 -> 60 | AD50: Canola | AE50: 21 | AF50: 6 | AG50: ='Data Update Form'!$E$114 -> 0 | AH50: ='Data Update Form'!$E$116 -> 0 | AJ50: ='Data Update Form'!$E$118 -> 0 | AK50: ='Data Update Form'!$E$120 -> 20 | AL50: ='Data Update Form'!$E$120 -> 20 | AM50: ='Data Update Form'!$E$122 -> 0 | AN50: ='Data Update Form'!$E$122 -> 0 | AO50: ='Data Update Form'!$E$122 -> 0 | AP50: ='Data Update Form'!$E$122 -> 0 | AQ50: ='Data Update Form'!$E$122 -> 0 | AR50: ='Data Update Form'!$E$124 -> 40 | AS50: ='Data Update Form'!$E$124 -> 40 | AT50: ='Data Update Form'!$E$124 -> 40 | AU50: ='Data Update Form'!$E$124 -> 40 | AV50: ='Data Update Form'!$E$124 -> 40 | AW50: ='Data Update Form'!$E$124 -> 40 | AX50: ='Data Update Form'!$E$124 -> 40 | AY50: ='Data Update Form'!$E$124 -> 40 | AZ50: ='Data Update Form'!$E$124 -> 40 | BA50: ='Data Update Form'!$E$124 -> 40 | BB50: ='Data Update Form'!$E$124 -> 40 | BC50: ='Data Update Form'!$E$124 -> 40 | BD50: ='Data Update Form'!$E$124 -> 40 | BE50: ='Data Update Form'!$E$124 -> 40
A51: 47 | B51: Canola | C51: 25 | D51: 6 | E51: ='Data Update Form'!$F$113 -> 0 | F51: ='Data Update Form'!$F$115 -> 30 | H51: ='Data Update Form'!$F$117 -> 30 | I51: ='Data Update Form'!$F$119 -> 50 | J51: ='Data Update Form'!$F$119 -> 50 | K51: ='Data Update Form'!$F$121 -> 0 | L51: ='Data Update Form'!$F$121 -> 0 | M51: ='Data Update Form'!$F$121 -> 0 | N51: ='Data Update Form'!$F$121 -> 0 | O51: ='Data Update Form'!$F$121 -> 0 | P51: ='Data Update Form'!$F$123 -> 70 | Q51: ='Data Update Form'!$F$123 -> 70 | R51: ='Data Update Form'!$F$123 -> 70 | S51: ='Data Update Form'!$F$123 -> 70 | T51: ='Data Update Form'!$F$123 -> 70 | U51: ='Data Update Form'!$F$123 -> 70 | V51: ='Data Update Form'!$F$123 -> 70 | W51: ='Data Update Form'!$F$123 -> 70 | X51: ='Data Update Form'!$F$123 -> 70 | Y51: ='Data Update Form'!$F$123 -> 70 | Z51: ='Data Update Form'!$F$123 -> 70 | AA51: ='Data Update Form'!$F$123 -> 70 | AB51: ='Data Update Form'!$F$123 -> 70 | AC51: ='Data Update Form'!$F$123 -> 70 | AD51: Canola | AE51: 25 | AF51: 6 | AG51: ='Data Update Form'!$F$114 -> 0 | AH51: ='Data Update Form'!$F$116 -> 0 | AJ51: ='Data Update Form'!$F$118 -> 0 | AK51: ='Data Update Form'!$F$120 -> 30 | AL51: ='Data Update Form'!$F$120 -> 30 | AM51: ='Data Update Form'!$F$122 -> 0 | AN51: ='Data Update Form'!$F$122 -> 0 | AO51: ='Data Update Form'!$F$122 -> 0 | AP51: ='Data Update Form'!$F$122 -> 0 | AQ51: ='Data Update Form'!$F$122 -> 0 | AR51: ='Data Update Form'!$F$124 -> 50 | AS51: ='Data Update Form'!$F$124 -> 50 | AT51: ='Data Update Form'!$F$124 -> 50 | AU51: ='Data Update Form'!$F$124 -> 50 | AV51: ='Data Update Form'!$F$124 -> 50 | AW51: ='Data Update Form'!$F$124 -> 50 | AX51: ='Data Update Form'!$F$124 -> 50 | AY51: ='Data Update Form'!$F$124 -> 50 | AZ51: ='Data Update Form'!$F$124 -> 50 | BA51: ='Data Update Form'!$F$124 -> 50 | BB51: ='Data Update Form'!$F$124 -> 50 | BC51: ='Data Update Form'!$F$124 -> 50 | BD51: ='Data Update Form'!$F$124 -> 50 | BE51: ='Data Update Form'!$F$124 -> 50
A52: 48
A53: 49 | B53: Edible Beans | C53: 0 | D53: 9 | E53: ='Data Update Form'!$C$133 -> 0 | F53: ='Data Update Form'!$C$135 -> 0 | H53: ='Data Update Form'!$C$137 -> 60 | I53: ='Data Update Form'!$C$139 -> 60 | J53: ='Data Update Form'!$C$139 -> 60 | K53: ='Data Update Form'!$C$141 -> 0 | L53: ='Data Update Form'!$C$141 -> 0 | M53: ='Data Update Form'!$C$141 -> 0 | N53: ='Data Update Form'!$C$141 -> 0 | O53: ='Data Update Form'!$C$141 -> 0 | P53: ='Data Update Form'!$C$143 -> 60 | Q53: ='Data Update Form'!$C$143 -> 60 | R53: ='Data Update Form'!$C$143 -> 60 | S53: ='Data Update Form'!$C$143 -> 60 | T53: ='Data Update Form'!$C$143 -> 60 | U53: ='Data Update Form'!$C$143 -> 60 | V53: ='Data Update Form'!$C$143 -> 60 | W53: ='Data Update Form'!$C$143 -> 60 | X53: ='Data Update Form'!$C$143 -> 60 | Y53: ='Data Update Form'!$C$143 -> 60 | Z53: ='Data Update Form'!$C$143 -> 60 | AA53: ='Data Update Form'!$C$143 -> 60 | AB53: ='Data Update Form'!$C$143 -> 60 | AC53: ='Data Update Form'!$C$143 -> 60 | AD53: Edible Beans | AE53: 0 | AF53: 9 | AG53: ='Data Update Form'!$C$134 -> 0 | AH53: ='Data Update Form'!$C$136 -> 0 | AJ53: ='Data Update Form'!$C$138 -> 30 | AK53: ='Data Update Form'!$C$140 -> 30 | AL53: ='Data Update Form'!$C$140 -> 30 | AM53: ='Data Update Form'!$C$142 -> 0 | AN53: ='Data Update Form'!$C$142 -> 0 | AO53: ='Data Update Form'!$C$142 -> 0 | AP53: ='Data Update Form'!$C$142 -> 0 | AQ53: ='Data Update Form'!$C$142 -> 0 | AR53: ='Data Update Form'!$C$144 -> 30 | AS53: ='Data Update Form'!$C$144 -> 30 | AT53: ='Data Update Form'!$C$144 -> 30 | AU53: ='Data Update Form'!$C$144 -> 30 | AV53: ='Data Update Form'!$C$144 -> 30 | AW53: ='Data Update Form'!$C$144 -> 30 | AX53: ='Data Update Form'!$C$144 -> 30 | AY53: ='Data Update Form'!$C$144 -> 30 | AZ53: ='Data Update Form'!$C$144 -> 30 | BA53: ='Data Update Form'!$C$144 -> 30 | BB53: ='Data Update Form'!$C$144 -> 30 | BC53: ='Data Update Form'!$C$144 -> 30 | BD53: ='Data Update Form'!$C$144 -> 30 | BE53: ='Data Update Form'!$C$144 -> 30
A54: 50 | B54: Edible Beans | C54: 1901 | D54: 9 | E54: ='Data Update Form'!$D$133 -> 0 | F54: ='Data Update Form'!$D$135 -> 20 | H54: ='Data Update Form'!$D$137 -> 80 | I54: ='Data Update Form'!$D$139 -> 80 | J54: ='Data Update Form'!$D$139 -> 80 | K54: ='Data Update Form'!$D$141 -> 0 | L54: ='Data Update Form'!$D$141 -> 0 | M54: ='Data Update Form'!$D$141 -> 0 | N54: ='Data Update Form'!$D$141 -> 0 | O54: ='Data Update Form'!$D$141 -> 0 | P54: ='Data Update Form'!$D$143 -> 80 | Q54: ='Data Update Form'!$D$143 -> 80 | R54: ='Data Update Form'!$D$143 -> 80 | S54: ='Data Update Form'!$D$143 -> 80 | T54: ='Data Update Form'!$D$143 -> 80 | U54: ='Data Update Form'!$D$143 -> 80 | V54: ='Data Update Form'!$D$143 -> 80 | W54: ='Data Update Form'!$D$143 -> 80 | X54: ='Data Update Form'!$D$143 -> 80 | Y54: ='Data Update Form'!$D$143 -> 80 | Z54: ='Data Update Form'!$D$143 -> 80 | AA54: ='Data Update Form'!$D$143 -> 80 | AB54: ='Data Update Form'!$D$143 -> 80 | AC54: ='Data Update Form'!$D$143 -> 80 | AD54: Edible Beans | AE54: 1901 | AF54: 9 | AG54: ='Data Update Form'!$D$134 -> 0 | AH54: ='Data Update Form'!$D$136 -> 0 | AJ54: ='Data Update Form'!$D$138 -> 50 | AK54: ='Data Update Form'!$D$140 -> 50 | AL54: ='Data Update Form'!$D$140 -> 50 | AM54: ='Data Update Form'!$D$142 -> 0 | AN54: ='Data Update Form'!$D$142 -> 0 | AO54: ='Data Update Form'!$D$142 -> 0 | AP54: ='Data Update Form'!$D$142 -> 0 | AQ54: ='Data Update Form'!$D$142 -> 0 | AR54: ='Data Update Form'!$D$144 -> 50 | AS54: ='Data Update Form'!$D$144 -> 50 | AT54: ='Data Update Form'!$D$144 -> 50 | AU54: ='Data Update Form'!$D$144 -> 50 | AV54: ='Data Update Form'!$D$144 -> 50 | AW54: ='Data Update Form'!$D$144 -> 50 | AX54: ='Data Update Form'!$D$144 -> 50 | AY54: ='Data Update Form'!$D$144 -> 50 | AZ54: ='Data Update Form'!$D$144 -> 50 | BA54: ='Data Update Form'!$D$144 -> 50 | BB54: ='Data Update Form'!$D$144 -> 50 | BC54: ='Data Update Form'!$D$144 -> 50 | BD54: ='Data Update Form'!$D$144 -> 50 | BE54: ='Data Update Form'!$D$144 -> 50
A55: 51 | B55: Edible Beans | C55: 2401 | D55: 9 | E55: ='Data Update Form'!$E$133 -> 0 | F55: ='Data Update Form'!$E$135 -> 40 | H55: ='Data Update Form'!$E$137 -> 100 | I55: ='Data Update Form'!$E$139 -> 100 | J55: ='Data Update Form'!$E$139 -> 100 | K55: ='Data Update Form'!$E$141 -> 25 | L55: ='Data Update Form'!$E$141 -> 25 | M55: ='Data Update Form'!$E$141 -> 25 | N55: ='Data Update Form'!$E$141 -> 25 | O55: ='Data Update Form'!$E$141 -> 25 | P55: ='Data Update Form'!$E$143 -> 100 | Q55: ='Data Update Form'!$E$143 -> 100 | R55: ='Data Update Form'!$E$143 -> 100 | S55: ='Data Update Form'!$E$143 -> 100 | T55: ='Data Update Form'!$E$143 -> 100 | U55: ='Data Update Form'!$E$143 -> 100 | V55: ='Data Update Form'!$E$143 -> 100 | W55: ='Data Update Form'!$E$143 -> 100 | X55: ='Data Update Form'!$E$143 -> 100 | Y55: ='Data Update Form'!$E$143 -> 100 | Z55: ='Data Update Form'!$E$143 -> 100 | AA55: ='Data Update Form'!$E$143 -> 100 | AB55: ='Data Update Form'!$E$143 -> 100 | AC55: ='Data Update Form'!$E$143 -> 100 | AD55: Edible Beans | AE55: 2401 | AF55: 9 | AG55: ='Data Update Form'!$E$134 -> 0 | AH55: ='Data Update Form'!$E$136 -> 10 | AJ55: ='Data Update Form'!$E$138 -> 70 | AK55: ='Data Update Form'!$E$140 -> 70 | AL55: ='Data Update Form'!$E$140 -> 70 | AM55: ='Data Update Form'!$E$142 -> 0 | AN55: ='Data Update Form'!$E$142 -> 0 | AO55: ='Data Update Form'!$E$142 -> 0 | AP55: ='Data Update Form'!$E$142 -> 0 | AQ55: ='Data Update Form'!$E$142 -> 0 | AR55: ='Data Update Form'!$E$144 -> 70 | AS55: ='Data Update Form'!$E$144 -> 70 | AT55: ='Data Update Form'!$E$144 -> 70 | AU55: ='Data Update Form'!$E$144 -> 70 | AV55: ='Data Update Form'!$E$144 -> 70 | AW55: ='Data Update Form'!$E$144 -> 70 | AX55: ='Data Update Form'!$E$144 -> 70 | AY55: ='Data Update Form'!$E$144 -> 70 | AZ55: ='Data Update Form'!$E$144 -> 70 | BA55: ='Data Update Form'!$E$144 -> 70 | BB55: ='Data Update Form'!$E$144 -> 70 | BC55: ='Data Update Form'!$E$144 -> 70 | BD55: ='Data Update Form'!$E$144 -> 70 | BE55: ='Data Update Form'!$E$144 -> 70
A56: 52 | B56: Edible Beans | C56: 2901 | D56: 9 | E56: ='Data Update Form'!$F$133 -> 0 | F56: ='Data Update Form'!$F$135 -> 60 | H56: ='Data Update Form'!$F$137 -> 120 | I56: ='Data Update Form'!$F$139 -> 120 | J56: ='Data Update Form'!$F$139 -> 120 | K56: ='Data Update Form'!$F$141 -> 45 | L56: ='Data Update Form'!$F$141 -> 45 | M56: ='Data Update Form'!$F$141 -> 45 | N56: ='Data Update Form'!$F$141 -> 45 | O56: ='Data Update Form'!$F$141 -> 45 | P56: ='Data Update Form'!$F$143 -> 120 | Q56: ='Data Update Form'!$F$143 -> 120 | R56: ='Data Update Form'!$F$143 -> 120 | S56: ='Data Update Form'!$F$143 -> 120 | T56: ='Data Update Form'!$F$143 -> 120 | U56: ='Data Update Form'!$F$143 -> 120 | V56: ='Data Update Form'!$F$143 -> 120 | W56: ='Data Update Form'!$F$143 -> 120 | X56: ='Data Update Form'!$F$143 -> 120 | Y56: ='Data Update Form'!$F$143 -> 120 | Z56: ='Data Update Form'!$F$143 -> 120 | AA56: ='Data Update Form'!$F$143 -> 120 | AB56: ='Data Update Form'!$F$143 -> 120 | AC56: ='Data Update Form'!$F$143 -> 120 | AD56: Edible Beans | AE56: 2901 | AF56: 9 | AG56: ='Data Update Form'!$F$134 -> 0 | AH56: ='Data Update Form'!$F$136 -> 30 | AJ56: ='Data Update Form'!$F$138 -> 90 | AK56: ='Data Update Form'!$F$140 -> 90 | AL56: ='Data Update Form'!$F$140 -> 90 | AM56: ='Data Update Form'!$F$142 -> 25 | AN56: ='Data Update Form'!$F$142 -> 25 | AO56: ='Data Update Form'!$F$142 -> 25 | AP56: ='Data Update Form'!$F$142 -> 25 | AQ56: ='Data Update Form'!$F$142 -> 25 | AR56: ='Data Update Form'!$F$144 -> 90 | AS56: ='Data Update Form'!$F$144 -> 90 | AT56: ='Data Update Form'!$F$144 -> 90 | AU56: ='Data Update Form'!$F$144 -> 90 | AV56: ='Data Update Form'!$F$144 -> 90 | AW56: ='Data Update Form'!$F$144 -> 90 | AX56: ='Data Update Form'!$F$144 -> 90 | AY56: ='Data Update Form'!$F$144 -> 90 | AZ56: ='Data Update Form'!$F$144 -> 90 | BA56: ='Data Update Form'!$F$144 -> 90 | BB56: ='Data Update Form'!$F$144 -> 90 | BC56: ='Data Update Form'!$F$144 -> 90 | BD56: ='Data Update Form'!$F$144 -> 90 | BE56: ='Data Update Form'!$F$144 -> 90
A57: 53
A58: 54 | B58: Grass/Legume | C58: 0 | D58: 12 | AD58: Grass/Legume | AE58: 0 | AF58: 12
A59: 55
A60: 56 | B60: Millet | C60: 0 | D60: 13 | E60: ='Data Update Form'!$C$153 -> 0 | F60: ='Data Update Form'!$C$155 -> 0 | H60: ='Data Update Form'!$C$157 -> 0 | I60: ='Data Update Form'!$C$159 -> 20 | J60: ='Data Update Form'!$C$159 -> 20 | K60: ='Data Update Form'!$C$161 -> 0 | L60: ='Data Update Form'!$C$161 -> 0 | M60: ='Data Update Form'!$C$161 -> 0 | N60: ='Data Update Form'!$C$161 -> 0 | O60: ='Data Update Form'!$C$161 -> 0 | P60: ='Data Update Form'!$C$163 -> 40 | Q60: ='Data Update Form'!$C$163 -> 40 | R60: ='Data Update Form'!$C$163 -> 40 | S60: ='Data Update Form'!$C$163 -> 40 | T60: ='Data Update Form'!$C$163 -> 40 | U60: ='Data Update Form'!$C$163 -> 40 | V60: ='Data Update Form'!$C$163 -> 40 | W60: ='Data Update Form'!$C$163 -> 40 | X60: ='Data Update Form'!$C$163 -> 40 | Y60: ='Data Update Form'!$C$163 -> 40 | Z60: ='Data Update Form'!$C$163 -> 40 | AA60: ='Data Update Form'!$C$163 -> 40 | AB60: ='Data Update Form'!$C$163 -> 40 | AC60: ='Data Update Form'!$C$163 -> 40 | AD60: Millet | AE60: 0 | AF60: 13 | AG60: ='Data Update Form'!$C$154 -> 0 | AH60: ='Data Update Form'!$C$156 -> 0 | AJ60: ='Data Update Form'!$C$158 -> 0 | AK60: ='Data Update Form'!$C$160 -> 0 | AL60: ='Data Update Form'!$C$160 -> 0 | AM60: ='Data Update Form'!$C$162 -> 0 | AN60: ='Data Update Form'!$C$162 -> 0 | AO60: ='Data Update Form'!$C$162 -> 0 | AP60: ='Data Update Form'!$C$162 -> 0 | AQ60: ='Data Update Form'!$C$162 -> 0 | AR60: ='Data Update Form'!$C$164 -> 20 | AS60: ='Data Update Form'!$C$164 -> 20 | AT60: ='Data Update Form'!$C$164 -> 20 | AU60: ='Data Update Form'!$C$164 -> 20 | AV60: ='Data Update Form'!$C$164 -> 20 | AW60: ='Data Update Form'!$C$164 -> 20 | AX60: ='Data Update Form'!$C$164 -> 20 | AY60: ='Data Update Form'!$C$164 -> 20 | AZ60: ='Data Update Form'!$C$164 -> 20 | BA60: ='Data Update Form'!$C$164 -> 20 | BB60: ='Data Update Form'!$C$164 -> 20 | BC60: ='Data Update Form'!$C$164 -> 20 | BD60: ='Data Update Form'!$C$164 -> 20 | BE60: ='Data Update Form'!$C$164 -> 20
A61: 57 | B61: Millet | C61: 1901 | D61: 13 | E61: ='Data Update Form'!$D$153 -> 0 | F61: ='Data Update Form'!$D$155 -> 10 | H61: ='Data Update Form'!$D$157 -> 10 | I61: ='Data Update Form'!$D$159 -> 30 | J61: ='Data Update Form'!$D$159 -> 30 | K61: ='Data Update Form'!$D$161 -> 0 | L61: ='Data Update Form'!$D$161 -> 0 | M61: ='Data Update Form'!$D$161 -> 0 | N61: ='Data Update Form'!$D$161 -> 0 | O61: ='Data Update Form'!$D$161 -> 0 | P61: ='Data Update Form'!$D$163 -> 50 | Q61: ='Data Update Form'!$D$163 -> 50 | R61: ='Data Update Form'!$D$163 -> 50 | S61: ='Data Update Form'!$D$163 -> 50 | T61: ='Data Update Form'!$D$163 -> 50 | U61: ='Data Update Form'!$D$163 -> 50 | V61: ='Data Update Form'!$D$163 -> 50 | W61: ='Data Update Form'!$D$163 -> 50 | X61: ='Data Update Form'!$D$163 -> 50 | Y61: ='Data Update Form'!$D$163 -> 50 | Z61: ='Data Update Form'!$D$163 -> 50 | AA61: ='Data Update Form'!$D$163 -> 50 | AB61: ='Data Update Form'!$D$163 -> 50 | AC61: ='Data Update Form'!$D$163 -> 50 | AD61: Millet | AE61: 1901 | AF61: 13 | AG61: ='Data Update Form'!$D$154 -> 0 | AH61: ='Data Update Form'!$D$156 -> 0 | AJ61: ='Data Update Form'!$D$158 -> 0 | AK61: ='Data Update Form'!$D$160 -> 10 | AL61: ='Data Update Form'!$D$160 -> 10 | AM61: ='Data Update Form'!$D$162 -> 0 | AN61: ='Data Update Form'!$D$162 -> 0 | AO61: ='Data Update Form'!$D$162 -> 0 | AP61: ='Data Update Form'!$D$162 -> 0 | AQ61: ='Data Update Form'!$D$162 -> 0 | AR61: ='Data Update Form'!$D$164 -> 30 | AS61: ='Data Update Form'!$D$164 -> 30 | AT61: ='Data Update Form'!$D$164 -> 30 | AU61: ='Data Update Form'!$D$164 -> 30 | AV61: ='Data Update Form'!$D$164 -> 30 | AW61: ='Data Update Form'!$D$164 -> 30 | AX61: ='Data Update Form'!$D$164 -> 30 | AY61: ='Data Update Form'!$D$164 -> 30 | AZ61: ='Data Update Form'!$D$164 -> 30 | BA61: ='Data Update Form'!$D$164 -> 30 | BB61: ='Data Update Form'!$D$164 -> 30 | BC61: ='Data Update Form'!$D$164 -> 30 | BD61: ='Data Update Form'!$D$164 -> 30 | BE61: ='Data Update Form'!$D$164 -> 30
A62: 58 | B62: Millet | C62: 2301 | D62: 13 | E62: ='Data Update Form'!$E$153 -> 0 | F62: ='Data Update Form'!$E$155 -> 20 | H62: ='Data Update Form'!$E$157 -> 20 | I62: ='Data Update Form'!$E$159 -> 40 | J62: ='Data Update Form'!$E$159 -> 40 | K62: ='Data Update Form'!$E$161 -> 0 | L62: ='Data Update Form'!$E$161 -> 0 | M62: ='Data Update Form'!$E$161 -> 0 | N62: ='Data Update Form'!$E$161 -> 0 | O62: ='Data Update Form'!$E$161 -> 0 | P62: ='Data Update Form'!$E$163 -> 60 | Q62: ='Data Update Form'!$E$163 -> 60 | R62: ='Data Update Form'!$E$163 -> 60 | S62: ='Data Update Form'!$E$163 -> 60 | T62: ='Data Update Form'!$E$163 -> 60 | U62: ='Data Update Form'!$E$163 -> 60 | V62: ='Data Update Form'!$E$163 -> 60 | W62: ='Data Update Form'!$E$163 -> 60 | X62: ='Data Update Form'!$E$163 -> 60 | Y62: ='Data Update Form'!$E$163 -> 60 | Z62: ='Data Update Form'!$E$163 -> 60 | AA62: ='Data Update Form'!$E$163 -> 60 | AB62: ='Data Update Form'!$E$163 -> 60 | AC62: ='Data Update Form'!$E$163 -> 60 | AD62: Millet | AE62: 2301 | AF62: 13 | AG62: ='Data Update Form'!$E$154 -> 0 | AH62: ='Data Update Form'!$E$156 -> 0 | AJ62: ='Data Update Form'!$E$158 -> 0 | AK62: ='Data Update Form'!$E$160 -> 20 | AL62: ='Data Update Form'!$E$160 -> 20 | AM62: ='Data Update Form'!$E$162 -> 0 | AN62: ='Data Update Form'!$E$162 -> 0 | AO62: ='Data Update Form'!$E$162 -> 0 | AP62: ='Data Update Form'!$E$162 -> 0 | AQ62: ='Data Update Form'!$E$162 -> 0 | AR62: ='Data Update Form'!$E$164 -> 40 | AS62: ='Data Update Form'!$E$164 -> 40 | AT62: ='Data Update Form'!$E$164 -> 40 | AU62: ='Data Update Form'!$E$164 -> 40 | AV62: ='Data Update Form'!$E$164 -> 40 | AW62: ='Data Update Form'!$E$164 -> 40 | AX62: ='Data Update Form'!$E$164 -> 40 | AY62: ='Data Update Form'!$E$164 -> 40 | AZ62: ='Data Update Form'!$E$164 -> 40 | BA62: ='Data Update Form'!$E$164 -> 40 | BB62: ='Data Update Form'!$E$164 -> 40 | BC62: ='Data Update Form'!$E$164 -> 40 | BD62: ='Data Update Form'!$E$164 -> 40 | BE62: ='Data Update Form'!$E$164 -> 40
A63: 59 | B63: Millet | C63: 2701 | D63: 13 | E63: ='Data Update Form'!$F$153 -> 0 | F63: ='Data Update Form'!$F$155 -> 40 | H63: ='Data Update Form'!$F$157 -> 40 | I63: ='Data Update Form'!$F$159 -> 60 | J63: ='Data Update Form'!$F$159 -> 60 | K63: ='Data Update Form'!$F$161 -> 0 | L63: ='Data Update Form'!$F$161 -> 0 | M63: ='Data Update Form'!$F$161 -> 0 | N63: ='Data Update Form'!$F$161 -> 0 | O63: ='Data Update Form'!$F$161 -> 0 | P63: ='Data Update Form'!$F$163 -> 80 | Q63: ='Data Update Form'!$F$163 -> 80 | R63: ='Data Update Form'!$F$163 -> 80 | S63: ='Data Update Form'!$F$163 -> 80 | T63: ='Data Update Form'!$F$163 -> 80 | U63: ='Data Update Form'!$F$163 -> 80 | V63: ='Data Update Form'!$F$163 -> 80 | W63: ='Data Update Form'!$F$163 -> 80 | X63: ='Data Update Form'!$F$163 -> 80 | Y63: ='Data Update Form'!$F$163 -> 80 | Z63: ='Data Update Form'!$F$163 -> 80 | AA63: ='Data Update Form'!$F$163 -> 80 | AB63: ='Data Update Form'!$F$163 -> 80 | AC63: ='Data Update Form'!$F$163 -> 80 | AD63: Millet | AE63: 2701 | AF63: 13 | AG63: ='Data Update Form'!$F$154 -> 0 | AH63: ='Data Update Form'!$F$156 -> 20 | AJ63: ='Data Update Form'!$F$158 -> 20 | AK63: ='Data Update Form'!$F$160 -> 40 | AL63: ='Data Update Form'!$F$160 -> 40 | AM63: ='Data Update Form'!$F$162 -> 0 | AN63: ='Data Update Form'!$F$162 -> 0 | AO63: ='Data Update Form'!$F$162 -> 0 | AP63: ='Data Update Form'!$F$162 -> 0 | AQ63: ='Data Update Form'!$F$162 -> 0 | AR63: ='Data Update Form'!$F$164 -> 60 | AS63: ='Data Update Form'!$F$164 -> 60 | AT63: ='Data Update Form'!$F$164 -> 60 | AU63: ='Data Update Form'!$F$164 -> 60 | AV63: ='Data Update Form'!$F$164 -> 60 | AW63: ='Data Update Form'!$F$164 -> 60 | AX63: ='Data Update Form'!$F$164 -> 60 | AY63: ='Data Update Form'!$F$164 -> 60 | AZ63: ='Data Update Form'!$F$164 -> 60 | BA63: ='Data Update Form'!$F$164 -> 60 | BB63: ='Data Update Form'!$F$164 -> 60 | BC63: ='Data Update Form'!$F$164 -> 60 | BD63: ='Data Update Form'!$F$164 -> 60 | BE63: ='Data Update Form'!$F$164 -> 60
A64: 60 | B64: Millet | C64: 3100 | D64: 13 | E64: ='Data Update Form'!$G$153 -> 0 | F64: ='Data Update Form'!$G$155 -> 60 | H64: ='Data Update Form'!$G$157 -> 60 | I64: ='Data Update Form'!$G$159 -> 80 | J64: ='Data Update Form'!$G$159 -> 80 | K64: ='Data Update Form'!$G$161 -> 25 | L64: ='Data Update Form'!$G$161 -> 25 | M64: ='Data Update Form'!$G$161 -> 25 | N64: ='Data Update Form'!$G$161 -> 25 | O64: ='Data Update Form'!$G$161 -> 25 | P64: ='Data Update Form'!$G$163 -> 100 | Q64: ='Data Update Form'!$G$163 -> 100 | R64: ='Data Update Form'!$G$163 -> 100 | S64: ='Data Update Form'!$G$163 -> 100 | T64: ='Data Update Form'!$G$163 -> 100 | U64: ='Data Update Form'!$G$163 -> 100 | V64: ='Data Update Form'!$G$163 -> 100 | W64: ='Data Update Form'!$G$163 -> 100 | X64: ='Data Update Form'!$G$163 -> 100 | Y64: ='Data Update Form'!$G$163 -> 100 | Z64: ='Data Update Form'!$G$163 -> 100 | AA64: ='Data Update Form'!$G$163 -> 100 | AB64: ='Data Update Form'!$G$163 -> 100 | AC64: ='Data Update Form'!$G$163 -> 100 | AD64: Millet | AE64: 3100 | AF64: 13 | AG64: ='Data Update Form'!$G$154 -> 0 | AH64: ='Data Update Form'!$G$156 -> 40 | AJ64: ='Data Update Form'!$G$158 -> 40 | AK64: ='Data Update Form'!$G$160 -> 60 | AL64: ='Data Update Form'!$G$160 -> 60 | AM64: ='Data Update Form'!$G$162 -> 0 | AN64: ='Data Update Form'!$G$162 -> 0 | AO64: ='Data Update Form'!$G$162 -> 0 | AP64: ='Data Update Form'!$G$162 -> 0 | AQ64: ='Data Update Form'!$G$162 -> 0 | AR64: ='Data Update Form'!$G$164 -> 80 | AS64: ='Data Update Form'!$G$164 -> 80 | AT64: ='Data Update Form'!$G$164 -> 80 | AU64: ='Data Update Form'!$G$164 -> 80 | AV64: ='Data Update Form'!$G$164 -> 80 | AW64: ='Data Update Form'!$G$164 -> 80 | AX64: ='Data Update Form'!$G$164 -> 80 | AY64: ='Data Update Form'!$G$164 -> 80 | AZ64: ='Data Update Form'!$G$164 -> 80 | BA64: ='Data Update Form'!$G$164 -> 80 | BB64: ='Data Update Form'!$G$164 -> 80 | BC64: ='Data Update Form'!$G$164 -> 80 | BD64: ='Data Update Form'!$G$164 -> 80 | BE64: ='Data Update Form'!$G$164 -> 80
A65: 61
A66: 62 | B66: Alsike Clover | C66: 0 | D66: 7 | AD66: Alsike Clover | AE66: 0 | AF66: 7
A67: 63 | B67: Birdsfoot Trefoil | C67: 0 | D67: 7 | AD67: Birdsfoot Trefoil | AE67: 0 | AF67: 7
A68: 64 | B68: Red Clover | C68: 0 | D68: 7 | AD68: Red Clover | AE68: 0 | AF68: 7
A69: 65
A70: 66 | B70: Rye | C70: 0 | D70: 18 | E70: ='Data Update Form'!$C$173 -> 0 | F70: ='Data Update Form'!$C$175 -> 40 | H70: ='Data Update Form'!$C$177 -> 40 | I70: ='Data Update Form'!$C$179 -> 50 | J70: ='Data Update Form'!$C$179 -> 50 | K70: ='Data Update Form'!$C$181 -> 0 | L70: ='Data Update Form'!$C$181 -> 0 | M70: ='Data Update Form'!$C$181 -> 0 | N70: ='Data Update Form'!$C$181 -> 0 | O70: ='Data Update Form'!$C$181 -> 0 | P70: ='Data Update Form'!$C$183 -> 60 | Q70: ='Data Update Form'!$C$183 -> 60 | R70: ='Data Update Form'!$C$183 -> 60 | S70: ='Data Update Form'!$C$183 -> 60 | T70: ='Data Update Form'!$C$183 -> 60 | U70: ='Data Update Form'!$C$183 -> 60 | V70: ='Data Update Form'!$C$183 -> 60 | W70: ='Data Update Form'!$C$183 -> 60 | X70: ='Data Update Form'!$C$183 -> 60 | Y70: ='Data Update Form'!$C$183 -> 60 | Z70: ='Data Update Form'!$C$183 -> 60 | AA70: ='Data Update Form'!$C$183 -> 60 | AB70: ='Data Update Form'!$C$183 -> 60 | AC70: ='Data Update Form'!$C$183 -> 60 | AD70: Rye | AE70: 0 | AF70: 18 | AG70: ='Data Update Form'!$C$174 -> 0 | AH70: ='Data Update Form'!$C$176 -> 20 | AJ70: ='Data Update Form'!$C$178 -> 20 | AK70: ='Data Update Form'!$C$180 -> 30 | AL70: ='Data Update Form'!$C$180 -> 30 | AM70: ='Data Update Form'!$C$182 -> 0 | AN70: ='Data Update Form'!$C$182 -> 0 | AO70: ='Data Update Form'!$C$182 -> 0 | AP70: ='Data Update Form'!$C$182 -> 0 | AQ70: ='Data Update Form'!$C$182 -> 0 | AR70: ='Data Update Form'!$C$184 -> 40 | AS70: ='Data Update Form'!$C$184 -> 40 | AT70: ='Data Update Form'!$C$184 -> 40 | AU70: ='Data Update Form'!$C$184 -> 40 | AV70: ='Data Update Form'!$C$184 -> 40 | AW70: ='Data Update Form'!$C$184 -> 40 | AX70: ='Data Update Form'!$C$184 -> 40 | AY70: ='Data Update Form'!$C$184 -> 40 | AZ70: ='Data Update Form'!$C$184 -> 40 | BA70: ='Data Update Form'!$C$184 -> 40 | BB70: ='Data Update Form'!$C$184 -> 40 | BC70: ='Data Update Form'!$C$184 -> 40 | BD70: ='Data Update Form'!$C$184 -> 40 | BE70: ='Data Update Form'!$C$184 -> 40
A71: 67 | B71: Rye | C71: 50 | D71: 18 | E71: ='Data Update Form'!$D$173 -> 0 | F71: ='Data Update Form'!$D$175 -> 65 | H71: ='Data Update Form'!$D$177 -> 65 | I71: ='Data Update Form'!$D$179 -> 75 | J71: ='Data Update Form'!$D$179 -> 75 | K71: ='Data Update Form'!$D$181 -> 35 | L71: ='Data Update Form'!$D$181 -> 35 | M71: ='Data Update Form'!$D$181 -> 35 | N71: ='Data Update Form'!$D$181 -> 35 | O71: ='Data Update Form'!$D$181 -> 35 | P71: ='Data Update Form'!$D$183 -> 85 | Q71: ='Data Update Form'!$D$183 -> 85 | R71: ='Data Update Form'!$D$183 -> 85 | S71: ='Data Update Form'!$D$183 -> 85 | T71: ='Data Update Form'!$D$183 -> 85 | U71: ='Data Update Form'!$D$183 -> 85 | V71: ='Data Update Form'!$D$183 -> 85 | W71: ='Data Update Form'!$D$183 -> 85 | X71: ='Data Update Form'!$D$183 -> 85 | Y71: ='Data Update Form'!$D$183 -> 85 | Z71: ='Data Update Form'!$D$183 -> 85 | AA71: ='Data Update Form'!$D$183 -> 85 | AB71: ='Data Update Form'!$D$183 -> 85 | AC71: ='Data Update Form'!$D$183 -> 85 | AD71: Rye | AE71: 50 | AF71: 18 | AG71: ='Data Update Form'!$D$174 -> 0 | AH71: ='Data Update Form'!$D$176 -> 45 | AJ71: ='Data Update Form'!$D$178 -> 45 | AK71: ='Data Update Form'!$D$180 -> 55 | AL71: ='Data Update Form'!$D$180 -> 55 | AM71: ='Data Update Form'!$D$182 -> 0 | AN71: ='Data Update Form'!$D$182 -> 0 | AO71: ='Data Update Form'!$D$182 -> 0 | AP71: ='Data Update Form'!$D$182 -> 0 | AQ71: ='Data Update Form'!$D$182 -> 0 | AR71: ='Data Update Form'!$D$184 -> 65 | AS71: ='Data Update Form'!$D$184 -> 65 | AT71: ='Data Update Form'!$D$184 -> 65 | AU71: ='Data Update Form'!$D$184 -> 65 | AV71: ='Data Update Form'!$D$184 -> 65 | AW71: ='Data Update Form'!$D$184 -> 65 | AX71: ='Data Update Form'!$D$184 -> 65 | AY71: ='Data Update Form'!$D$184 -> 65 | AZ71: ='Data Update Form'!$D$184 -> 65 | BA71: ='Data Update Form'!$D$184 -> 65 | BB71: ='Data Update Form'!$D$184 -> 65 | BC71: ='Data Update Form'!$D$184 -> 65 | BD71: ='Data Update Form'!$D$184 -> 65 | BE71: ='Data Update Form'!$D$184 -> 65
A72: 68 | B72: Rye | C72: 60 | D72: 18 | E72: ='Data Update Form'!$E$173 -> 40 | F72: ='Data Update Form'!$E$175 -> 90 | H72: ='Data Update Form'!$E$177 -> 90 | I72: ='Data Update Form'!$E$179 -> 100 | J72: ='Data Update Form'!$E$179 -> 100 | K72: ='Data Update Form'!$E$181 -> 60 | L72: ='Data Update Form'!$E$181 -> 60 | M72: ='Data Update Form'!$E$181 -> 60 | N72: ='Data Update Form'!$E$181 -> 60 | O72: ='Data Update Form'!$E$181 -> 60 | P72: ='Data Update Form'!$E$183 -> 110 | Q72: ='Data Update Form'!$E$183 -> 110 | R72: ='Data Update Form'!$E$183 -> 110 | S72: ='Data Update Form'!$E$183 -> 110 | T72: ='Data Update Form'!$E$183 -> 110 | U72: ='Data Update Form'!$E$183 -> 110 | V72: ='Data Update Form'!$E$183 -> 110 | W72: ='Data Update Form'!$E$183 -> 110 | X72: ='Data Update Form'!$E$183 -> 110 | Y72: ='Data Update Form'!$E$183 -> 110 | Z72: ='Data Update Form'!$E$183 -> 110 | AA72: ='Data Update Form'!$E$183 -> 110 | AB72: ='Data Update Form'!$E$183 -> 110 | AC72: ='Data Update Form'!$E$183 -> 110 | AD72: Rye | AE72: 60 | AF72: 18 | AG72: ='Data Update Form'!$E$174 -> 20 | AH72: ='Data Update Form'!$E$176 -> 70 | AJ72: ='Data Update Form'!$E$178 -> 70 | AK72: ='Data Update Form'!$E$180 -> 80 | AL72: ='Data Update Form'!$E$180 -> 80 | AM72: ='Data Update Form'!$E$182 -> 40 | AN72: ='Data Update Form'!$E$182 -> 40 | AO72: ='Data Update Form'!$E$182 -> 40 | AP72: ='Data Update Form'!$E$182 -> 40 | AQ72: ='Data Update Form'!$E$182 -> 40 | AR72: ='Data Update Form'!$E$184 -> 90 | AS72: ='Data Update Form'!$E$184 -> 90 | AT72: ='Data Update Form'!$E$184 -> 90 | AU72: ='Data Update Form'!$E$184 -> 90 | AV72: ='Data Update Form'!$E$184 -> 90 | AW72: ='Data Update Form'!$E$184 -> 90 | AX72: ='Data Update Form'!$E$184 -> 90 | AY72: ='Data Update Form'!$E$184 -> 90 | AZ72: ='Data Update Form'!$E$184 -> 90 | BA72: ='Data Update Form'!$E$184 -> 90 | BB72: ='Data Update Form'!$E$184 -> 90 | BC72: ='Data Update Form'!$E$184 -> 90 | BD72: ='Data Update Form'!$E$184 -> 90 | BE72: ='Data Update Form'!$E$184 -> 90
A73: 69 | B73: Rye | C73: 70 | D73: 18 | E73: ='Data Update Form'!$F$173 -> 65 | F73: ='Data Update Form'!$F$175 -> 115 | H73: ='Data Update Form'!$F$177 -> 115 | I73: ='Data Update Form'!$F$179 -> 125 | J73: ='Data Update Form'!$F$179 -> 125 | K73: ='Data Update Form'!$F$181 -> 85 | L73: ='Data Update Form'!$F$181 -> 85 | M73: ='Data Update Form'!$F$181 -> 85 | N73: ='Data Update Form'!$F$181 -> 85 | O73: ='Data Update Form'!$F$181 -> 85 | P73: ='Data Update Form'!$F$183 -> 135 | Q73: ='Data Update Form'!$F$183 -> 135 | R73: ='Data Update Form'!$F$183 -> 135 | S73: ='Data Update Form'!$F$183 -> 135 | T73: ='Data Update Form'!$F$183 -> 135 | U73: ='Data Update Form'!$F$183 -> 135 | V73: ='Data Update Form'!$F$183 -> 135 | W73: ='Data Update Form'!$F$183 -> 135 | X73: ='Data Update Form'!$F$183 -> 135 | Y73: ='Data Update Form'!$F$183 -> 135 | Z73: ='Data Update Form'!$F$183 -> 135 | AA73: ='Data Update Form'!$F$183 -> 135 | AB73: ='Data Update Form'!$F$183 -> 135 | AC73: ='Data Update Form'!$F$183 -> 135 | AD73: Rye | AE73: 70 | AF73: 18 | AG73: ='Data Update Form'!$F$174 -> 45 | AH73: ='Data Update Form'!$F$176 -> 95 | AJ73: ='Data Update Form'!$F$178 -> 95 | AK73: ='Data Update Form'!$F$180 -> 105 | AL73: ='Data Update Form'!$F$180 -> 105 | AM73: ='Data Update Form'!$F$182 -> 65 | AN73: ='Data Update Form'!$F$182 -> 65 | AO73: ='Data Update Form'!$F$182 -> 65 | AP73: ='Data Update Form'!$F$182 -> 65 | AQ73: ='Data Update Form'!$F$182 -> 65 | AR73: ='Data Update Form'!$F$184 -> 115 | AS73: ='Data Update Form'!$F$184 -> 115 | AT73: ='Data Update Form'!$F$184 -> 115 | AU73: ='Data Update Form'!$F$184 -> 115 | AV73: ='Data Update Form'!$F$184 -> 115 | AW73: ='Data Update Form'!$F$184 -> 115 | AX73: ='Data Update Form'!$F$184 -> 115 | AY73: ='Data Update Form'!$F$184 -> 115 | AZ73: ='Data Update Form'!$F$184 -> 115 | BA73: ='Data Update Form'!$F$184 -> 115 | BB73: ='Data Update Form'!$F$184 -> 115 | BC73: ='Data Update Form'!$F$184 -> 115 | BD73: ='Data Update Form'!$F$184 -> 115 | BE73: ='Data Update Form'!$F$184 -> 115
A74: 70 | B74: Rye | C74: 80 | D74: 18 | E74: ='Data Update Form'!$G$173 -> 95 | F74: ='Data Update Form'!$G$175 -> 140 | H74: ='Data Update Form'!$G$177 -> 140 | I74: ='Data Update Form'!$G$179 -> 150 | J74: ='Data Update Form'!$G$179 -> 150 | K74: ='Data Update Form'!$G$181 -> 110 | L74: ='Data Update Form'!$G$181 -> 110 | M74: ='Data Update Form'!$G$181 -> 110 | N74: ='Data Update Form'!$G$181 -> 110 | O74: ='Data Update Form'!$G$181 -> 110 | P74: ='Data Update Form'!$G$183 -> 160 | Q74: ='Data Update Form'!$G$183 -> 160 | R74: ='Data Update Form'!$G$183 -> 160 | S74: ='Data Update Form'!$G$183 -> 160 | T74: ='Data Update Form'!$G$183 -> 160 | U74: ='Data Update Form'!$G$183 -> 160 | V74: ='Data Update Form'!$G$183 -> 160 | W74: ='Data Update Form'!$G$183 -> 160 | X74: ='Data Update Form'!$G$183 -> 160 | Y74: ='Data Update Form'!$G$183 -> 160 | Z74: ='Data Update Form'!$G$183 -> 160 | AA74: ='Data Update Form'!$G$183 -> 160 | AB74: ='Data Update Form'!$G$183 -> 160 | AC74: ='Data Update Form'!$G$183 -> 160 | AD74: Rye | AE74: 80 | AF74: 18 | AG74: ='Data Update Form'!$G$174 -> 75 | AH74: ='Data Update Form'!$G$176 -> 120 | AJ74: ='Data Update Form'!$G$178 -> 120 | AK74: ='Data Update Form'!$G$180 -> 130 | AL74: ='Data Update Form'!$G$180 -> 130 | AM74: ='Data Update Form'!$G$182 -> 90 | AN74: ='Data Update Form'!$G$182 -> 90 | AO74: ='Data Update Form'!$G$182 -> 90 | AP74: ='Data Update Form'!$G$182 -> 90 | AQ74: ='Data Update Form'!$G$182 -> 90 | AR74: ='Data Update Form'!$G$184 -> 140 | AS74: ='Data Update Form'!$G$184 -> 140 | AT74: ='Data Update Form'!$G$184 -> 140 | AU74: ='Data Update Form'!$G$184 -> 140 | AV74: ='Data Update Form'!$G$184 -> 140 | AW74: ='Data Update Form'!$G$184 -> 140 | AX74: ='Data Update Form'!$G$184 -> 140 | AY74: ='Data Update Form'!$G$184 -> 140 | AZ74: ='Data Update Form'!$G$184 -> 140 | BA74: ='Data Update Form'!$G$184 -> 140 | BB74: ='Data Update Form'!$G$184 -> 140 | BC74: ='Data Update Form'!$G$184 -> 140 | BD74: ='Data Update Form'!$G$184 -> 140 | BE74: ='Data Update Form'!$G$184 -> 140
A75: 71
A76: 72 | B76: Sugarbeets | D76: 21 | AD76: Sugarbeets | AF76: 21
A77: 73
A78: 74 | B78: Sunflowers | C78: 0 | D78: 22 | E78: ='Data Update Form'!$C$193 -> 0 | F78: ='Data Update Form'!$C$195 -> 30 | H78: ='Data Update Form'!$C$197 -> 30 | I78: ='Data Update Form'!$C$199 -> 0 | J78: ='Data Update Form'!$C$199 -> 0 | K78: ='Data Update Form'!$C$201 -> 0 | L78: ='Data Update Form'!$C$201 -> 0 | M78: ='Data Update Form'!$C$201 -> 0 | N78: ='Data Update Form'!$C$201 -> 0 | O78: ='Data Update Form'!$C$201 -> 0 | P78: ='Data Update Form'!$C$203 -> 70 | Q78: ='Data Update Form'!$C$203 -> 70 | R78: ='Data Update Form'!$C$203 -> 70 | S78: ='Data Update Form'!$C$203 -> 70 | T78: ='Data Update Form'!$C$203 -> 70 | U78: ='Data Update Form'!$C$203 -> 70 | V78: ='Data Update Form'!$C$203 -> 70 | W78: ='Data Update Form'!$C$203 -> 70 | X78: ='Data Update Form'!$C$203 -> 70 | Y78: ='Data Update Form'!$C$203 -> 70 | Z78: ='Data Update Form'!$C$203 -> 70 | AA78: ='Data Update Form'!$C$203 -> 70 | AB78: ='Data Update Form'!$C$203 -> 70 | AC78: ='Data Update Form'!$C$203 -> 70 | AD78: Sunflowers | AE78: 0 | AF78: 22 | AG78: ='Data Update Form'!$C$194 -> 0 | AH78: ='Data Update Form'!$C$196 -> 0 | AJ78: ='Data Update Form'!$C$198 -> 0 | AK78: ='Data Update Form'!$C$200 -> 0 | AL78: ='Data Update Form'!$C$200 -> 0 | AM78: ='Data Update Form'!$C$202 -> 0 | AN78: ='Data Update Form'!$C$202 -> 0 | AO78: ='Data Update Form'!$C$202 -> 0 | AP78: ='Data Update Form'!$C$202 -> 0 | AQ78: ='Data Update Form'!$C$202 -> 0 | AR78: ='Data Update Form'!$C$204 -> 40 | AS78: ='Data Update Form'!$C$204 -> 40 | AT78: ='Data Update Form'!$C$204 -> 40 | AU78: ='Data Update Form'!$C$204 -> 40 | AV78: ='Data Update Form'!$C$204 -> 40 | AW78: ='Data Update Form'!$C$204 -> 40 | AX78: ='Data Update Form'!$C$204 -> 40 | AY78: ='Data Update Form'!$C$204 -> 40 | AZ78: ='Data Update Form'!$C$204 -> 40 | BA78: ='Data Update Form'!$C$204 -> 40 | BB78: ='Data Update Form'!$C$204 -> 40 | BC78: ='Data Update Form'!$C$204 -> 40 | BD78: ='Data Update Form'!$C$204 -> 40 | BE78: ='Data Update Form'!$C$204 -> 40
A79: 75 | B79: Sunflowers | C79: 1901 | D79: 22 | E79: ='Data Update Form'!$D$193 -> 0 | F79: ='Data Update Form'!$D$195 -> 50 | H79: ='Data Update Form'!$D$197 -> 50 | I79: ='Data Update Form'!$D$199 -> 0 | J79: ='Data Update Form'!$D$199 -> 0 | K79: ='Data Update Form'!$D$201 -> 15 | L79: ='Data Update Form'!$D$201 -> 15 | M79: ='Data Update Form'!$D$201 -> 15 | N79: ='Data Update Form'!$D$201 -> 15 | O79: ='Data Update Form'!$D$201 -> 15 | P79: ='Data Update Form'!$D$203 -> 90 | Q79: ='Data Update Form'!$D$203 -> 90 | R79: ='Data Update Form'!$D$203 -> 90 | S79: ='Data Update Form'!$D$203 -> 90 | T79: ='Data Update Form'!$D$203 -> 90 | U79: ='Data Update Form'!$D$203 -> 90 | V79: ='Data Update Form'!$D$203 -> 90 | W79: ='Data Update Form'!$D$203 -> 90 | X79: ='Data Update Form'!$D$203 -> 90 | Y79: ='Data Update Form'!$D$203 -> 90 | Z79: ='Data Update Form'!$D$203 -> 90 | AA79: ='Data Update Form'!$D$203 -> 90 | AB79: ='Data Update Form'!$D$203 -> 90 | AC79: ='Data Update Form'!$D$203 -> 90 | AD79: Sunflowers | AE79: 1901 | AF79: 22 | AG79: ='Data Update Form'!$D$194 -> 0 | AH79: ='Data Update Form'!$D$196 -> 20 | AJ79: ='Data Update Form'!$D$198 -> 20 | AK79: ='Data Update Form'!$D$200 -> 0 | AL79: ='Data Update Form'!$D$200 -> 0 | AM79: ='Data Update Form'!$D$202 -> 0 | AN79: ='Data Update Form'!$D$202 -> 0 | AO79: ='Data Update Form'!$D$202 -> 0 | AP79: ='Data Update Form'!$D$202 -> 0 | AQ79: ='Data Update Form'!$D$202 -> 0 | AR79: ='Data Update Form'!$D$204 -> 60 | AS79: ='Data Update Form'!$D$204 -> 60 | AT79: ='Data Update Form'!$D$204 -> 60 | AU79: ='Data Update Form'!$D$204 -> 60 | AV79: ='Data Update Form'!$D$204 -> 60 | AW79: ='Data Update Form'!$D$204 -> 60 | AX79: ='Data Update Form'!$D$204 -> 60 | AY79: ='Data Update Form'!$D$204 -> 60 | AZ79: ='Data Update Form'!$D$204 -> 60 | BA79: ='Data Update Form'!$D$204 -> 60 | BB79: ='Data Update Form'!$D$204 -> 60 | BC79: ='Data Update Form'!$D$204 -> 60 | BD79: ='Data Update Form'!$D$204 -> 60 | BE79: ='Data Update Form'!$D$204 -> 60
A80: 76 | B80: Sunflowers | C80: 2401 | D80: 22 | E80: ='Data Update Form'!$E$193 -> 0 | F80: ='Data Update Form'!$E$195 -> 70 | H80: ='Data Update Form'!$E$197 -> 70 | I80: ='Data Update Form'!$E$199 -> 0 | J80: ='Data Update Form'!$E$199 -> 0 | K80: ='Data Update Form'!$E$201 -> 25 | L80: ='Data Update Form'!$E$201 -> 25 | M80: ='Data Update Form'!$E$201 -> 25 | N80: ='Data Update Form'!$E$201 -> 25 | O80: ='Data Update Form'!$E$201 -> 25 | P80: ='Data Update Form'!$E$203 -> 110 | Q80: ='Data Update Form'!$E$203 -> 110 | R80: ='Data Update Form'!$E$203 -> 110 | S80: ='Data Update Form'!$E$203 -> 110 | T80: ='Data Update Form'!$E$203 -> 110 | U80: ='Data Update Form'!$E$203 -> 110 | V80: ='Data Update Form'!$E$203 -> 110 | W80: ='Data Update Form'!$E$203 -> 110 | X80: ='Data Update Form'!$E$203 -> 110 | Y80: ='Data Update Form'!$E$203 -> 110 | Z80: ='Data Update Form'!$E$203 -> 110 | AA80: ='Data Update Form'!$E$203 -> 110 | AB80: ='Data Update Form'!$E$203 -> 110 | AC80: ='Data Update Form'!$E$203 -> 110 | AD80: Sunflowers | AE80: 2401 | AF80: 22 | AG80: ='Data Update Form'!$E$194 -> 0 | AH80: ='Data Update Form'!$E$196 -> 40 | AJ80: ='Data Update Form'!$E$198 -> 40 | AK80: ='Data Update Form'!$E$200 -> 0 | AL80: ='Data Update Form'!$E$200 -> 0 | AM80: ='Data Update Form'!$E$202 -> 0 | AN80: ='Data Update Form'!$E$202 -> 0 | AO80: ='Data Update Form'!$E$202 -> 0 | AP80: ='Data Update Form'!$E$202 -> 0 | AQ80: ='Data Update Form'!$E$202 -> 0 | AR80: ='Data Update Form'!$E$204 -> 80 | AS80: ='Data Update Form'!$E$204 -> 80 | AT80: ='Data Update Form'!$E$204 -> 80 | AU80: ='Data Update Form'!$E$204 -> 80 | AV80: ='Data Update Form'!$E$204 -> 80 | AW80: ='Data Update Form'!$E$204 -> 80 | AX80: ='Data Update Form'!$E$204 -> 80 | AY80: ='Data Update Form'!$E$204 -> 80 | AZ80: ='Data Update Form'!$E$204 -> 80 | BA80: ='Data Update Form'!$E$204 -> 80 | BB80: ='Data Update Form'!$E$204 -> 80 | BC80: ='Data Update Form'!$E$204 -> 80 | BD80: ='Data Update Form'!$E$204 -> 80 | BE80: ='Data Update Form'!$E$204 -> 80
A81: 77 | B81: Sunflowers | C81: 2901 | D81: 22 | E81: ='Data Update Form'!$F$193 -> 0 | F81: ='Data Update Form'!$F$195 -> 90 | H81: ='Data Update Form'!$F$197 -> 90 | I81: ='Data Update Form'!$F$199 -> 0 | J81: ='Data Update Form'!$F$199 -> 0 | K81: ='Data Update Form'!$F$201 -> 45 | L81: ='Data Update Form'!$F$201 -> 45 | M81: ='Data Update Form'!$F$201 -> 45 | N81: ='Data Update Form'!$F$201 -> 45 | O81: ='Data Update Form'!$F$201 -> 45 | P81: ='Data Update Form'!$F$203 -> 130 | Q81: ='Data Update Form'!$F$203 -> 130 | R81: ='Data Update Form'!$F$203 -> 130 | S81: ='Data Update Form'!$F$203 -> 130 | T81: ='Data Update Form'!$F$203 -> 130 | U81: ='Data Update Form'!$F$203 -> 130 | V81: ='Data Update Form'!$F$203 -> 130 | W81: ='Data Update Form'!$F$203 -> 130 | X81: ='Data Update Form'!$F$203 -> 130 | Y81: ='Data Update Form'!$F$203 -> 130 | Z81: ='Data Update Form'!$F$203 -> 130 | AA81: ='Data Update Form'!$F$203 -> 130 | AB81: ='Data Update Form'!$F$203 -> 130 | AC81: ='Data Update Form'!$F$203 -> 130 | AD81: Sunflowers | AE81: 2901 | AF81: 22 | AG81: ='Data Update Form'!$F$194 -> 0 | AH81: ='Data Update Form'!$F$196 -> 60 | AJ81: ='Data Update Form'!$F$198 -> 60 | AK81: ='Data Update Form'!$F$200 -> 0 | AL81: ='Data Update Form'!$F$200 -> 0 | AM81: ='Data Update Form'!$F$202 -> 25 | AN81: ='Data Update Form'!$F$202 -> 25 | AO81: ='Data Update Form'!$F$202 -> 25 | AP81: ='Data Update Form'!$F$202 -> 25 | AQ81: ='Data Update Form'!$F$202 -> 25 | AR81: ='Data Update Form'!$F$204 -> 100 | AS81: ='Data Update Form'!$F$204 -> 100 | AT81: ='Data Update Form'!$F$204 -> 100 | AU81: ='Data Update Form'!$F$204 -> 100 | AV81: ='Data Update Form'!$F$204 -> 100 | AW81: ='Data Update Form'!$F$204 -> 100 | AX81: ='Data Update Form'!$F$204 -> 100 | AY81: ='Data Update Form'!$F$204 -> 100 | AZ81: ='Data Update Form'!$F$204 -> 100 | BA81: ='Data Update Form'!$F$204 -> 100 | BB81: ='Data Update Form'!$F$204 -> 100 | BC81: ='Data Update Form'!$F$204 -> 100 | BD81: ='Data Update Form'!$F$204 -> 100 | BE81: ='Data Update Form'!$F$204 -> 100
A82: 78 | B82: Sunflowers | C82: 3300 | D82: 22 | E82: ='Data Update Form'!$G$193 -> 0 | F82: ='Data Update Form'!$G$195 -> 110 | H82: ='Data Update Form'!$G$197 -> 110 | I82: ='Data Update Form'!$G$199 -> 0 | J82: ='Data Update Form'!$G$199 -> 0 | K82: ='Data Update Form'!$G$201 -> 65 | L82: ='Data Update Form'!$G$201 -> 65 | M82: ='Data Update Form'!$G$201 -> 65 | N82: ='Data Update Form'!$G$201 -> 65 | O82: ='Data Update Form'!$G$201 -> 65 | P82: ='Data Update Form'!$G$203 -> 150 | Q82: ='Data Update Form'!$G$203 -> 150 | R82: ='Data Update Form'!$G$203 -> 150 | S82: ='Data Update Form'!$G$203 -> 150 | T82: ='Data Update Form'!$G$203 -> 150 | U82: ='Data Update Form'!$G$203 -> 150 | V82: ='Data Update Form'!$G$203 -> 150 | W82: ='Data Update Form'!$G$203 -> 150 | X82: ='Data Update Form'!$G$203 -> 150 | Y82: ='Data Update Form'!$G$203 -> 150 | Z82: ='Data Update Form'!$G$203 -> 150 | AA82: ='Data Update Form'!$G$203 -> 150 | AB82: ='Data Update Form'!$G$203 -> 150 | AC82: ='Data Update Form'!$G$203 -> 150 | AD82: Sunflowers | AE82: 3300 | AF82: 22 | AG82: ='Data Update Form'!$G$194 -> 0 | AH82: ='Data Update Form'!$G$196 -> 80 | AJ82: ='Data Update Form'!$G$198 -> 80 | AK82: ='Data Update Form'!$G$200 -> 0 | AL82: ='Data Update Form'!$G$200 -> 0 | AM82: ='Data Update Form'!$G$202 -> 45 | AN82: ='Data Update Form'!$G$202 -> 45 | AO82: ='Data Update Form'!$G$202 -> 45 | AP82: ='Data Update Form'!$G$202 -> 45 | AQ82: ='Data Update Form'!$G$202 -> 45 | AR82: ='Data Update Form'!$G$204 -> 120 | AS82: ='Data Update Form'!$G$204 -> 120 | AT82: ='Data Update Form'!$G$204 -> 120 | AU82: ='Data Update Form'!$G$204 -> 120 | AV82: ='Data Update Form'!$G$204 -> 120 | AW82: ='Data Update Form'!$G$204 -> 120 | AX82: ='Data Update Form'!$G$204 -> 120 | AY82: ='Data Update Form'!$G$204 -> 120 | AZ82: ='Data Update Form'!$G$204 -> 120 | BA82: ='Data Update Form'!$G$204 -> 120 | BB82: ='Data Update Form'!$G$204 -> 120 | BC82: ='Data Update Form'!$G$204 -> 120 | BD82: ='Data Update Form'!$G$204 -> 120 | BE82: ='Data Update Form'!$G$204 -> 120
A83: 79
A84: 80 | B84: Sweet Corn | C84: 0 | E84: ='Data Update Form'!$C$383 -> 10 | F84: ='Data Update Form'!$C$385 -> 70 | H84: ='Data Update Form'!$C$387 -> 80 | I84: ='Data Update Form'!$C$389 -> 80 | J84: ='Data Update Form'!$C$389 -> 80 | K84: ='Data Update Form'!$C$391 -> 70 | L84: ='Data Update Form'!$C$391 -> 70 | M84: ='Data Update Form'!$C$391 -> 70 | N84: ='Data Update Form'!$C$391 -> 70 | O84: ='Data Update Form'!$C$391 -> 70 | P84: ='Data Update Form'!$C$393 -> 110 | Q84: ='Data Update Form'!$C$393 -> 110 | R84: ='Data Update Form'!$C$393 -> 110 | S84: ='Data Update Form'!$C$393 -> 110 | T84: ='Data Update Form'!$C$393 -> 110 | U84: ='Data Update Form'!$C$393 -> 110 | V84: ='Data Update Form'!$C$393 -> 110 | W84: ='Data Update Form'!$C$393 -> 110 | X84: ='Data Update Form'!$C$393 -> 110 | Y84: ='Data Update Form'!$C$393 -> 110 | Z84: ='Data Update Form'!$C$393 -> 110 | AA84: ='Data Update Form'!$C$393 -> 110 | AB84: ='Data Update Form'!$C$393 -> 110 | AC84: ='Data Update Form'!$C$393 -> 110 | AD84: Sweet Corn | AE84: 0 | AG84: ='Data Update Form'!$C$384 -> 0 | AH84: ='Data Update Form'!$C$386 -> 40 | AJ84: ='Data Update Form'!$C$388 -> 50 | AK84: ='Data Update Form'!$C$390 -> 50 | AL84: ='Data Update Form'!$C$390 -> 50 | AM84: ='Data Update Form'!$C$392 -> 40 | AN84: ='Data Update Form'!$C$392 -> 40 | AO84: ='Data Update Form'!$C$392 -> 40 | AP84: ='Data Update Form'!$C$392 -> 40 | AQ84: ='Data Update Form'!$C$392 -> 40 | AR84: ='Data Update Form'!$C$394 -> 80 | AS84: ='Data Update Form'!$C$394 -> 80 | AT84: ='Data Update Form'!$C$394 -> 80 | AU84: ='Data Update Form'!$C$394 -> 80 | AV84: ='Data Update Form'!$C$394 -> 80 | AW84: ='Data Update Form'!$C$394 -> 80 | AX84: ='Data Update Form'!$C$394 -> 80 | AY84: ='Data Update Form'!$C$394 -> 80 | AZ84: ='Data Update Form'!$C$394 -> 80 | BA84: ='Data Update Form'!$C$394 -> 80 | BB84: ='Data Update Form'!$C$394 -> 80 | BC84: ='Data Update Form'!$C$394 -> 80 | BD84: ='Data Update Form'!$C$394 -> 80 | BE84: ='Data Update Form'!$C$394 -> 80
A85: 81 | B85: Sweet Corn | C85: 6 | E85: ='Data Update Form'!$D$383 -> 30 | F85: ='Data Update Form'!$D$385 -> 90 | H85: ='Data Update Form'!$D$387 -> 100 | I85: ='Data Update Form'!$D$389 -> 100 | J85: ='Data Update Form'!$D$389 -> 100 | K85: ='Data Update Form'!$D$391 -> 90 | L85: ='Data Update Form'!$D$391 -> 90 | M85: ='Data Update Form'!$D$391 -> 90 | N85: ='Data Update Form'!$D$391 -> 90 | O85: ='Data Update Form'!$D$391 -> 90 | P85: ='Data Update Form'!$D$393 -> 130 | Q85: ='Data Update Form'!$D$393 -> 130 | R85: ='Data Update Form'!$D$393 -> 130 | S85: ='Data Update Form'!$D$393 -> 130 | T85: ='Data Update Form'!$D$393 -> 130 | U85: ='Data Update Form'!$D$393 -> 130 | V85: ='Data Update Form'!$D$393 -> 130 | W85: ='Data Update Form'!$D$393 -> 130 | X85: ='Data Update Form'!$D$393 -> 130 | Y85: ='Data Update Form'!$D$393 -> 130 | Z85: ='Data Update Form'!$D$393 -> 130 | AA85: ='Data Update Form'!$D$393 -> 130 | AB85: ='Data Update Form'!$D$393 -> 130 | AC85: ='Data Update Form'!$D$393 -> 130 | AD85: Sweet Corn | AE85: 6 | AG85: ='Data Update Form'!$D$384 -> 0 | AH85: ='Data Update Form'!$D$386 -> 60 | AJ85: ='Data Update Form'!$D$388 -> 70 | AK85: ='Data Update Form'!$D$390 -> 70 | AL85: ='Data Update Form'!$D$390 -> 70 | AM85: ='Data Update Form'!$D$392 -> 60 | AN85: ='Data Update Form'!$D$392 -> 60 | AO85: ='Data Update Form'!$D$392 -> 60 | AP85: ='Data Update Form'!$D$392 -> 60 | AQ85: ='Data Update Form'!$D$392 -> 60 | AR85: ='Data Update Form'!$D$394 -> 100 | AS85: ='Data Update Form'!$D$394 -> 100 | AT85: ='Data Update Form'!$D$394 -> 100 | AU85: ='Data Update Form'!$D$394 -> 100 | AV85: ='Data Update Form'!$D$394 -> 100 | AW85: ='Data Update Form'!$D$394 -> 100 | AX85: ='Data Update Form'!$D$394 -> 100 | AY85: ='Data Update Form'!$D$394 -> 100 | AZ85: ='Data Update Form'!$D$394 -> 100 | BA85: ='Data Update Form'!$D$394 -> 100 | BB85: ='Data Update Form'!$D$394 -> 100 | BC85: ='Data Update Form'!$D$394 -> 100 | BD85: ='Data Update Form'!$D$394 -> 100 | BE85: ='Data Update Form'!$D$394 -> 100
A86: 82 | B86: Sweet Corn | C86: 8 | E86: ='Data Update Form'!$E$383 -> 50 | F86: ='Data Update Form'!$E$385 -> 110 | H86: ='Data Update Form'!$E$387 -> 120 | I86: ='Data Update Form'!$E$389 -> 120 | J86: ='Data Update Form'!$E$389 -> 120 | K86: ='Data Update Form'!$E$391 -> 110 | L86: ='Data Update Form'!$E$391 -> 110 | M86: ='Data Update Form'!$E$391 -> 110 | N86: ='Data Update Form'!$E$391 -> 110 | O86: ='Data Update Form'!$E$391 -> 110 | P86: ='Data Update Form'!$E$393 -> 150 | Q86: ='Data Update Form'!$E$393 -> 150 | R86: ='Data Update Form'!$E$393 -> 150 | S86: ='Data Update Form'!$E$393 -> 150 | T86: ='Data Update Form'!$E$393 -> 150 | U86: ='Data Update Form'!$E$393 -> 150 | V86: ='Data Update Form'!$E$393 -> 150 | W86: ='Data Update Form'!$E$393 -> 150 | X86: ='Data Update Form'!$E$393 -> 150 | Y86: ='Data Update Form'!$E$393 -> 150 | Z86: ='Data Update Form'!$E$393 -> 150 | AA86: ='Data Update Form'!$E$393 -> 150 | AB86: ='Data Update Form'!$E$393 -> 150 | AC86: ='Data Update Form'!$E$393 -> 150 | AD86: Sweet Corn | AE86: 8 | AG86: ='Data Update Form'!$E$384 -> 20 | AH86: ='Data Update Form'!$E$386 -> 80 | AJ86: ='Data Update Form'!$E$388 -> 90 | AK86: ='Data Update Form'!$E$390 -> 90 | AL86: ='Data Update Form'!$E$390 -> 90 | AM86: ='Data Update Form'!$E$392 -> 80 | AN86: ='Data Update Form'!$E$392 -> 80 | AO86: ='Data Update Form'!$E$392 -> 80 | AP86: ='Data Update Form'!$E$392 -> 80 | AQ86: ='Data Update Form'!$E$392 -> 80 | AR86: ='Data Update Form'!$E$394 -> 120 | AS86: ='Data Update Form'!$E$394 -> 120 | AT86: ='Data Update Form'!$E$394 -> 120 | AU86: ='Data Update Form'!$E$394 -> 120 | AV86: ='Data Update Form'!$E$394 -> 120 | AW86: ='Data Update Form'!$E$394 -> 120 | AX86: ='Data Update Form'!$E$394 -> 120 | AY86: ='Data Update Form'!$E$394 -> 120 | AZ86: ='Data Update Form'!$E$394 -> 120 | BA86: ='Data Update Form'!$E$394 -> 120 | BB86: ='Data Update Form'!$E$394 -> 120 | BC86: ='Data Update Form'!$E$394 -> 120 | BD86: ='Data Update Form'!$E$394 -> 120 | BE86: ='Data Update Form'!$E$394 -> 120
A87: 83 | B87: Sweet Corn | C87: 10 | E87: ='Data Update Form'!$F$383 -> 70 | F87: ='Data Update Form'!$F$385 -> 130 | H87: ='Data Update Form'!$F$387 -> 140 | I87: ='Data Update Form'!$F$389 -> 140 | J87: ='Data Update Form'!$F$389 -> 140 | K87: ='Data Update Form'!$F$391 -> 130 | L87: ='Data Update Form'!$F$391 -> 130 | M87: ='Data Update Form'!$F$391 -> 130 | N87: ='Data Update Form'!$F$391 -> 130 | O87: ='Data Update Form'!$F$391 -> 130 | P87: ='Data Update Form'!$F$393 -> 170 | Q87: ='Data Update Form'!$F$393 -> 170 | R87: ='Data Update Form'!$F$393 -> 170 | S87: ='Data Update Form'!$F$393 -> 170 | T87: ='Data Update Form'!$F$393 -> 170 | U87: ='Data Update Form'!$F$393 -> 170 | V87: ='Data Update Form'!$F$393 -> 170 | W87: ='Data Update Form'!$F$393 -> 170 | X87: ='Data Update Form'!$F$393 -> 170 | Y87: ='Data Update Form'!$F$393 -> 170 | Z87: ='Data Update Form'!$F$393 -> 170 | AA87: ='Data Update Form'!$F$393 -> 170 | AB87: ='Data Update Form'!$F$393 -> 170 | AC87: ='Data Update Form'!$F$393 -> 170 | AD87: Sweet Corn | AE87: 10 | AG87: ='Data Update Form'!$F$384 -> 40 | AH87: ='Data Update Form'!$F$386 -> 100 | AJ87: ='Data Update Form'!$F$388 -> 110 | AK87: ='Data Update Form'!$F$390 -> 110 | AL87: ='Data Update Form'!$F$390 -> 110 | AM87: ='Data Update Form'!$F$392 -> 100 | AN87: ='Data Update Form'!$F$392 -> 100 | AO87: ='Data Update Form'!$F$392 -> 100 | AP87: ='Data Update Form'!$F$392 -> 100 | AQ87: ='Data Update Form'!$F$392 -> 100 | AR87: ='Data Update Form'!$F$394 -> 140 | AS87: ='Data Update Form'!$F$394 -> 140 | AT87: ='Data Update Form'!$F$394 -> 140 | AU87: ='Data Update Form'!$F$394 -> 140 | AV87: ='Data Update Form'!$F$394 -> 140 | AW87: ='Data Update Form'!$F$394 -> 140 | AX87: ='Data Update Form'!$F$394 -> 140 | AY87: ='Data Update Form'!$F$394 -> 140 | AZ87: ='Data Update Form'!$F$394 -> 140 | BA87: ='Data Update Form'!$F$394 -> 140 | BB87: ='Data Update Form'!$F$394 -> 140 | BC87: ='Data Update Form'!$F$394 -> 140 | BD87: ='Data Update Form'!$F$394 -> 140 | BE87: ='Data Update Form'!$F$394 -> 140
A88: 84
A89: 85 | B89: Peas | C89: 0 | E89: ='Data Update Form'!$C$403 -> 0 | F89: ='Data Update Form'!$C$405 -> 0 | H89: ='Data Update Form'!$C$407 -> 0 | I89: ='Data Update Form'!$C$409 -> 0 | J89: ='Data Update Form'!$C$409 -> 0 | K89: ='Data Update Form'!$C$411 -> 0 | L89: ='Data Update Form'!$C$411 -> 0 | M89: ='Data Update Form'!$C$411 -> 0 | N89: ='Data Update Form'!$C$411 -> 0 | O89: ='Data Update Form'!$C$411 -> 0 | P89: ='Data Update Form'!$C$413 -> 0 | Q89: ='Data Update Form'!$C$413 -> 0 | R89: ='Data Update Form'!$C$413 -> 0 | S89: ='Data Update Form'!$C$413 -> 0 | T89: ='Data Update Form'!$C$413 -> 0 | U89: ='Data Update Form'!$C$413 -> 0 | V89: ='Data Update Form'!$C$413 -> 0 | W89: ='Data Update Form'!$C$413 -> 0 | X89: ='Data Update Form'!$C$413 -> 0 | Y89: ='Data Update Form'!$C$413 -> 0 | Z89: ='Data Update Form'!$C$413 -> 0 | AA89: ='Data Update Form'!$C$413 -> 0 | AB89: ='Data Update Form'!$C$413 -> 0 | AC89: ='Data Update Form'!$C$413 -> 0 | AD89: Peas | AE89: 0 | AG89: ='Data Update Form'!$C$404 -> 0 | AH89: ='Data Update Form'!$C$406 -> 0 | AJ89: ='Data Update Form'!$C$408 -> 0 | AK89: ='Data Update Form'!$C$410 -> 0 | AL89: ='Data Update Form'!$C$410 -> 0 | AM89: ='Data Update Form'!$C$412 -> 0 | AN89: ='Data Update Form'!$C$412 -> 0 | AO89: ='Data Update Form'!$C$412 -> 0 | AP89: ='Data Update Form'!$C$412 -> 0 | AQ89: ='Data Update Form'!$C$412 -> 0 | AR89: ='Data Update Form'!$C$414 -> 0 | AS89: ='Data Update Form'!$C$414 -> 0 | AT89: ='Data Update Form'!$C$414 -> 0 | AU89: ='Data Update Form'!$C$414 -> 0 | AV89: ='Data Update Form'!$C$414 -> 0 | AW89: ='Data Update Form'!$C$414 -> 0 | AX89: ='Data Update Form'!$C$414 -> 0 | AY89: ='Data Update Form'!$C$414 -> 0 | AZ89: ='Data Update Form'!$C$414 -> 0 | BA89: ='Data Update Form'!$C$414 -> 0 | BB89: ='Data Update Form'!$C$414 -> 0 | BC89: ='Data Update Form'!$C$414 -> 0 | BD89: ='Data Update Form'!$C$414 -> 0 | BE89: ='Data Update Form'!$C$414 -> 0
A90: 86 | B90: Peas | C90: 1000 | E90: ='Data Update Form'!$D$403 -> 0 | F90: ='Data Update Form'!$D$405 -> 0 | H90: ='Data Update Form'!$D$407 -> 0 | I90: ='Data Update Form'!$D$409 -> 0 | J90: ='Data Update Form'!$D$409 -> 0 | K90: ='Data Update Form'!$D$411 -> 0 | L90: ='Data Update Form'!$D$411 -> 0 | M90: ='Data Update Form'!$D$411 -> 0 | N90: ='Data Update Form'!$D$411 -> 0 | O90: ='Data Update Form'!$D$411 -> 0 | P90: ='Data Update Form'!$D$413 -> 10 | Q90: ='Data Update Form'!$D$413 -> 10 | R90: ='Data Update Form'!$D$413 -> 10 | S90: ='Data Update Form'!$D$413 -> 10 | T90: ='Data Update Form'!$D$413 -> 10 | U90: ='Data Update Form'!$D$413 -> 10 | V90: ='Data Update Form'!$D$413 -> 10 | W90: ='Data Update Form'!$D$413 -> 10 | X90: ='Data Update Form'!$D$413 -> 10 | Y90: ='Data Update Form'!$D$413 -> 10 | Z90: ='Data Update Form'!$D$413 -> 10 | AA90: ='Data Update Form'!$D$413 -> 10 | AB90: ='Data Update Form'!$D$413 -> 10 | AC90: ='Data Update Form'!$D$413 -> 10 | AD90: Peas | AE90: 1000 | AG90: ='Data Update Form'!$D$404 -> 0 | AH90: ='Data Update Form'!$D$406 -> 0 | AJ90: ='Data Update Form'!$D$408 -> 0 | AK90: ='Data Update Form'!$D$410 -> 0 | AL90: ='Data Update Form'!$D$410 -> 0 | AM90: ='Data Update Form'!$D$412 -> 0 | AN90: ='Data Update Form'!$D$412 -> 0 | AO90: ='Data Update Form'!$D$412 -> 0 | AP90: ='Data Update Form'!$D$412 -> 0 | AQ90: ='Data Update Form'!$D$412 -> 0 | AR90: ='Data Update Form'!$D$414 -> 0 | AS90: ='Data Update Form'!$D$414 -> 0 | AT90: ='Data Update Form'!$D$414 -> 0 | AU90: ='Data Update Form'!$D$414 -> 0 | AV90: ='Data Update Form'!$D$414 -> 0 | AW90: ='Data Update Form'!$D$414 -> 0 | AX90: ='Data Update Form'!$D$414 -> 0 | AY90: ='Data Update Form'!$D$414 -> 0 | AZ90: ='Data Update Form'!$D$414 -> 0 | BA90: ='Data Update Form'!$D$414 -> 0 | BB90: ='Data Update Form'!$D$414 -> 0 | BC90: ='Data Update Form'!$D$414 -> 0 | BD90: ='Data Update Form'!$D$414 -> 0 | BE90: ='Data Update Form'!$D$414 -> 0
A91: 87 | B91: Peas | C91: 2000 | E91: ='Data Update Form'!$E$403 -> 0 | F91: ='Data Update Form'!$E$405 -> 0 | H91: ='Data Update Form'!$E$407 -> 10 | I91: ='Data Update Form'!$E$409 -> 10 | J91: ='Data Update Form'!$E$409 -> 10 | K91: ='Data Update Form'!$E$411 -> 0 | L91: ='Data Update Form'!$E$411 -> 0 | M91: ='Data Update Form'!$E$411 -> 0 | N91: ='Data Update Form'!$E$411 -> 0 | O91: ='Data Update Form'!$E$411 -> 0 | P91: ='Data Update Form'!$E$413 -> 20 | Q91: ='Data Update Form'!$E$413 -> 20 | R91: ='Data Update Form'!$E$413 -> 20 | S91: ='Data Update Form'!$E$413 -> 20 | T91: ='Data Update Form'!$E$413 -> 20 | U91: ='Data Update Form'!$E$413 -> 20 | V91: ='Data Update Form'!$E$413 -> 20 | W91: ='Data Update Form'!$E$413 -> 20 | X91: ='Data Update Form'!$E$413 -> 20 | Y91: ='Data Update Form'!$E$413 -> 20 | Z91: ='Data Update Form'!$E$413 -> 20 | AA91: ='Data Update Form'!$E$413 -> 20 | AB91: ='Data Update Form'!$E$413 -> 20 | AC91: ='Data Update Form'!$E$413 -> 20 | AD91: Peas | AE91: 2000 | AG91: ='Data Update Form'!$E$404 -> 0 | AH91: ='Data Update Form'!$E$406 -> 0 | AJ91: ='Data Update Form'!$E$408 -> 0 | AK91: ='Data Update Form'!$E$410 -> 0 | AL91: ='Data Update Form'!$E$410 -> 0 | AM91: ='Data Update Form'!$E$412 -> 0 | AN91: ='Data Update Form'!$E$412 -> 0 | AO91: ='Data Update Form'!$E$412 -> 0 | AP91: ='Data Update Form'!$E$412 -> 0 | AQ91: ='Data Update Form'!$E$412 -> 0 | AR91: ='Data Update Form'!$E$414 -> 10 | AS91: ='Data Update Form'!$E$414 -> 10 | AT91: ='Data Update Form'!$E$414 -> 10 | AU91: ='Data Update Form'!$E$414 -> 10 | AV91: ='Data Update Form'!$E$414 -> 10 | AW91: ='Data Update Form'!$E$414 -> 10 | AX91: ='Data Update Form'!$E$414 -> 10 | AY91: ='Data Update Form'!$E$414 -> 10 | AZ91: ='Data Update Form'!$E$414 -> 10 | BA91: ='Data Update Form'!$E$414 -> 10 | BB91: ='Data Update Form'!$E$414 -> 10 | BC91: ='Data Update Form'!$E$414 -> 10 | BD91: ='Data Update Form'!$E$414 -> 10 | BE91: ='Data Update Form'!$E$414 -> 10
A92: 88 | B92: Peas | C92: 4000 | E92: ='Data Update Form'!$F$403 -> 0 | F92: ='Data Update Form'!$F$405 -> 10 | H92: ='Data Update Form'!$F$407 -> 20 | I92: ='Data Update Form'!$F$409 -> 20 | J92: ='Data Update Form'!$F$409 -> 20 | K92: ='Data Update Form'!$F$411 -> 10 | L92: ='Data Update Form'!$F$411 -> 10 | M92: ='Data Update Form'!$F$411 -> 10 | N92: ='Data Update Form'!$F$411 -> 10 | O92: ='Data Update Form'!$F$411 -> 10 | P92: ='Data Update Form'!$F$413 -> 40 | Q92: ='Data Update Form'!$F$413 -> 40 | R92: ='Data Update Form'!$F$413 -> 40 | S92: ='Data Update Form'!$F$413 -> 40 | T92: ='Data Update Form'!$F$413 -> 40 | U92: ='Data Update Form'!$F$413 -> 40 | V92: ='Data Update Form'!$F$413 -> 40 | W92: ='Data Update Form'!$F$413 -> 40 | X92: ='Data Update Form'!$F$413 -> 40 | Y92: ='Data Update Form'!$F$413 -> 40 | Z92: ='Data Update Form'!$F$413 -> 40 | AA92: ='Data Update Form'!$F$413 -> 40 | AB92: ='Data Update Form'!$F$413 -> 40 | AC92: ='Data Update Form'!$F$413 -> 40 | AD92: Peas | AE92: 4000 | AG92: ='Data Update Form'!$F$404 -> 0 | AH92: ='Data Update Form'!$F$406 -> 0 | AJ92: ='Data Update Form'!$F$408 -> 0 | AK92: ='Data Update Form'!$F$410 -> 0 | AL92: ='Data Update Form'!$F$410 -> 0 | AM92: ='Data Update Form'!$F$412 -> 0 | AN92: ='Data Update Form'!$F$412 -> 0 | AO92: ='Data Update Form'!$F$412 -> 0 | AP92: ='Data Update Form'!$F$412 -> 0 | AQ92: ='Data Update Form'!$F$412 -> 0 | AR92: ='Data Update Form'!$F$414 -> 20 | AS92: ='Data Update Form'!$F$414 -> 20 | AT92: ='Data Update Form'!$F$414 -> 20 | AU92: ='Data Update Form'!$F$414 -> 20 | AV92: ='Data Update Form'!$F$414 -> 20 | AW92: ='Data Update Form'!$F$414 -> 20 | AX92: ='Data Update Form'!$F$414 -> 20 | AY92: ='Data Update Form'!$F$414 -> 20 | AZ92: ='Data Update Form'!$F$414 -> 20 | BA92: ='Data Update Form'!$F$414 -> 20 | BB92: ='Data Update Form'!$F$414 -> 20 | BC92: ='Data Update Form'!$F$414 -> 20 | BD92: ='Data Update Form'!$F$414 -> 20 | BE92: ='Data Update Form'!$F$414 -> 20
A93: 89
A94: 90 | B94: Sorghum | C94: 0 | E94: ='Data Update Form'!$C$459 -> 0 | F94: ='Data Update Form'!$C$461 -> 0 | H94: ='Data Update Form'!$C$463 -> 35 | I94: ='Data Update Form'!$C$465 -> 35 | J94: ='Data Update Form'!$C$465 -> 35 | K94: ='Data Update Form'!$C$467 -> 35 | L94: ='Data Update Form'!$C$467 -> 35 | M94: ='Data Update Form'!$C$467 -> 35 | N94: ='Data Update Form'!$C$467 -> 35 | O94: ='Data Update Form'!$C$467 -> 35 | P94: ='Data Update Form'!$C$469 -> 75 | Q94: ='Data Update Form'!$C$469 -> 75 | R94: ='Data Update Form'!$C$469 -> 75 | S94: ='Data Update Form'!$C$469 -> 75 | T94: ='Data Update Form'!$C$469 -> 75 | U94: ='Data Update Form'!$C$469 -> 75 | V94: ='Data Update Form'!$C$469 -> 75 | W94: ='Data Update Form'!$C$469 -> 75 | X94: ='Data Update Form'!$C$469 -> 75 | Y94: ='Data Update Form'!$C$469 -> 75 | Z94: ='Data Update Form'!$C$469 -> 75 | AA94: ='Data Update Form'!$C$469 -> 75 | AB94: ='Data Update Form'!$C$469 -> 75 | AC94: ='Data Update Form'!$C$469 -> 75 | AD94: Sorghum | AE94: 0 | AG94: ='Data Update Form'!$C$460 -> 0 | AH94: ='Data Update Form'!$C$462 -> 0 | AJ94: ='Data Update Form'!$C$464 -> 35 | AK94: ='Data Update Form'!$C$466 -> 35 | AL94: ='Data Update Form'!$C$466 -> 35 | AM94: ='Data Update Form'!$C$468 -> 35 | AN94: ='Data Update Form'!$C$468 -> 35 | AO94: ='Data Update Form'!$C$468 -> 35 | AP94: ='Data Update Form'!$C$468 -> 35 | AQ94: ='Data Update Form'!$C$468 -> 35 | AR94: ='Data Update Form'!$C$470 -> 75 | AS94: ='Data Update Form'!$C$470 -> 75 | AT94: ='Data Update Form'!$C$470 -> 75 | AU94: ='Data Update Form'!$C$470 -> 75 | AV94: ='Data Update Form'!$C$470 -> 75 | AW94: ='Data Update Form'!$C$470 -> 75 | AX94: ='Data Update Form'!$C$470 -> 75 | AY94: ='Data Update Form'!$C$470 -> 75 | AZ94: ='Data Update Form'!$C$470 -> 75 | BA94: ='Data Update Form'!$C$470 -> 75 | BB94: ='Data Update Form'!$C$470 -> 75 | BC94: ='Data Update Form'!$C$470 -> 75 | BD94: ='Data Update Form'!$C$470 -> 75 | BE94: ='Data Update Form'!$C$470 -> 75
A95: 91 | B95: Sorghum | C95: 5 | E95: ='Data Update Form'!$D$459 -> 0 | F95: ='Data Update Form'!$D$461 -> 25 | H95: ='Data Update Form'!$D$463 -> 85 | I95: ='Data Update Form'!$D$465 -> 85 | J95: ='Data Update Form'!$D$465 -> 85 | K95: ='Data Update Form'!$D$467 -> 85 | L95: ='Data Update Form'!$D$467 -> 85 | M95: ='Data Update Form'!$D$467 -> 85 | N95: ='Data Update Form'!$D$467 -> 85 | O95: ='Data Update Form'!$D$467 -> 85 | P95: ='Data Update Form'!$D$469 -> 125 | Q95: ='Data Update Form'!$D$469 -> 125 | R95: ='Data Update Form'!$D$469 -> 125 | S95: ='Data Update Form'!$D$469 -> 125 | T95: ='Data Update Form'!$D$469 -> 125 | U95: ='Data Update Form'!$D$469 -> 125 | V95: ='Data Update Form'!$D$469 -> 125 | W95: ='Data Update Form'!$D$469 -> 125 | X95: ='Data Update Form'!$D$469 -> 125 | Y95: ='Data Update Form'!$D$469 -> 125 | Z95: ='Data Update Form'!$D$469 -> 125 | AA95: ='Data Update Form'!$D$469 -> 125 | AB95: ='Data Update Form'!$D$469 -> 125 | AC95: ='Data Update Form'!$D$469 -> 125 | AD95: Sorghum | AE95: 5 | AG95: ='Data Update Form'!$D$460 -> 0 | AH95: ='Data Update Form'!$D$462 -> 25 | AJ95: ='Data Update Form'!$D$464 -> 85 | AK95: ='Data Update Form'!$D$466 -> 85 | AL95: ='Data Update Form'!$D$466 -> 85 | AM95: ='Data Update Form'!$D$468 -> 85 | AN95: ='Data Update Form'!$D$468 -> 85 | AO95: ='Data Update Form'!$D$468 -> 85 | AP95: ='Data Update Form'!$D$468 -> 85 | AQ95: ='Data Update Form'!$D$468 -> 85 | AR95: ='Data Update Form'!$D$470 -> 125 | AS95: ='Data Update Form'!$D$470 -> 125 | AT95: ='Data Update Form'!$D$470 -> 125 | AU95: ='Data Update Form'!$D$470 -> 125 | AV95: ='Data Update Form'!$D$470 -> 125 | AW95: ='Data Update Form'!$D$470 -> 125 | AX95: ='Data Update Form'!$D$470 -> 125 | AY95: ='Data Update Form'!$D$470 -> 125 | AZ95: ='Data Update Form'!$D$470 -> 125 | BA95: ='Data Update Form'!$D$470 -> 125 | BB95: ='Data Update Form'!$D$470 -> 125 | BC95: ='Data Update Form'!$D$470 -> 125 | BD95: ='Data Update Form'!$D$470 -> 125 | BE95: ='Data Update Form'!$D$470 -> 125
A96: 92 | B96: Sorghum | C96: 7 | E96: ='Data Update Form'!$E$459 -> 25 | F96: ='Data Update Form'!$E$461 -> 75 | H96: ='Data Update Form'!$E$463 -> 135 | I96: ='Data Update Form'!$E$465 -> 135 | J96: ='Data Update Form'!$E$465 -> 135 | K96: ='Data Update Form'!$E$467 -> 135 | L96: ='Data Update Form'!$E$467 -> 135 | M96: ='Data Update Form'!$E$467 -> 135 | N96: ='Data Update Form'!$E$467 -> 135 | O96: ='Data Update Form'!$E$467 -> 135 | P96: ='Data Update Form'!$E$469 -> 175 | Q96: ='Data Update Form'!$E$469 -> 175 | R96: ='Data Update Form'!$E$469 -> 175 | S96: ='Data Update Form'!$E$469 -> 175 | T96: ='Data Update Form'!$E$469 -> 175 | U96: ='Data Update Form'!$E$469 -> 175 | V96: ='Data Update Form'!$E$469 -> 175 | W96: ='Data Update Form'!$E$469 -> 175 | X96: ='Data Update Form'!$E$469 -> 175 | Y96: ='Data Update Form'!$E$469 -> 175 | Z96: ='Data Update Form'!$E$469 -> 175 | AA96: ='Data Update Form'!$E$469 -> 175 | AB96: ='Data Update Form'!$E$469 -> 175 | AC96: ='Data Update Form'!$E$469 -> 175 | AD96: Sorghum | AE96: 7 | AG96: ='Data Update Form'!$E$460 -> 25 | AH96: ='Data Update Form'!$E$462 -> 75 | AJ96: ='Data Update Form'!$E$464 -> 135 | AK96: ='Data Update Form'!$E$466 -> 135 | AL96: ='Data Update Form'!$E$466 -> 135 | AM96: ='Data Update Form'!$E$468 -> 135 | AN96: ='Data Update Form'!$E$468 -> 135 | AO96: ='Data Update Form'!$E$468 -> 135 | AP96: ='Data Update Form'!$E$468 -> 135 | AQ96: ='Data Update Form'!$E$468 -> 135 | AR96: ='Data Update Form'!$E$470 -> 175 | AS96: ='Data Update Form'!$E$470 -> 175 | AT96: ='Data Update Form'!$E$470 -> 175 | AU96: ='Data Update Form'!$E$470 -> 175 | AV96: ='Data Update Form'!$E$470 -> 175 | AW96: ='Data Update Form'!$E$470 -> 175 | AX96: ='Data Update Form'!$E$470 -> 175 | AY96: ='Data Update Form'!$E$470 -> 175 | AZ96: ='Data Update Form'!$E$470 -> 175 | BA96: ='Data Update Form'!$E$470 -> 175 | BB96: ='Data Update Form'!$E$470 -> 175 | BC96: ='Data Update Form'!$E$470 -> 175 | BD96: ='Data Update Form'!$E$470 -> 175 | BE96: ='Data Update Form'!$E$470 -> 175
A97: 93 | B97: Sorghum | C97: 9 | E97: ='Data Update Form'!$F$459 -> 75 | F97: ='Data Update Form'!$F$461 -> 125 | H97: ='Data Update Form'!$F$463 -> 185 | I97: ='Data Update Form'!$F$465 -> 185 | J97: ='Data Update Form'!$F$465 -> 185 | K97: ='Data Update Form'!$F$467 -> 185 | L97: ='Data Update Form'!$F$467 -> 185 | M97: ='Data Update Form'!$F$467 -> 185 | N97: ='Data Update Form'!$F$467 -> 185 | O97: ='Data Update Form'!$F$467 -> 185 | P97: ='Data Update Form'!$F$469 -> 225 | Q97: ='Data Update Form'!$F$469 -> 225 | R97: ='Data Update Form'!$F$469 -> 225 | S97: ='Data Update Form'!$F$469 -> 225 | T97: ='Data Update Form'!$F$469 -> 225 | U97: ='Data Update Form'!$F$469 -> 225 | V97: ='Data Update Form'!$F$469 -> 225 | W97: ='Data Update Form'!$F$469 -> 225 | X97: ='Data Update Form'!$F$469 -> 225 | Y97: ='Data Update Form'!$F$469 -> 225 | Z97: ='Data Update Form'!$F$469 -> 225 | AA97: ='Data Update Form'!$F$469 -> 225 | AB97: ='Data Update Form'!$F$469 -> 225 | AC97: ='Data Update Form'!$F$469 -> 225 | AD97: Sorghum | AE97: 9 | AG97: ='Data Update Form'!$F$460 -> 75 | AH97: ='Data Update Form'!$F$462 -> 125 | AJ97: ='Data Update Form'!$F$464 -> 185 | AK97: ='Data Update Form'!$F$466 -> 185 | AL97: ='Data Update Form'!$F$466 -> 185 | AM97: ='Data Update Form'!$F$468 -> 185 | AN97: ='Data Update Form'!$F$468 -> 185 | AO97: ='Data Update Form'!$F$468 -> 185 | AP97: ='Data Update Form'!$F$468 -> 185 | AQ97: ='Data Update Form'!$F$468 -> 185 | AR97: ='Data Update Form'!$F$470 -> 225 | AS97: ='Data Update Form'!$F$470 -> 225 | AT97: ='Data Update Form'!$F$470 -> 225 | AU97: ='Data Update Form'!$F$470 -> 225 | AV97: ='Data Update Form'!$F$470 -> 225 | AW97: ='Data Update Form'!$F$470 -> 225 | AX97: ='Data Update Form'!$F$470 -> 225 | AY97: ='Data Update Form'!$F$470 -> 225 | AZ97: ='Data Update Form'!$F$470 -> 225 | BA97: ='Data Update Form'!$F$470 -> 225 | BB97: ='Data Update Form'!$F$470 -> 225 | BC97: ='Data Update Form'!$F$470 -> 225 | BD97: ='Data Update Form'!$F$470 -> 225 | BE97: ='Data Update Form'!$F$470 -> 225
A98: 94
A99: 95 | B99: Potatoes | C99: 0 | E99: ='Data Update Form'!$C$423 -> 0 | F99: ='Data Update Form'!$C$425 -> 35 | H99: ='Data Update Form'!$C$427 -> 55 | I99: ='Data Update Form'!$C$429 -> 55 | J99: ='Data Update Form'!$C$429 -> 55 | K99: ='Data Update Form'!$C$431 -> 35 | L99: ='Data Update Form'!$C$431 -> 35 | M99: ='Data Update Form'!$C$431 -> 35 | N99: ='Data Update Form'!$C$431 -> 35 | O99: ='Data Update Form'!$C$431 -> 35 | P99: ='Data Update Form'!$C$433 -> 75 | Q99: ='Data Update Form'!$C$433 -> 75 | R99: ='Data Update Form'!$C$433 -> 75 | S99: ='Data Update Form'!$C$433 -> 75 | T99: ='Data Update Form'!$C$433 -> 75 | U99: ='Data Update Form'!$C$433 -> 75 | V99: ='Data Update Form'!$C$433 -> 75 | W99: ='Data Update Form'!$C$433 -> 75 | X99: ='Data Update Form'!$C$433 -> 75 | Y99: ='Data Update Form'!$C$433 -> 75 | Z99: ='Data Update Form'!$C$433 -> 75 | AA99: ='Data Update Form'!$C$433 -> 75 | AB99: ='Data Update Form'!$C$433 -> 75 | AC99: ='Data Update Form'!$C$433 -> 75 | AD99: Potatoes | AE99: 0 | AG99: ='Data Update Form'!$C$424 -> 0 | AH99: ='Data Update Form'!$C$426 -> 15 | AJ99: ='Data Update Form'!$C$428 -> 35 | AK99: ='Data Update Form'!$C$430 -> 35 | AL99: ='Data Update Form'!$C$430 -> 35 | AM99: ='Data Update Form'!$C$432 -> 15 | AN99: ='Data Update Form'!$C$432 -> 15 | AO99: ='Data Update Form'!$C$432 -> 15 | AP99: ='Data Update Form'!$C$432 -> 15 | AQ99: ='Data Update Form'!$C$432 -> 15 | AR99: ='Data Update Form'!$C$434 -> 55 | AS99: ='Data Update Form'!$C$434 -> 55 | AT99: ='Data Update Form'!$C$434 -> 55 | AU99: ='Data Update Form'!$C$434 -> 55 | AV99: ='Data Update Form'!$C$434 -> 55 | AW99: ='Data Update Form'!$C$434 -> 55 | AX99: ='Data Update Form'!$C$434 -> 55 | AY99: ='Data Update Form'!$C$434 -> 55 | AZ99: ='Data Update Form'!$C$434 -> 55 | BA99: ='Data Update Form'!$C$434 -> 55 | BB99: ='Data Update Form'!$C$434 -> 55 | BC99: ='Data Update Form'!$C$434 -> 55 | BD99: ='Data Update Form'!$C$434 -> 55 | BE99: ='Data Update Form'!$C$434 -> 55
A100: 96 | B100: Potatoes | C100: 200 | E100: ='Data Update Form'!$D$423 -> 0 | F100: ='Data Update Form'!$D$425 -> 60 | H100: ='Data Update Form'!$D$427 -> 80 | I100: ='Data Update Form'!$D$429 -> 80 | J100: ='Data Update Form'!$D$429 -> 80 | K100: ='Data Update Form'!$D$431 -> 60 | L100: ='Data Update Form'!$D$431 -> 60 | M100: ='Data Update Form'!$D$431 -> 60 | N100: ='Data Update Form'!$D$431 -> 60 | O100: ='Data Update Form'!$D$431 -> 60 | P100: ='Data Update Form'!$D$433 -> 100 | Q100: ='Data Update Form'!$D$433 -> 100 | R100: ='Data Update Form'!$D$433 -> 100 | S100: ='Data Update Form'!$D$433 -> 100 | T100: ='Data Update Form'!$D$433 -> 100 | U100: ='Data Update Form'!$D$433 -> 100 | V100: ='Data Update Form'!$D$433 -> 100 | W100: ='Data Update Form'!$D$433 -> 100 | X100: ='Data Update Form'!$D$433 -> 100 | Y100: ='Data Update Form'!$D$433 -> 100 | Z100: ='Data Update Form'!$D$433 -> 100 | AA100: ='Data Update Form'!$D$433 -> 100 | AB100: ='Data Update Form'!$D$433 -> 100 | AC100: ='Data Update Form'!$D$433 -> 100 | AD100: Potatoes | AE100: 200 | AG100: ='Data Update Form'!$D$424 -> 0 | AH100: ='Data Update Form'!$D$426 -> 40 | AJ100: ='Data Update Form'!$D$428 -> 60 | AK100: ='Data Update Form'!$D$430 -> 60 | AL100: ='Data Update Form'!$D$430 -> 60 | AM100: ='Data Update Form'!$D$432 -> 40 | AN100: ='Data Update Form'!$D$432 -> 40 | AO100: ='Data Update Form'!$D$432 -> 40 | AP100: ='Data Update Form'!$D$432 -> 40 | AQ100: ='Data Update Form'!$D$432 -> 40 | AR100: ='Data Update Form'!$D$434 -> 80 | AS100: ='Data Update Form'!$D$434 -> 80 | AT100: ='Data Update Form'!$D$434 -> 80 | AU100: ='Data Update Form'!$D$434 -> 80 | AV100: ='Data Update Form'!$D$434 -> 80 | AW100: ='Data Update Form'!$D$434 -> 80 | AX100: ='Data Update Form'!$D$434 -> 80 | AY100: ='Data Update Form'!$D$434 -> 80 | AZ100: ='Data Update Form'!$D$434 -> 80 | BA100: ='Data Update Form'!$D$434 -> 80 | BB100: ='Data Update Form'!$D$434 -> 80 | BC100: ='Data Update Form'!$D$434 -> 80 | BD100: ='Data Update Form'!$D$434 -> 80 | BE100: ='Data Update Form'!$D$434 -> 80
A101: 97 | B101: Potatoes | C101: 250 | E101: ='Data Update Form'!$E$423 -> 25 | F101: ='Data Update Form'!$E$425 -> 85 | H101: ='Data Update Form'!$E$427 -> 105 | I101: ='Data Update Form'!$E$429 -> 105 | J101: ='Data Update Form'!$E$429 -> 105 | K101: ='Data Update Form'!$E$431 -> 85 | L101: ='Data Update Form'!$E$431 -> 85 | M101: ='Data Update Form'!$E$431 -> 85 | N101: ='Data Update Form'!$E$431 -> 85 | O101: ='Data Update Form'!$E$431 -> 85 | P101: ='Data Update Form'!$E$433 -> 125 | Q101: ='Data Update Form'!$E$433 -> 125 | R101: ='Data Update Form'!$E$433 -> 125 | S101: ='Data Update Form'!$E$433 -> 125 | T101: ='Data Update Form'!$E$433 -> 125 | U101: ='Data Update Form'!$E$433 -> 125 | V101: ='Data Update Form'!$E$433 -> 125 | W101: ='Data Update Form'!$E$433 -> 125 | X101: ='Data Update Form'!$E$433 -> 125 | Y101: ='Data Update Form'!$E$433 -> 125 | Z101: ='Data Update Form'!$E$433 -> 125 | AA101: ='Data Update Form'!$E$433 -> 125 | AB101: ='Data Update Form'!$E$433 -> 125 | AC101: ='Data Update Form'!$E$433 -> 125 | AD101: Potatoes | AE101: 250 | AG101: ='Data Update Form'!$E$424 -> 0 | AH101: ='Data Update Form'!$E$426 -> 65 | AJ101: ='Data Update Form'!$E$428 -> 85 | AK101: ='Data Update Form'!$E$430 -> 85 | AL101: ='Data Update Form'!$E$430 -> 85 | AM101: ='Data Update Form'!$E$432 -> 65 | AN101: ='Data Update Form'!$E$432 -> 65 | AO101: ='Data Update Form'!$E$432 -> 65 | AP101: ='Data Update Form'!$E$432 -> 65 | AQ101: ='Data Update Form'!$E$432 -> 65 | AR101: ='Data Update Form'!$E$434 -> 105 | AS101: ='Data Update Form'!$E$434 -> 105 | AT101: ='Data Update Form'!$E$434 -> 105 | AU101: ='Data Update Form'!$E$434 -> 105 | AV101: ='Data Update Form'!$E$434 -> 105 | AW101: ='Data Update Form'!$E$434 -> 105 | AX101: ='Data Update Form'!$E$434 -> 105 | AY101: ='Data Update Form'!$E$434 -> 105 | AZ101: ='Data Update Form'!$E$434 -> 105 | BA101: ='Data Update Form'!$E$434 -> 105 | BB101: ='Data Update Form'!$E$434 -> 105 | BC101: ='Data Update Form'!$E$434 -> 105 | BD101: ='Data Update Form'!$E$434 -> 105 | BE101: ='Data Update Form'!$E$434 -> 105
A102: 98 | B102: Potatoes | C102: 300 | E102: ='Data Update Form'!$F$423 -> 50 | F102: ='Data Update Form'!$F$425 -> 110 | H102: ='Data Update Form'!$F$427 -> 130 | I102: ='Data Update Form'!$F$429 -> 130 | J102: ='Data Update Form'!$F$429 -> 130 | K102: ='Data Update Form'!$F$431 -> 110 | L102: ='Data Update Form'!$F$431 -> 110 | M102: ='Data Update Form'!$F$431 -> 110 | N102: ='Data Update Form'!$F$431 -> 110 | O102: ='Data Update Form'!$F$431 -> 110 | P102: ='Data Update Form'!$F$433 -> 150 | Q102: ='Data Update Form'!$F$433 -> 150 | R102: ='Data Update Form'!$F$433 -> 150 | S102: ='Data Update Form'!$F$433 -> 150 | T102: ='Data Update Form'!$F$433 -> 150 | U102: ='Data Update Form'!$F$433 -> 150 | V102: ='Data Update Form'!$F$433 -> 150 | W102: ='Data Update Form'!$F$433 -> 150 | X102: ='Data Update Form'!$F$433 -> 150 | Y102: ='Data Update Form'!$F$433 -> 150 | Z102: ='Data Update Form'!$F$433 -> 150 | AA102: ='Data Update Form'!$F$433 -> 150 | AB102: ='Data Update Form'!$F$433 -> 150 | AC102: ='Data Update Form'!$F$433 -> 150 | AD102: Potatoes | AE102: 300 | AG102: ='Data Update Form'!$F$424 -> 30 | AH102: ='Data Update Form'!$F$426 -> 90 | AJ102: ='Data Update Form'!$F$428 -> 110 | AK102: ='Data Update Form'!$F$430 -> 110 | AL102: ='Data Update Form'!$F$430 -> 110 | AM102: ='Data Update Form'!$F$432 -> 90 | AN102: ='Data Update Form'!$F$432 -> 90 | AO102: ='Data Update Form'!$F$432 -> 90 | AP102: ='Data Update Form'!$F$432 -> 90 | AQ102: ='Data Update Form'!$F$432 -> 90 | AR102: ='Data Update Form'!$F$434 -> 130 | AS102: ='Data Update Form'!$F$434 -> 130 | AT102: ='Data Update Form'!$F$434 -> 130 | AU102: ='Data Update Form'!$F$434 -> 130 | AV102: ='Data Update Form'!$F$434 -> 130 | AW102: ='Data Update Form'!$F$434 -> 130 | AX102: ='Data Update Form'!$F$434 -> 130 | AY102: ='Data Update Form'!$F$434 -> 130 | AZ102: ='Data Update Form'!$F$434 -> 130 | BA102: ='Data Update Form'!$F$434 -> 130 | BB102: ='Data Update Form'!$F$434 -> 130 | BC102: ='Data Update Form'!$F$434 -> 130 | BD102: ='Data Update Form'!$F$434 -> 130 | BE102: ='Data Update Form'!$F$434 -> 130
A103: 99 | B103: Potatoes | C103: 350 | E103: ='Data Update Form'!$G$423 -> 75 | F103: ='Data Update Form'!$G$425 -> 135 | H103: ='Data Update Form'!$G$427 -> 155 | I103: ='Data Update Form'!$G$429 -> 155 | J103: ='Data Update Form'!$G$429 -> 155 | K103: ='Data Update Form'!$G$431 -> 135 | L103: ='Data Update Form'!$G$431 -> 135 | M103: ='Data Update Form'!$G$431 -> 135 | N103: ='Data Update Form'!$G$431 -> 135 | O103: ='Data Update Form'!$G$431 -> 135 | P103: ='Data Update Form'!$G$433 -> 175 | Q103: ='Data Update Form'!$G$433 -> 175 | R103: ='Data Update Form'!$G$433 -> 175 | S103: ='Data Update Form'!$G$433 -> 175 | T103: ='Data Update Form'!$G$433 -> 175 | U103: ='Data Update Form'!$G$433 -> 175 | V103: ='Data Update Form'!$G$433 -> 175 | W103: ='Data Update Form'!$G$433 -> 175 | X103: ='Data Update Form'!$G$433 -> 175 | Y103: ='Data Update Form'!$G$433 -> 175 | Z103: ='Data Update Form'!$G$433 -> 175 | AA103: ='Data Update Form'!$G$433 -> 175 | AB103: ='Data Update Form'!$G$433 -> 175 | AC103: ='Data Update Form'!$G$433 -> 175 | AD103: Potatoes | AE103: 350 | AG103: ='Data Update Form'!$G$424 -> 55 | AH103: ='Data Update Form'!$G$426 -> 115 | AJ103: ='Data Update Form'!$G$428 -> 135 | AK103: ='Data Update Form'!$G$430 -> 135 | AL103: ='Data Update Form'!$G$430 -> 135 | AM103: ='Data Update Form'!$G$432 -> 115 | AN103: ='Data Update Form'!$G$432 -> 115 | AO103: ='Data Update Form'!$G$432 -> 115 | AP103: ='Data Update Form'!$G$432 -> 115 | AQ103: ='Data Update Form'!$G$432 -> 115 | AR103: ='Data Update Form'!$G$434 -> 155 | AS103: ='Data Update Form'!$G$434 -> 155 | AT103: ='Data Update Form'!$G$434 -> 155 | AU103: ='Data Update Form'!$G$434 -> 155 | AV103: ='Data Update Form'!$G$434 -> 155 | AW103: ='Data Update Form'!$G$434 -> 155 | AX103: ='Data Update Form'!$G$434 -> 155 | AY103: ='Data Update Form'!$G$434 -> 155 | AZ103: ='Data Update Form'!$G$434 -> 155 | BA103: ='Data Update Form'!$G$434 -> 155 | BB103: ='Data Update Form'!$G$434 -> 155 | BC103: ='Data Update Form'!$G$434 -> 155 | BD103: ='Data Update Form'!$G$434 -> 155 | BE103: ='Data Update Form'!$G$434 -> 155
A104: 100 | B104: Potatoes | C104: 400 | E104: ='Data Update Form'!$H$423 -> 100 | F104: ='Data Update Form'!$H$425 -> 160 | H104: ='Data Update Form'!$H$427 -> 180 | I104: ='Data Update Form'!$H$429 -> 180 | J104: ='Data Update Form'!$H$429 -> 180 | K104: ='Data Update Form'!$H$431 -> 160 | L104: ='Data Update Form'!$H$431 -> 160 | M104: ='Data Update Form'!$H$431 -> 160 | N104: ='Data Update Form'!$H$431 -> 160 | O104: ='Data Update Form'!$H$431 -> 160 | P104: ='Data Update Form'!$H$433 -> 200 | Q104: ='Data Update Form'!$H$433 -> 200 | R104: ='Data Update Form'!$H$433 -> 200 | S104: ='Data Update Form'!$H$433 -> 200 | T104: ='Data Update Form'!$H$433 -> 200 | U104: ='Data Update Form'!$H$433 -> 200 | V104: ='Data Update Form'!$H$433 -> 200 | W104: ='Data Update Form'!$H$433 -> 200 | X104: ='Data Update Form'!$H$433 -> 200 | Y104: ='Data Update Form'!$H$433 -> 200 | Z104: ='Data Update Form'!$H$433 -> 200 | AA104: ='Data Update Form'!$H$433 -> 200 | AB104: ='Data Update Form'!$H$433 -> 200 | AC104: ='Data Update Form'!$H$433 -> 200 | AD104: Potatoes | AE104: 400 | AG104: ='Data Update Form'!$H$424 -> 80 | AH104: ='Data Update Form'!$H$426 -> 140 | AJ104: ='Data Update Form'!$H$428 -> 160 | AK104: ='Data Update Form'!$H$430 -> 160 | AL104: ='Data Update Form'!$H$430 -> 160 | AM104: ='Data Update Form'!$H$432 -> 140 | AN104: ='Data Update Form'!$H$432 -> 140 | AO104: ='Data Update Form'!$H$432 -> 140 | AP104: ='Data Update Form'!$H$432 -> 140 | AQ104: ='Data Update Form'!$H$432 -> 140 | AR104: ='Data Update Form'!$H$434 -> 180 | AS104: ='Data Update Form'!$H$434 -> 180 | AT104: ='Data Update Form'!$H$434 -> 180 | AU104: ='Data Update Form'!$H$434 -> 180 | AV104: ='Data Update Form'!$H$434 -> 180 | AW104: ='Data Update Form'!$H$434 -> 180 | AX104: ='Data Update Form'!$H$434 -> 180 | AY104: ='Data Update Form'!$H$434 -> 180 | AZ104: ='Data Update Form'!$H$434 -> 180 | BA104: ='Data Update Form'!$H$434 -> 180 | BB104: ='Data Update Form'!$H$434 -> 180 | BC104: ='Data Update Form'!$H$434 -> 180 | BD104: ='Data Update Form'!$H$434 -> 180 | BE104: ='Data Update Form'!$H$434 -> 180
A105: 101 | B105: Potatoes | C105: 450 | E105: ='Data Update Form'!$I$423 -> 125 | F105: ='Data Update Form'!$I$425 -> 185 | H105: ='Data Update Form'!$I$427 -> 205 | I105: ='Data Update Form'!$I$429 -> 205 | J105: ='Data Update Form'!$I$429 -> 205 | K105: ='Data Update Form'!$I$431 -> 185 | L105: ='Data Update Form'!$I$431 -> 185 | M105: ='Data Update Form'!$I$431 -> 185 | N105: ='Data Update Form'!$I$431 -> 185 | O105: ='Data Update Form'!$I$431 -> 185 | P105: ='Data Update Form'!$I$433 -> 225 | Q105: ='Data Update Form'!$I$433 -> 225 | R105: ='Data Update Form'!$I$433 -> 225 | S105: ='Data Update Form'!$I$433 -> 225 | T105: ='Data Update Form'!$I$433 -> 225 | U105: ='Data Update Form'!$I$433 -> 225 | V105: ='Data Update Form'!$I$433 -> 225 | W105: ='Data Update Form'!$I$433 -> 225 | X105: ='Data Update Form'!$I$433 -> 225 | Y105: ='Data Update Form'!$I$433 -> 225 | Z105: ='Data Update Form'!$I$433 -> 225 | AA105: ='Data Update Form'!$I$433 -> 225 | AB105: ='Data Update Form'!$I$433 -> 225 | AC105: ='Data Update Form'!$I$433 -> 225 | AD105: Potatoes | AE105: 450 | AG105: ='Data Update Form'!$I$424 -> 105 | AH105: ='Data Update Form'!$I$426 -> 165 | AJ105: ='Data Update Form'!$I$428 -> 185 | AK105: ='Data Update Form'!$I$430 -> 185 | AL105: ='Data Update Form'!$I$430 -> 185 | AM105: ='Data Update Form'!$I$432 -> 165 | AN105: ='Data Update Form'!$I$432 -> 165 | AO105: ='Data Update Form'!$I$432 -> 165 | AP105: ='Data Update Form'!$I$432 -> 165 | AQ105: ='Data Update Form'!$I$432 -> 165 | AR105: ='Data Update Form'!$I$434 -> 205 | AS105: ='Data Update Form'!$I$434 -> 205 | AT105: ='Data Update Form'!$I$434 -> 205 | AU105: ='Data Update Form'!$I$434 -> 205 | AV105: ='Data Update Form'!$I$434 -> 205 | AW105: ='Data Update Form'!$I$434 -> 205 | AX105: ='Data Update Form'!$I$434 -> 205 | AY105: ='Data Update Form'!$I$434 -> 205 | AZ105: ='Data Update Form'!$I$434 -> 205 | BA105: ='Data Update Form'!$I$434 -> 205 | BB105: ='Data Update Form'!$I$434 -> 205 | BC105: ='Data Update Form'!$I$434 -> 205 | BD105: ='Data Update Form'!$I$434 -> 205 | BE105: ='Data Update Form'!$I$434 -> 205
A106: 102 | B106: Potatoes | C106: 500 | E106: ='Data Update Form'!$J$423 -> 150 | F106: ='Data Update Form'!$J$425 -> 210 | H106: ='Data Update Form'!$J$427 -> 230 | I106: ='Data Update Form'!$J$429 -> 230 | J106: ='Data Update Form'!$J$429 -> 230 | K106: ='Data Update Form'!$J$431 -> 210 | L106: ='Data Update Form'!$J$431 -> 210 | M106: ='Data Update Form'!$J$431 -> 210 | N106: ='Data Update Form'!$J$431 -> 210 | O106: ='Data Update Form'!$J$431 -> 210 | P106: ='Data Update Form'!$J$433 -> 250 | Q106: ='Data Update Form'!$J$433 -> 250 | R106: ='Data Update Form'!$J$433 -> 250 | S106: ='Data Update Form'!$J$433 -> 250 | T106: ='Data Update Form'!$J$433 -> 250 | U106: ='Data Update Form'!$J$433 -> 250 | V106: ='Data Update Form'!$J$433 -> 250 | W106: ='Data Update Form'!$J$433 -> 250 | X106: ='Data Update Form'!$J$433 -> 250 | Y106: ='Data Update Form'!$J$433 -> 250 | Z106: ='Data Update Form'!$J$433 -> 250 | AA106: ='Data Update Form'!$J$433 -> 250 | AB106: ='Data Update Form'!$J$433 -> 250 | AC106: ='Data Update Form'!$J$433 -> 250 | AD106: Potatoes | AE106: 500 | AG106: ='Data Update Form'!$J$424 -> 130 | AH106: ='Data Update Form'!$J$426 -> 190 | AJ106: ='Data Update Form'!$J$428 -> 210 | AK106: ='Data Update Form'!$J$430 -> 210 | AL106: ='Data Update Form'!$J$430 -> 210 | AM106: ='Data Update Form'!$J$432 -> 190 | AN106: ='Data Update Form'!$J$432 -> 190 | AO106: ='Data Update Form'!$J$432 -> 190 | AP106: ='Data Update Form'!$J$432 -> 190 | AQ106: ='Data Update Form'!$J$432 -> 190 | AR106: ='Data Update Form'!$J$434 -> 230 | AS106: ='Data Update Form'!$J$434 -> 230 | AT106: ='Data Update Form'!$J$434 -> 230 | AU106: ='Data Update Form'!$J$434 -> 230 | AV106: ='Data Update Form'!$J$434 -> 230 | AW106: ='Data Update Form'!$J$434 -> 230 | AX106: ='Data Update Form'!$J$434 -> 230 | AY106: ='Data Update Form'!$J$434 -> 230 | AZ106: ='Data Update Form'!$J$434 -> 230 | BA106: ='Data Update Form'!$J$434 -> 230 | BB106: ='Data Update Form'!$J$434 -> 230 | BC106: ='Data Update Form'!$J$434 -> 230 | BD106: ='Data Update Form'!$J$434 -> 230 | BE106: ='Data Update Form'!$J$434 -> 230
B108: Database_Legume
B109: Crop | C109: Max | D109: Mid | E109: Min
B110: Barley | C110: ='Data Update Form'!$O$65 -> 35 | D110: ='Data Update Form'!$O$66 -> 20 | E110: ='Data Update Form'!$O$67 -> 20
B111: Corn | C111: ='Data Update Form'!$O$20 -> 115 | D111: ='Data Update Form'!$O$21 -> 75 | E111: ='Data Update Form'!$O$22 -> 35
B112: Sorghum | C112: ='Data Update Form'!$O$475 -> 75 | D112: ='Data Update Form'!$O$476 -> 25 | E112: ='Data Update Form'!$O$477 -> 20
B113: Wheat | C113: ='Data Update Form'!$O$43 -> 35 | D113: ='Data Update Form'!$O$45 -> 20 | E113: ='Data Update Form'!$O$45 -> 20
B114: HighP_Removal | F114: Names within chart are: N_Removal, P_Removal, K_Removal, P_Needs, K_Needs | K114: Calculated Value for P Needs | O114: Calculated Value for K Needs | R114: Corn_on_Sand
B115: Crop | C115: P2O5 Removal | F115: Crop | G115: Lookup Yield | H115: N Removal per unit of yield goal | I115: P Removal per unit of yield goal | J115: K Removal per unit of yield goal | K115: W | L115: X | M115: Y | N115: Z | O115: A | P115: B | R115: Crop | S115: Lookup Yield | T115: Row | U115: Alfalfa-Old | V115: Alfalfa-New | X115: Soybeans | Y115: Edible beans | Z115: peas | AA115: Clover/Trefoil | AB115: fallow | AC115: Grass/legume | AD115: Grass/Hay | AE115: Pasture | AF115: Corn | AG115: Wheat | AH115: Oats | AI115: Potatoes | AJ115: SugarBeets | AK115: Rye | AL115: Barley | AM115: Buckwheat | AN115: Canola | AO115: Millet | AP115: sorghum | AQ115: sunflowers | AR115: sweet corn | AS115: vegetables
F116: CORN | G116: 0 | H116: --- | I116: ='Data Update Form'!$E$330 -> 0.35 | J116: ='Data Update Form'!$F$330 -> 0.25 | K116: ='Data Update Form'!$F$21 -> 0.7 | L116: ='Data Update Form'!$H$21 -> 0.035 | M116: ='Data Update Form'!$F$22 -> 0.7 | N116: ='Data Update Form'!$H$22 -> 0.044 | O116: ='Data Update Form'!F25 -> 1.166 | P116: ='Data Update Form'!H25 -> 0.0073
B117: Alfalfa | C117: ='Data Update Form'!$E322 -> 12 | F117: WHEAT | G117: 0 | H117: --- | I117: =('Data Update Form'!$E$347+'Data Update Form'!$E$348)/2 -> 0.61 | J117: =('Data Update Form'!$F$347+'Data Update Form'!$F$348)/2 -> 0.91 | K117: ='Data Update Form'!$P$39 -> 1.071 | L117: ='Data Update Form'!$R$39 -> 0.054 | M117: ='Data Update Form'!$P$40 -> 1.071 | N117: ='Data Update Form'!$R$40 -> 0.067 | O117: ='Data Update Form'!F45 -> 2.71 | P117: ='Data Update Form'!H45 -> 0.017
B118: Alsike Clover | C118: ='Data Update Form'!$E323 -> 11 | F118: BARLEY | G118: 0 | H118: --- | I118: =('Data Update Form'!$E$324+'Data Update Form'!$E$325)/2 -> 0.48 | J118: =('Data Update Form'!$F$324+'Data Update Form'!$F$325)/2 -> 0.92 | K118: ='Data Update Form'!$P$61 -> 0.785 | L118: ='Data Update Form'!$R$61 -> 0.039 | M118: ='Data Update Form'!$P$62 -> 0.785 | N118: ='Data Update Form'!$R$62 -> 0.05 | O118: ='Data Update Form'!F65 -> 1.286 | P118: ='Data Update Form'!H65 -> 0.0085 | R118: CORN | S118: 0 | U118: ='Data Update Form'!$AQ$7 -> 150 | V118: ='Data Update Form'!$AQ$9 -> 170 | X118: ='Data Update Form'!$AQ$11 -> 205 | Y118: ='Data Update Form'!$AQ$13 -> 215 | Z118: ='Data Update Form'!$AQ$13 -> 215 | AA118: ='Data Update Form'!$AQ$15 -> 160 | AB118: ='Data Update Form'!$AQ$15 -> 160 | AC118: ='Data Update Form'!$AQ$15 -> 160 | AD118: ='Data Update Form'!$AQ$15 -> 160 | AE118: ='Data Update Form'!$AQ$15 -> 160 | AF118: ='Data Update Form'!$AQ$17 -> 235 | AG118: ='Data Update Form'!$AQ$17 -> 235 | AH118: ='Data Update Form'!$AQ$17 -> 235 | AI118: ='Data Update Form'!$AQ$17 -> 235 | AJ118: ='Data Update Form'!$AQ$17 -> 235 | AK118: ='Data Update Form'!$AQ$17 -> 235 | AL118: ='Data Update Form'!$AQ$17 -> 235 | AM118: ='Data Update Form'!$AQ$17 -> 235 | AN118: ='Data Update Form'!$AQ$17 -> 235 | AO118: ='Data Update Form'!$AQ$17 -> 235 | AP118: ='Data Update Form'!$AQ$17 -> 235 | AQ118: ='Data Update Form'!$AQ$17 -> 235 | AR118: ='Data Update Form'!$AQ$17 -> 235 | AS118: ='Data Update Form'!$AQ$17 -> 235
B119: Barley | C119: ='Data Update Form'!$E324 -> 0.4 | F119: OATS | G119: 0 | H119: --- | I119: =('Data Update Form'!$E$336+'Data Update Form'!$E$337)/2 -> 0.36 | J119: =('Data Update Form'!$F$336+'Data Update Form'!$F$337)/2 -> 0.66 | K119: ='Data Update Form'!$P$83 -> 0.644 | L119: ='Data Update Form'!$R$83 -> 0.032 | M119: ='Data Update Form'!$P$84 -> 0.644 | N119: ='Data Update Form'!$R$84 -> 0.041 | O119: ='Data Update Form'!F87 -> 1.277 | P119: ='Data Update Form'!H87 -> 0.0086 | R119: CORN | S119: 100 | U119: ='Data Update Form'!$AR$7 -> 150 | V119: ='Data Update Form'!$AR$9 -> 170 | X119: ='Data Update Form'!$AR$11 -> 205 | Y119: ='Data Update Form'!$AR$13 -> 215 | Z119: ='Data Update Form'!$AR$13 -> 215 | AA119: ='Data Update Form'!$AR$15 -> 160 | AB119: ='Data Update Form'!$AR$15 -> 160 | AC119: ='Data Update Form'!$AR$15 -> 160 | AD119: ='Data Update Form'!$AR$15 -> 160 | AE119: ='Data Update Form'!$AR$15 -> 160 | AF119: ='Data Update Form'!$AR$17 -> 235 | AG119: ='Data Update Form'!$AR$17 -> 235 | AH119: ='Data Update Form'!$AR$17 -> 235 | AI119: ='Data Update Form'!$AR$17 -> 235 | AJ119: ='Data Update Form'!$AR$17 -> 235 | AK119: ='Data Update Form'!$AR$17 -> 235 | AL119: ='Data Update Form'!$AR$17 -> 235 | AM119: ='Data Update Form'!$AR$17 -> 235 | AN119: ='Data Update Form'!$AR$17 -> 235 | AO119: ='Data Update Form'!$AR$17 -> 235 | AP119: ='Data Update Form'!$AR$17 -> 235 | AQ119: ='Data Update Form'!$AR$17 -> 235 | AR119: ='Data Update Form'!$AR$17 -> 235 | AS119: ='Data Update Form'!$AR$17 -> 235
B120: Barley w/ Straw | C120: ='Data Update Form'!$E325 -> 0.56 | F120: ALFALFA | G120: 0 | H120: ='Data Update Form'!$D$322 -> 51 | I120: ='Data Update Form'!$E$322 -> 12 | J120: ='Data Update Form'!$F$322 -> 49 | K120: ='Data Update Form'!$P$224 -> 18.57 | L120: ='Data Update Form'!$R$224 -> 0.93 | M120: ='Data Update Form'!$P$225 -> 18.57 | N120: ='Data Update Form'!$R$225 -> 1.16 | O120: ='Data Update Form'!P227 -> 55.7 | P120: ='Data Update Form'!R227 -> 0.38 | R120: CORN | S120: 125 | U120: ='Data Update Form'!$AS$7 -> 150 | V120: ='Data Update Form'!$AS$9 -> 170 | X120: ='Data Update Form'!$AS$11 -> 205 | Y120: ='Data Update Form'!$AS$13 -> 215 | Z120: ='Data Update Form'!$AS$13 -> 215 | AA120: ='Data Update Form'!$AS$15 -> 160 | AB120: ='Data Update Form'!$AS$15 -> 160 | AC120: ='Data Update Form'!$AS$15 -> 160 | AD120: ='Data Update Form'!$AS$15 -> 160 | AE120: ='Data Update Form'!$AS$15 -> 160 | AF120: ='Data Update Form'!$AS$17 -> 235 | AG120: ='Data Update Form'!$AS$17 -> 235 | AH120: ='Data Update Form'!$AS$17 -> 235 | AI120: ='Data Update Form'!$AS$17 -> 235 | AJ120: ='Data Update Form'!$AS$17 -> 235 | AK120: ='Data Update Form'!$AS$17 -> 235 | AL120: ='Data Update Form'!$AS$17 -> 235 | AM120: ='Data Update Form'!$AS$17 -> 235 | AN120: ='Data Update Form'!$AS$17 -> 235 | AO120: ='Data Update Form'!$AS$17 -> 235 | AP120: ='Data Update Form'!$AS$17 -> 235 | AQ120: ='Data Update Form'!$AS$17 -> 235 | AR120: ='Data Update Form'!$AS$17 -> 235 | AS120: ='Data Update Form'!$AS$17 -> 235
B121: Birdsfoot Trefoil | C121: ='Data Update Form'!$E326 -> 11 | F121: GRASS/HAY | G121: 0 | H121: ='Data Update Form'!$D$333 -> 27.06 | I121: ='Data Update Form'!$E$333 -> 3.9 | J121: ='Data Update Form'!$F$333 -> 25.83 | K121: ='Data Update Form'!$P$240 -> 19.12 | L121: ='Data Update Form'!$R$240 -> 0.732 | M121: ='Data Update Form'!$P$241 -> 19.12 | N121: ='Data Update Form'!$R$241 -> 1.012 | O121: ='Data Update Form'!P243 -> 40.43 | P121: ='Data Update Form'!R243 -> 0.286 | R121: CORN | S121: 150 | U121: ='Data Update Form'!$AT$7 -> 150 | V121: ='Data Update Form'!$AT$9 -> 170 | X121: ='Data Update Form'!$AT$11 -> 205 | Y121: ='Data Update Form'!$AT$13 -> 215 | Z121: ='Data Update Form'!$AT$13 -> 215 | AA121: ='Data Update Form'!$AT$15 -> 160 | AB121: ='Data Update Form'!$AT$15 -> 160 | AC121: ='Data Update Form'!$AT$15 -> 160 | AD121: ='Data Update Form'!$AT$15 -> 160 | AE121: ='Data Update Form'!$AT$15 -> 160 | AF121: ='Data Update Form'!$AT$17 -> 235 | AG121: ='Data Update Form'!$AT$17 -> 235 | AH121: ='Data Update Form'!$AT$17 -> 235 | AI121: ='Data Update Form'!$AT$17 -> 235 | AJ121: ='Data Update Form'!$AT$17 -> 235 | AK121: ='Data Update Form'!$AT$17 -> 235 | AL121: ='Data Update Form'!$AT$17 -> 235 | AM121: ='Data Update Form'!$AT$17 -> 235 | AN121: ='Data Update Form'!$AT$17 -> 235 | AO121: ='Data Update Form'!$AT$17 -> 235 | AP121: ='Data Update Form'!$AT$17 -> 235 | AQ121: ='Data Update Form'!$AT$17 -> 235 | AR121: ='Data Update Form'!$AT$17 -> 235 | AS121: ='Data Update Form'!$AT$17 -> 235
B122: Buckwheat | C122: ='Data Update Form'!$E327 -> 0.25 | F122: SOYBEANS | G122: 0 | H122: ='Data Update Form'!$D$343 -> 3.5 | I122: ='Data Update Form'!$E$343 -> 0.82 | J122: ='Data Update Form'!$F$343 -> 1 | K122: ='Data Update Form'!$P$265 -> 1.752 | L122: ='Data Update Form'!$R$265 -> 0.0836 | M122: ='Data Update Form'!$P$266 -> 1.752 | N122: ='Data Update Form'!$R$266 -> 0.1114 | O122: ='Data Update Form'!P268 -> 2.2 | P122: ='Data Update Form'!R268 -> 0.183 | R122: CORN | S122: 175 | U122: ='Data Update Form'!$AU$7 -> 150 | V122: ='Data Update Form'!$AU$9 -> 170 | X122: ='Data Update Form'!$AU$11 -> 205 | Y122: ='Data Update Form'!$AU$13 -> 215 | Z122: ='Data Update Form'!$AU$13 -> 215 | AA122: ='Data Update Form'!$AU$15 -> 160 | AB122: ='Data Update Form'!$AU$15 -> 160 | AC122: ='Data Update Form'!$AU$15 -> 160 | AD122: ='Data Update Form'!$AU$15 -> 160 | AE122: ='Data Update Form'!$AU$15 -> 160 | AF122: ='Data Update Form'!$AU$17 -> 235 | AG122: ='Data Update Form'!$AU$17 -> 235 | AH122: ='Data Update Form'!$AU$17 -> 235 | AI122: ='Data Update Form'!$AU$17 -> 235 | AJ122: ='Data Update Form'!$AU$17 -> 235 | AK122: ='Data Update Form'!$AU$17 -> 235 | AL122: ='Data Update Form'!$AU$17 -> 235 | AM122: ='Data Update Form'!$AU$17 -> 235 | AN122: ='Data Update Form'!$AU$17 -> 235 | AO122: ='Data Update Form'!$AU$17 -> 235 | AP122: ='Data Update Form'!$AU$17 -> 235 | AQ122: ='Data Update Form'!$AU$17 -> 235 | AR122: ='Data Update Form'!$AU$17 -> 235 | AS122: ='Data Update Form'!$AU$17 -> 235
B123: Buckwheat w/ Straw | C123: ='Data Update Form'!$E328 -> 1.95 | F123: SILAGE | G123: 0 | H123: ='Data Update Form'!$D$331 -> 9.7 | I123: ='Data Update Form'!$E$331 -> 3.1 | J123: ='Data Update Form'!$F$331 -> 7.3 | K123: ='Data Update Form'!$F$21 -> 0.7 | L123: ='Data Update Form'!$H$21 -> 0.035 | M123: ='Data Update Form'!$F$22 -> 0.7 | N123: ='Data Update Form'!$H$22 -> 0.044 | O123: ='Data Update Form'!F25 -> 1.166 | P123: ='Data Update Form'!H25 -> 0.0073 | R123: CORN | S123: 200 | U123: ='Data Update Form'!$AV$7 -> 150 | V123: ='Data Update Form'!$AV$9 -> 170 | X123: ='Data Update Form'!$AV$11 -> 205 | Y123: ='Data Update Form'!$AV$13 -> 215 | Z123: ='Data Update Form'!$AV$13 -> 215 | AA123: ='Data Update Form'!$AV$15 -> 160 | AB123: ='Data Update Form'!$AV$15 -> 160 | AC123: ='Data Update Form'!$AV$15 -> 160 | AD123: ='Data Update Form'!$AV$15 -> 160 | AE123: ='Data Update Form'!$AV$15 -> 160 | AF123: ='Data Update Form'!$AV$17 -> 235 | AG123: ='Data Update Form'!$AV$17 -> 235 | AH123: ='Data Update Form'!$AV$17 -> 235 | AI123: ='Data Update Form'!$AV$17 -> 235 | AJ123: ='Data Update Form'!$AV$17 -> 235 | AK123: ='Data Update Form'!$AV$17 -> 235 | AL123: ='Data Update Form'!$AV$17 -> 235 | AM123: ='Data Update Form'!$AV$17 -> 235 | AN123: ='Data Update Form'!$AV$17 -> 235 | AO123: ='Data Update Form'!$AV$17 -> 235 | AP123: ='Data Update Form'!$AV$17 -> 235 | AQ123: ='Data Update Form'!$AV$17 -> 235 | AR123: ='Data Update Form'!$AV$17 -> 235 | AS123: ='Data Update Form'!$AV$17 -> 235
B124: Canola | C124: ='Data Update Form'!$E329 -> 0.8 | F124: Buckwheat | G124: 0 | H124: --- | I124: =('Data Update Form'!$E$327+'Data Update Form'!$E$328)/2 -> 1.1 | J124: =('Data Update Form'!$F$327+'Data Update Form'!$F$328)/2 -> 23.445 | K124: ='Data Update Form'!$P$103 -> 0.0275 | L124: ='Data Update Form'!$R$103 -> 0.0014 | M124: ='Data Update Form'!$P$104 -> 0.0275 | N124: ='Data Update Form'!$R$104 -> 0.0017 | O124: ='Data Update Form'!F107 -> 0.0358 | P124: ='Data Update Form'!H107 -> 0.023
B125: Corn | C125: ='Data Update Form'!$E330 -> 0.35 | F125: Canola | G125: 0 | H125: --- | I125: ='Data Update Form'!$E$329 -> 0.8 | J125: ='Data Update Form'!$F$329 -> 0.4 | K125: ='Data Update Form'!$P$123 -> 3.6 | L125: ='Data Update Form'!$R$123 -> 0.17 | M125: ='Data Update Form'!$P$124 -> 3.6 | N125: ='Data Update Form'!$R$124 -> 0.22 | O125: ='Data Update Form'!F127 -> 5.4 | P125: ='Data Update Form'!H127 -> 0.034 | R125: Database_Legume_Sand
B126: Corn Silage | C126: ='Data Update Form'!$E331 -> 3.1 | F126: Edible Beans | G126: 0 | H126: --- | I126: ='Data Update Form'!$E$332 -> 0.013 | J126: ='Data Update Form'!$F$332 -> 0.015 | K126: ='Data Update Form'!$P$143 -> 0.0231 | L126: ='Data Update Form'!$R$143 -> 0.0011 | M126: ='Data Update Form'!$P$144 -> 0.0231 | N126: ='Data Update Form'!$R$144 -> 0.0014 | O126: ='Data Update Form'!F147 -> 0.0346 | P126: ='Data Update Form'!H147 -> 0.0021 | R126: Crop | S126: Max | T126: Mid | U126: Min
B127: Edible Beans | C127: ='Data Update Form'!$E332 -> 0.013 | F127: Grass/Legume | G127: 0 | H127: ='Data Update Form'!$D$334 -> 40.17 | I127: ='Data Update Form'!$E$334 -> 4.07 | J127: ='Data Update Form'!$F$334 -> 25.11 | K127: ='Data Update Form'!$P$293 -> 20 | L127: ='Data Update Form'!$R$293 -> 1 | M127: ='Data Update Form'!$P$294 -> 20 | N127: ='Data Update Form'!$R$294 -> 1.4 | O127: ='Data Update Form'!P296 -> 53.28 | P127: ='Data Update Form'!R296 -> 0.333 | R127: Corn | S127: ='Data Update Form'!AG16 -> 85 | T127: ='Data Update Form'!AG17 -> 65 | U127: ='Data Update Form'!AG18 -> 35
B128: Grass/Hay | C128: ='Data Update Form'!$E333 -> 3.9 | F128: Millet | G128: 0 | H128: --- | I128: ='Data Update Form'!$E$335 -> 0.4 | J128: ='Data Update Form'!$F$335 -> 0.4 | K128: ='Data Update Form'!$P$163 -> 0.0171 | L128: ='Data Update Form'!$R$163 -> 0.0085 | M128: ='Data Update Form'!$P$164 -> 0.0171 | N128: ='Data Update Form'!$R$164 -> 0.00114 | O128: ='Data Update Form'!F167 -> 0.03 | P128: ='Data Update Form'!H167 -> 0.00018
B129: Grass/Legume | C129: ='Data Update Form'!$E334 -> 4.07 | F129: Alsike Clover | G129: 0 | H129: =('Data Update Form'!$D$323+'Data Update Form'!$D$326+'Data Update Form'!$D$340)/3 -> 43.66666667 | I129: =('Data Update Form'!$E$323+'Data Update Form'!$E$326+'Data Update Form'!$E$340)/3 -> 11.33333333 | J129: =('Data Update Form'!$F$323+'Data Update Form'!$F$326+'Data Update Form'!$F$340)/3 -> 46 | K129: ='Data Update Form'!$P$309 -> 20 | L129: ='Data Update Form'!$R$309 -> 1 | M129: ='Data Update Form'!$P$310 -> 20 | N129: ='Data Update Form'!$R$310 -> 1.4 | O129: ='Data Update Form'!P312 -> 53.28 | P129: ='Data Update Form'!R312 -> 0.333 | S129: Fertilizer | T129: N | U129: P | V129: Weight | W129: Liquid? | X129: K | Y129: short fertilizer name
B130: Millet | C130: ='Data Update Form'!$E335 -> 0.4 | F130: Birdsfoot Trefoil | G130: 0 | H130: =('Data Update Form'!$D$323+'Data Update Form'!$D$326+'Data Update Form'!$D$340)/3 -> 43.66666667 | I130: =('Data Update Form'!$E$323+'Data Update Form'!$E$326+'Data Update Form'!$E$340)/3 -> 11.33333333 | J130: =('Data Update Form'!$F$323+'Data Update Form'!$F$326+'Data Update Form'!$F$340)/3 -> 46 | K130: ='Data Update Form'!$P$309 -> 20 | L130: ='Data Update Form'!$R$309 -> 1 | M130: ='Data Update Form'!$P$310 -> 20 | N130: ='Data Update Form'!$R$310 -> 1.4 | O130: ='Data Update Form'!P312 -> 53.28 | P130: ='Data Update Form'!R312 -> 0.333 | S130: ='Data Update Form'!K332 -> UAN (28% N) | T130: ='Data Update Form'!L332 -> 28 | U130: ='Data Update Form'!M332 -> 0 | V130: ='Data Update Form'!N332 -> 10.66 | W130: ='Data Update Form'!O332 -> gal/acre | X130: ='Data Update Form'!P332 -> 0 | Y130: =S130 -> UAN (28% N)
B131: Oats | C131: ='Data Update Form'!$E336 -> 0.28 | F131: Red Clover | G131: 0 | H131: =('Data Update Form'!$D$323+'Data Update Form'!$D$326+'Data Update Form'!$D$340)/3 -> 43.66666667 | I131: =('Data Update Form'!$E$323+'Data Update Form'!$E$326+'Data Update Form'!$E$340)/3 -> 11.33333333 | J131: =('Data Update Form'!$F$323+'Data Update Form'!$F$326+'Data Update Form'!$F$340)/3 -> 46 | K131: ='Data Update Form'!$P$309 -> 20 | L131: ='Data Update Form'!$R$309 -> 1 | M131: ='Data Update Form'!$P$310 -> 20 | N131: ='Data Update Form'!$R$310 -> 1.4 | O131: ='Data Update Form'!P312 -> 53.28 | P131: ='Data Update Form'!R312 -> 0.333 | S131: ='Data Update Form'!K333 -> UAN (32% N) | T131: ='Data Update Form'!L333 -> 32 | U131: ='Data Update Form'!M333 -> 0 | V131: ='Data Update Form'!N333 -> 11.06 | W131: ='Data Update Form'!O333 -> gal/acre | X131: ='Data Update Form'!P333 -> 0 | Y131: =S131 -> UAN (32% N)
B132: Oats w/ Straw | C132: ='Data Update Form'!$E337 -> 0.44 | F132: Rye | G132: 0 | H132: --- | I132: =('Data Update Form'!$E$341+'Data Update Form'!$E$342)/2 -> 0.565 | J132: =('Data Update Form'!$F$341+'Data Update Form'!$F$342)/2 -> 1.06 | K132: ='Data Update Form'!$P$183 -> 1.071 | L132: ='Data Update Form'!$R$183 -> 0.054 | M132: ='Data Update Form'!$P$184 -> 1.071 | N132: ='Data Update Form'!$R$184 -> 0.067 | O132: ='Data Update Form'!F187 -> 2.71 | P132: ='Data Update Form'!H187 -> 0.17 | S132: ='Data Update Form'!K334 -> Liquid 10-34-0 | T132: ='Data Update Form'!L334 -> 10 | U132: ='Data Update Form'!M334 -> 34 | V132: ='Data Update Form'!N334 -> 11.65 | W132: ='Data Update Form'!O334 -> gal/acre | X132: ='Data Update Form'!P334 -> 0 | Y132: =IFERROR(LEFT(S132,FIND("(",S132)-2),S132) -> Liquid 10-34-0
B133: Peas | C133: ='Data Update Form'!$E338 -> 0.01 | F133: Sugarbeets | G133: 0 | H133: --- | I133: ='Data Update Form'!$E$344 -> 2.2 | J133: ='Data Update Form'!$F$344 -> 7.3 | S133: ='Data Update Form'!K335 -> Liquid 9-18-9 | T133: ='Data Update Form'!L335 -> 9 | U133: ='Data Update Form'!M335 -> 18 | V133: ='Data Update Form'!N335 -> 11.11 | W133: ='Data Update Form'!O335 -> gal/acre | X133: ='Data Update Form'!P335 -> 9 | Y133: Liquid 9-18-9
B134: Potatoes | C134: ='Data Update Form'!$E339 -> 0.15 | F134: Sunflowers | G134: 0 | H134: --- | I134: ='Data Update Form'!$E$345 -> 0.97 | J134: ='Data Update Form'!$F$345 -> 0.9 | K134: ='Data Update Form'!$P$203 -> 0.0225 | L134: ='Data Update Form'!$R$203 -> 0.0011 | M134: ='Data Update Form'!$P$204 -> 0.0225 | N134: ='Data Update Form'!$R$204 -> 0.0014 | O134: ='Data Update Form'!F206 -> 0.041 | P134: ='Data Update Form'!H206 -> 0.00027 | S134: ='Data Update Form'!K336 -> Liquid 7-21-7 | T134: ='Data Update Form'!L336 -> 7 | U134: ='Data Update Form'!M336 -> 21 | V134: ='Data Update Form'!N336 -> 11 | W134: ='Data Update Form'!O336 -> gal/acre | X134: ='Data Update Form'!P336 -> 7 | Y134: Liquid 7-21-7
B135: Red Clover | C135: ='Data Update Form'!$E340 -> 12 | F135: Sweet Corn | G135: 0 | H135: --- | I135: ='Data Update Form'!$E$346 -> 11 | J135: ='Data Update Form'!$F$346 -> 13.9 | K135: ='Data Update Form'!$P$392 -> 11 | L135: ='Data Update Form'!$R$392 -> 0.533 | M135: ='Data Update Form'!$P$393 -> 11 | N135: ='Data Update Form'!$R$393 -> 0.7 | O135: ='Data Update Form'!F397 -> 22 | P135: ='Data Update Form'!H397 -> 0.13 | S135: ='Data Update Form'!K337 -> Liquid Amm. Thiosulfate (12-0-0-26) | T135: ='Data Update Form'!L337 -> 12 | U135: ='Data Update Form'!M337 -> 0 | V135: ='Data Update Form'!N337 -> 11 | W135: ='Data Update Form'!O337 -> gal/acre | X135: ='Data Update Form'!P337 -> 0 | Y135: Liquid Amm. Thiosulfate
B136: Rye | C136: ='Data Update Form'!$E341 -> 0.46 | F136: Peas | G136: 0 | H136: --- | I136: ='Data Update Form'!$E$338 -> 0.01 | J136: ='Data Update Form'!$F$338 -> 0.01 | K136: ='Data Update Form'!$P$412 -> 0.0171 | L136: ='Data Update Form'!$R$412 -> 0.00085 | M136: ='Data Update Form'!$P$413 -> 0.0171 | N136: ='Data Update Form'!$R$413 -> 0.0011 | O136: ='Data Update Form'!F417 -> 0.03 | P136: ='Data Update Form'!H417 -> 0.00018 | S136: ='Data Update Form'!K338 -> Urea (46% N) | T136: ='Data Update Form'!L338 -> 46 | U136: ='Data Update Form'!M338 -> 0 | V136: ='Data Update Form'!N338 -> N/A | W136: ='Data Update Form'!O338 -> lbs/acre | X136: ='Data Update Form'!P338 -> 0 | Y136: Urea
B137: Rye w/ Straw | C137: ='Data Update Form'!$E342 -> 0.67 | F137: Sorghum | G137: 0 | H137: --- | I137: ='Data Update Form'!$E$351 -> 9.5 | J137: ='Data Update Form'!$F$351 -> 34 | K137: ='Data Update Form'!$P$468 -> 11 | L137: ='Data Update Form'!$R$468 -> 0.533 | M137: ='Data Update Form'!$P$469 -> 11 | N137: ='Data Update Form'!$R$469 -> 0.7 | O137: ='Data Update Form'!F473 -> 43 | P137: ='Data Update Form'!H473 -> 0.3 | S137: ='Data Update Form'!K339 -> Anhydrous Ammonia (82% N) | T137: ='Data Update Form'!L339 -> 82 | U137: ='Data Update Form'!M339 -> 0 | V137: ='Data Update Form'!N339 -> N/A | W137: ='Data Update Form'!O339 -> lbs/acre | X137: ='Data Update Form'!P339 -> 0 | Y137: Anhydrous Ammonia
B138: Sorghum | C138: ='Data Update Form'!$E$351 -> 9.5 | F138: Potatoes | G138: 0 | H138: --- | I138: ='Data Update Form'!$E$339 -> 0.15 | J138: ='Data Update Form'!$F$339 -> 0.65 | K138: ='Data Update Form'!$F$450 -> 0.5 | L138: ='Data Update Form'!$H$450 -> 0.024 | M138: ='Data Update Form'!$F$451 -> 0.5 | N138: ='Data Update Form'!$H$451 -> 0.034 | O138: ='Data Update Form'!F453 -> 0.85 | P138: ='Data Update Form'!H453 -> 0.0057 | S138: ='Data Update Form'!K340 -> Ammonium Sulfate (21-0-0-26S) | T138: ='Data Update Form'!L340 -> 21 | U138: ='Data Update Form'!M340 -> 0 | V138: ='Data Update Form'!N340 -> N/A | W138: ='Data Update Form'!O340 -> lbs/acre | X138: ='Data Update Form'!P340 -> 0 | Y138: Ammonium Sulfate
B139: Soybeans | C139: ='Data Update Form'!$E343 -> 0.82 | S139: ='Data Update Form'!K341 -> DAP (18-46-0) | T139: ='Data Update Form'!L341 -> 18 | U139: ='Data Update Form'!M341 -> 46 | V139: ='Data Update Form'!N341 -> N/A | W139: ='Data Update Form'!O341 -> lbs/acre | X139: ='Data Update Form'!P341 -> 0 | Y139: DAP
B140: Sugarbeets | C140: ='Data Update Form'!$E344 -> 2.2 | S140: ='Data Update Form'!K342 -> MAP (11-48-0) | T140: ='Data Update Form'!L342 -> 11 | U140: ='Data Update Form'!M342 -> 48 | V140: ='Data Update Form'!N342 -> N/A | W140: ='Data Update Form'!O342 -> lbs/acre | X140: ='Data Update Form'!P342 -> 0 | Y140: MAP
B141: Sunflowers | C141: ='Data Update Form'!$E345 -> 0.97 | S141: ='Data Update Form'!K343 -> Triple Superphosphate (0-46-0) | T141: ='Data Update Form'!L343 -> 0 | U141: ='Data Update Form'!M343 -> 46 | V141: ='Data Update Form'!N343 -> N/A | W141: ='Data Update Form'!O343 -> lbs/acre | X141: ='Data Update Form'!P343 -> 0 | Y141: Triple Superphosphate
B142: Sweet Corn | C142: ='Data Update Form'!$E346 -> 11 | S142: ='Data Update Form'!K344 -> Blend 5-14-42 | T142: ='Data Update Form'!L344 -> 5 | U142: ='Data Update Form'!M344 -> 15 | V142: ='Data Update Form'!N344 -> N/A | W142: ='Data Update Form'!O344 -> lbs/acre | X142: ='Data Update Form'!P344 -> 42 | Y142: Blend 5-14-42
B143: Wheat | C143: ='Data Update Form'!$E347 -> 0.53 | S143: ='Data Update Form'!K345 -> Blend 9-23-30 | T143: ='Data Update Form'!L345 -> 9 | U143: ='Data Update Form'!M345 -> 23 | V143: ='Data Update Form'!N345 -> N/A | W143: ='Data Update Form'!O345 -> lbs/acre | X143: ='Data Update Form'!P345 -> 30 | Y143: Blend 9-23-30
B144: Wheat w/ Straw | C144: ='Data Update Form'!$E348 -> 0.69 | S144: ='Data Update Form'!K346 -> Potassium Chloride (0-0-60) | T144: ='Data Update Form'!L346 -> 0 | U144: ='Data Update Form'!M346 -> 0 | V144: ='Data Update Form'!N346 -> N/A | W144: ='Data Update Form'!O346 -> lbs/acre | X144: ='Data Update Form'!P346 -> 60 | Y144: Potassium Chloride
S145: ='Data Update Form'!K347 -> Potassium Sulfate (0-0-50-18(S)) | T145: ='Data Update Form'!L347 -> 0 | U145: ='Data Update Form'!M347 -> 0 | V145: ='Data Update Form'!N347 -> N/A | W145: ='Data Update Form'!O347 -> lbs/acre | X145: ='Data Update Form'!P347 -> 50 | Y145: Potassium Sulfate
S146: ='Data Update Form'!K348 -> Sul-Po-Mag (0-0-22-22(S)-11(Mg)) | T146: ='Data Update Form'!L348 -> 0 | U146: ='Data Update Form'!M348 -> 0 | V146: ='Data Update Form'!N348 -> N/A | W146: ='Data Update Form'!O348 -> lbs/acre | X146: ='Data Update Form'!P348 -> 22 | Y146: Sul-Po-Mag
B147: Names in Chart include: Animal_type, Production, Typical_tests | S147: ='Data Update Form'!K349 -> Potassium Nitrate (13-0-44) | T147: ='Data Update Form'!L349 -> 13 | U147: ='Data Update Form'!M349 -> 0 | V147: ='Data Update Form'!N349 -> N/A | W147: ='Data Update Form'!O349 -> lbs/acre | X147: ='Data Update Form'!P349 -> 44 | Y147: Potassium Nitrate
C148: Manure Production per 1,000 lbs. of Animal Weight | E148: Excreted Nutrients in Manure per 1,000 lbs. of Animal Weight | H148: Evaporative Losses | L148: Typical Nutrient Contents | S148: ='Data Update Form'!K350 -> Custom | T148: ='Data Update Form'!L350 -> 0 | U148: ='Data Update Form'!M350 -> 0 | V148: ='Data Update Form'!N350 -> 0 | W148: ='Data Update Form'!O350 -> 0 | X148: ='Data Update Form'!P350 -> 0 | Y148: Custom
C149: (tons/year) | D149: (gallons/year) | E149: (lbs per year) | F149: (lbs per year) | G149: (lbs per year) | H149: (value of 1 Cancels out in calcs) | L149: Liquid | O149: Solid
B150: Animal Type | C150: Solid | D150: Liquid | E150: N | F150: P2O5 | G150: K20 | H150: Scrape and Haul/Stockpile/Underfloor Dry | I150: Manure PBAk | J150: Litter | K150: animal type 2 | L150: N | M150: P | N150: K | O150: N | P150: P | Q150: K
B151: Beef Calf | C151: ='Data Update Form'!B215 -> 19.41987179 | D151: ='Data Update Form'!C215 -> 4592.136752 | E151: ='Data Update Form'!D215 -> 162.534188 | F151: ='Data Update Form'!E215 -> 73 | G151: ='Data Update Form'!F215 -> 129.465812 | H151: ='Data Update Form'!B373 -> 0.6830357143 | I151: ='Data Update Form'!E373 -> 0.6375 | J151: ='Data Update Form'!G373 -> 1 | K151: Beef | L151: ='Data Update Form'!B268 -> 27 | M151: ='Data Update Form'!C268 -> 18 | N151: ='Data Update Form'!D268 -> 24 | O151: ='Data Update Form'!E268 -> 9 | P151: ='Data Update Form'!F268 -> 4 | Q151: ='Data Update Form'!G268 -> 8
B152: Beef Feeder (High forage) | C152: ='Data Update Form'!B216 -> 8.981212121 | D152: ='Data Update Form'!C216 -> 2142.439394 | E152: ='Data Update Form'!D216 -> 132.0636364 | F152: ='Data Update Form'!E216 -> 39.37575758 | G152: ='Data Update Form'!F216 -> 82.84393939 | H152: ='Data Update Form'!B371 -> 0.6830357143 | I152: ='Data Update Form'!E371 -> 0.6375 | J152: ='Data Update Form'!G371 -> 1 | K152: Beef | L152: ='Data Update Form'!B265 -> 29 | M152: ='Data Update Form'!C265 -> 18 | N152: ='Data Update Form'!D265 -> 26 | O152: ='Data Update Form'!E265 -> 11 | P152: ='Data Update Form'!F265 -> 7 | Q152: ='Data Update Form'!G265 -> 11
B153: Beef Feeder (High energy) | C153: ='Data Update Form'!B217 -> 8.981212121 | D153: ='Data Update Form'!C217 -> 2142.439394 | E153: ='Data Update Form'!D217 -> 132.0636364 | F153: ='Data Update Form'!E217 -> 39.37575758 | G153: ='Data Update Form'!F217 -> 82.84393939 | H153: ='Data Update Form'!B372 -> 0.6830357143 | I153: ='Data Update Form'!E372 -> 0.6375 | J153: ='Data Update Form'!G372 -> 1 | K153: Beef | L153: ='Data Update Form'!B266 -> 29 | M153: ='Data Update Form'!C266 -> 18 | N153: ='Data Update Form'!D266 -> 26 | O153: ='Data Update Form'!E266 -> 11 | P153: ='Data Update Form'!F266 -> 7 | Q153: ='Data Update Form'!G266 -> 11
B154: Beef Cow | C154: ='Data Update Form'!B218 -> 16.79 | D154: ='Data Update Form'!C218 -> 3982.15 | E154: ='Data Update Form'!D218 -> 127.75 | F154: ='Data Update Form'!E218 -> 65.7 | G154: ='Data Update Form'!F218 -> 105.85 | H154: ='Data Update Form'!B373 -> 0.6830357143 | I154: ='Data Update Form'!E373 -> 0.6375 | J154: ='Data Update Form'!G373 -> 1 | K154: Beef | L154: ='Data Update Form'!B267 -> 20 | M154: ='Data Update Form'!C267 -> 16 | N154: ='Data Update Form'!D267 -> 24 | O154: ='Data Update Form'!E267 -> 7 | P154: ='Data Update Form'!F267 -> 4 | Q154: ='Data Update Form'!G267 -> 7
B155: Dairy Calf | C155: ='Data Update Form'!B220 -> 14.6 | D155: ='Data Update Form'!C220 -> 3358 | E155: ='Data Update Form'!D220 -> 153.3 | F155: ='Data Update Form'!E220 -> 26.76666667 | G155: ='Data Update Form'!F220 -> 126.5333333 | H155: ='Data Update Form'!B370 -> 0.4082840237 | I155: ='Data Update Form'!E370 -> 0.3810650888 | J155: ='Data Update Form'!G370 -> 1 | K155: Dairy | L155: ='Data Update Form'!B273 -> 27 | M155: ='Data Update Form'!C273 -> 14 | N155: ='Data Update Form'!D273 -> 24 | O155: ='Data Update Form'!E273 -> 10 | P155: ='Data Update Form'!F273 -> 3 | Q155: ='Data Update Form'!G273 -> 5
B156: Dairy Heifer | C156: ='Data Update Form'!B221 -> 10.95 | D156: ='Data Update Form'!C221 -> 2536.141667 | E156: ='Data Update Form'!D221 -> 110.7166667 | F156: ='Data Update Form'!E221 -> 37.71666667 | G156: ='Data Update Form'!F221 -> 112.5416667 | H156: ='Data Update Form'!B370 -> 0.4082840237 | I156: ='Data Update Form'!E370 -> 0.3810650888 | J156: ='Data Update Form'!G370 -> 1 | K156: Dairy | L156: ='Data Update Form'!B272 -> 32 | M156: ='Data Update Form'!C272 -> 14 | N156: ='Data Update Form'!D272 -> 28 | O156: ='Data Update Form'!E272 -> 10 | P156: ='Data Update Form'!F272 -> 3 | Q156: ='Data Update Form'!G272 -> 7
B157: Dairy Milk Cow | C157: ='Data Update Form'!B222 -> 20.23142857 | D157: ='Data Update Form'!C222 -> 4875.878571 | E157: ='Data Update Form'!D222 -> 263.0607143 | F157: ='Data Update Form'!E222 -> 135.3107143 | G157: ='Data Update Form'!F222 -> 147.3035714 | H157: ='Data Update Form'!B368 -> 0.7555282555 | I157: ='Data Update Form'!E368 -> 0.7051597052 | J157: ='Data Update Form'!G368 -> 1 | K157: Dairy | L157: ='Data Update Form'!B270 -> 31 | M157: ='Data Update Form'!C270 -> 15 | N157: ='Data Update Form'!D270 -> 19 | O157: ='Data Update Form'!E270 -> 10 | P157: ='Data Update Form'!F270 -> 3 | Q157: ='Data Update Form'!G270 -> 6
B158: Dairy Dry Cow | C158: ='Data Update Form'!B223 -> 9.300854342 | D158: ='Data Update Form'!C223 -> 2242.306443 | E158: ='Data Update Form'!D223 -> 109.5 | F158: ='Data Update Form'!E223 -> 39.30140056 | G158: ='Data Update Form'!F223 -> 86.50602241 | H158: ='Data Update Form'!B369 -> 0.5986696231 | I158: ='Data Update Form'!E369 -> 0.5587583149 | J158: ='Data Update Form'!G369 -> 1 | K158: Dairy | L158: ='Data Update Form'!B271 -> 31 | M158: ='Data Update Form'!C271 -> 15 | N158: ='Data Update Form'!D271 -> 19 | O158: ='Data Update Form'!E271 -> 10 | P158: ='Data Update Form'!F271 -> 3 | Q158: ='Data Update Form'!G271 -> 6
B159: Swine - Nursery | C159: ='Data Update Form'!B225 -> 13.77875 | D159: ='Data Update Form'!C225 -> 3367.125 | E159: ='Data Update Form'!D225 -> 282.875 | F159: ='Data Update Form'!E225 -> 118.625 | G159: ='Data Update Form'!F225 -> 164.25 | H159: 1 | I159: 1 | J159: 1 | K159: Swine | L159: ='Data Update Form'!B275 -> 25 | M159: ='Data Update Form'!C275 -> 19 | N159: ='Data Update Form'!D275 -> 22 | O159: ='Data Update Form'!E275 -> 13 | P159: ='Data Update Form'!F275 -> 8 | Q159: ='Data Update Form'!G275 -> 4
B160: Swine - Wean/Finish | C160: ='Data Update Form'!B226 -> 9.964860179 | D160: ='Data Update Form'!C226 -> 2411.439856 | E160: ='Data Update Form'!D226 -> 225.3541764 | F160: ='Data Update Form'!E226 -> 84.56627428 | G160: ='Data Update Form'!F226 -> 116.0620591 | H160: 1 | I160: 1 | J160: 1 | K160: Swine | L160: ='Data Update Form'!B276 -> 42 | M160: ='Data Update Form'!C276 -> 34 | N160: ='Data Update Form'!D276 -> 24 | O160: ='Data Update Form'!E276 -> 14 | P160: ='Data Update Form'!F276 -> 6 | Q160: ='Data Update Form'!G276 -> 4
B161: Swine- Wean/Finish (wet/dry feed) | C161: ='Data Update Form'!B227 -> 9.964860179 | D161: ='Data Update Form'!C227 -> 2411.439856 | E161: ='Data Update Form'!D227 -> 225.3541764 | F161: ='Data Update Form'!E227 -> 84.56627428 | G161: ='Data Update Form'!F227 -> 116.0620591 | H161: 1 | I161: 1 | J161: 1 | K161: Swine | L161: ='Data Update Form'!B277 -> 57 | M161: ='Data Update Form'!C277 -> 46 | N161: ='Data Update Form'!D277 -> 34 | O161: ='Data Update Form'!E277 -> 14 | P161: ='Data Update Form'!F277 -> 6 | Q161: ='Data Update Form'!G277 -> 4
B162: Swine - Grow/Finish | C162: ='Data Update Form'!B228 -> 9.011387723 | D162: ='Data Update Form'!C228 -> 2172.51857 | E162: ='Data Update Form'!D228 -> 210.9739705 | F162: ='Data Update Form'!E228 -> 76.05159285 | G162: ='Data Update Form'!F228 -> 104.0150738 | H162: 1 | I162: 1 | J162: 1 | K162: Swine | L162: ='Data Update Form'!B278 -> 58 | M162: ='Data Update Form'!C278 -> 44 | N162: ='Data Update Form'!D278 -> 40 | O162: ='Data Update Form'!E278 -> 16 | P162: ='Data Update Form'!F278 -> 9 | Q162: ='Data Update Form'!G278 -> 5
B163: Swine- Grow/Finish (wet/dry feed) | C163: ='Data Update Form'!B229 -> 9.011387723 | D163: ='Data Update Form'!C229 -> 2172.51857 | E163: ='Data Update Form'!D229 -> 210.9739705 | F163: ='Data Update Form'!E229 -> 76.05159285 | G163: ='Data Update Form'!F229 -> 104.0150738 | H163: 1 | I163: 1 | J163: 1 | K163: Swine | L163: ='Data Update Form'!B279 -> 75 | M163: ='Data Update Form'!C279 -> 54 | N163: ='Data Update Form'!D279 -> 40 | O163: ='Data Update Form'!E279 -> 22 | P163: ='Data Update Form'!F279 -> 22 | Q163: ='Data Update Form'!G279 -> 17
B164: Swine - Gestating Sow | C164: ='Data Update Form'!B230 -> 4.149847222 | D164: ='Data Update Form'!C230 -> 1000.505556 | E164: ='Data Update Form'!D230 -> 57.99444444 | F164: ='Data Update Form'!E230 -> 36.5 | G164: ='Data Update Form'!F230 -> 46.03055556 | H164: 1 | I164: 1 | J164: 1 | K164: Swine | L164: ='Data Update Form'!B280 -> 25 | M164: ='Data Update Form'!C280 -> 25 | N164: ='Data Update Form'!D280 -> 24 | O164: ='Data Update Form'!E280 -> 9 | P164: ='Data Update Form'!F280 -> 7 | Q164: ='Data Update Form'!G280 -> 5
B165: Swine - Lactating Sow | C165: ='Data Update Form'!B231 -> 8.534916667 | D165: ='Data Update Form'!C231 -> 2026.561111 | E165: ='Data Update Form'!D231 -> 163.4388889 | F165: ='Data Update Form'!E231 -> 108.6888889 | G165: ='Data Update Form'!F231 -> 128.5611111 | H165: 1 | I165: 1 | J165: 1 | K165: Swine | L165: ='Data Update Form'!B281 -> 15 | M165: ='Data Update Form'!C281 -> 12 | N165: ='Data Update Form'!D281 -> 11 | O165: ='Data Update Form'!E281 -> 14 | P165: ='Data Update Form'!F281 -> 6 | Q165: ='Data Update Form'!G281 -> 4
B166: Swine - Boar | C166: ='Data Update Form'!B232 -> 3.757472222 | D166: ='Data Update Form'!C232 -> 902.9694444 | E166: ='Data Update Form'!D232 -> 51.50555556 | F166: ='Data Update Form'!E232 -> 41.975 | G166: ='Data Update Form'!F232 -> 41.975 | H166: 1 | I166: 1 | J166: 1 | K166: Swine | L166: ='Data Update Form'!B282 -> 25 | M166: ='Data Update Form'!C282 -> 25 | N166: ='Data Update Form'!D282 -> 24 | O166: ='Data Update Form'!E282 -> 9 | P166: ='Data Update Form'!F282 -> 7 | Q166: ='Data Update Form'!G282 -> 5
B167: Chickens - Layer | C167: ='Data Update Form'!B234 -> 9.125 | D167: ='Data Update Form'!C234 -> 2068.333333 | E167: ='Data Update Form'!D234 -> 316.3333333 | F167: ='Data Update Form'!E234 -> 97.33333333 | G167: ='Data Update Form'!F234 -> 146 | H167: ='Data Update Form'!B374 -> 0.5938914027 | I167: ='Data Update Form'!E374 -> 0.5542986425 | J167: ='Data Update Form'!G374 -> 1 | K167: Poultry | L167: ='Data Update Form'!B284 -> 57 | M167: ='Data Update Form'!C284 -> 52 | N167: ='Data Update Form'!D284 -> 33 | O167: ='Data Update Form'!E284 -> 34 | P167: ='Data Update Form'!F284 -> 51 | Q167: ='Data Update Form'!G284 -> 26
B168: Chickens - Broiler | C168: ='Data Update Form'!B235 -> 17.3375 | D168: ='Data Update Form'!C235 -> 4197.5 | E168: ='Data Update Form'!D235 -> 383.25 | F168: ='Data Update Form'!E235 -> 255.5 | G168: ='Data Update Form'!F235 -> 182.5 | H168: ='Data Update Form'!B375 -> 0.4166666667 | I168: ='Data Update Form'!E375 -> 0.3888888889 | J168: ='Data Update Form'!G375 -> 1 | K168: Poultry | L168: ='Data Update Form'!B285 -> 63 | M168: ='Data Update Form'!C285 -> 40 | N168: ='Data Update Form'!D285 -> 29 | O168: ='Data Update Form'!E285 -> 46 | P168: ='Data Update Form'!F285 -> 53 | Q168: ='Data Update Form'!G285 -> 36
B169: Turkeys | C169: ='Data Update Form'!B236 -> 7.665 | D169: ='Data Update Form'!C236 -> 1825 | E169: ='Data Update Form'!D236 -> 243.6375 | F169: ='Data Update Form'!E236 -> 160.6 | G169: ='Data Update Form'!F236 -> 105.85 | H169: ='Data Update Form'!B376 -> 0.4772727273 | I169: ='Data Update Form'!E376 -> 0.4454545455 | J169: ='Data Update Form'!G376 -> 0.4613636364 | K169: Poultry | L169: ='Data Update Form'!B286 -> 56 | M169: ='Data Update Form'!C286 -> 39 | N169: ='Data Update Form'!D286 -> 31 | O169: ='Data Update Form'!E286 -> 40 | P169: ='Data Update Form'!F286 -> 50 | Q169: ='Data Update Form'!G286 -> 30
B170: Horse | C170: ='Data Update Form'!B237 -> 10.028375 | D170: ='Data Update Form'!C237 -> 2419.95 | E170: ='Data Update Form'!D237 -> 87.6 | F170: ='Data Update Form'!E237 -> 38.325 | G170: ='Data Update Form'!F237 -> 52.925 | H170: 1 | I170: 1 | J170: 1 | K170: Horse | L170: ='Data Update Form'!B287 -> 0 | M170: ='Data Update Form'!C287 -> 0 | N170: ='Data Update Form'!D287 -> 0 | O170: ='Data Update Form'!E287 -> 14 | P170: ='Data Update Form'!F287 -> 4 | Q170: ='Data Update Form'!G287 -> 14
B171: Sheep | C171: ='Data Update Form'!B238 -> 7.4825 | D171: ='Data Update Form'!C238 -> 1825 | E171: ='Data Update Form'!D238 -> 146 | F171: ='Data Update Form'!E238 -> 73 | G171: ='Data Update Form'!F238 -> 146 | H171: 1 | I171: 1 | J171: 1 | K171: Sheep | L171: ='Data Update Form'!B288 -> 0 | M171: ='Data Update Form'!C288 -> 0 | N171: ='Data Update Form'!D288 -> 0 | O171: ='Data Update Form'!E288 -> 18 | P171: ='Data Update Form'!F288 -> 11 | Q171: ='Data Update Form'!G288 -> 26
B172: Open Lot Runoff | H172: 1 | I172: 1 | J172: 1 | K172: Other | L172: ='Data Update Form'!B289 -> 4 | M172: ='Data Update Form'!C289 -> 1 | N172: ='Data Update Form'!D289 -> 4 | O172: ='Data Update Form'!E289 -> 0 | P172: ='Data Update Form'!F289 -> 0 | Q172: ='Data Update Form'!G289 -> 0
B173: Milkhouse Waste | H173: 1 | I173: 1 | J173: 1 | K173: Other | L173: ='Data Update Form'!B290 -> 1 | M173: ='Data Update Form'!C290 -> 0.5 | N173: ='Data Update Form'!D290 -> 1 | O173: ='Data Update Form'!E290 -> 0 | P173: ='Data Update Form'!F290 -> 0 | Q173: ='Data Update Form'!G290 -> 0
B174: Other Process Wastewater | H174: 1 | I174: 1 | J174: 1 | K174: Other

Sheet Data Update Form (hidden)
A1: Fertilizer Recommendations for Agronomic Crops in MN (BU-06240-S Revised 2001) | I1: = not used in calc's | K1: P Rec's use soil test values (except sugar beets) | Q1: changed 2017 to align with 2016 revisions to corn rec's - changed all crops to Alfalfa stand age nomenclature instead of good, fair, poor
A3: CORN - CORN - CORN - CORN - CORN - CORN - CORN - CORN - CORN - CORN - CORN - CORN - CORN - CORN - CORN - CORN - CORN - CORN | AE3: CORN on IRRIGATED SAND Adjustments (2015)
B4: Nitrogen Recommendations | F4: new rec's | K4: Phosphorus Recommendations (Broadcast) | U4: Potassium Recommendations (Broadcast) | AK4: Nitrogen Recommendations | AT4: new rec's
C5: Expected Yield (bu/BAre) | M5: Soil Test P (ppm) | AE5: 235 | AF5: = used in 2015 | AQ5: Expected Yield (bu/BAre)
A6: Crop Grown Last Year | B6: Organic Matter Level | C6: <100 | D6: 100-124 | E6: 125-149 | F6: 150-174 | G6: 175-199 | H6: 200+ | M6: Very Low | N6: Low | O6: Medium | Q6: High | S6: Very High | V6: Soil Test K (ppm) | AF6: MRTN | AG6: low | AH6: high | AJ6: Crop Grown Last Year | AK6: Organic Matter Level | AQ6: <100 | AR6: 100-124 | AS6: 125-149 | AT6: 150-174 | AU6: 175-199 | AV6: 200+
A7: Alfalfa 2+ year old stand | B7: low | C7: 0 | D7: 0 | E7: 40 | F7: 40 | G7: 40 | H7: 40 | J7: good | K7: Expected | L7: Bray: | M7: 0-5 | N7: 6-10 | O7: 11-15 | Q7: 16-20 | S7: 21+ | V7: Very Low | W7: Low | X7: Medium | Z7: High | AB7: Very High | AE7: 0.05 | AF7: 235 | AG7: 210 | AH7: 255 | AJ7: Alfalfa 2+ year old stand | AK7: low | AQ7: =$AV$18-$AW$8 -> 150 | AR7: 150 | AS7: 150 | AT7: 150 | AU7: 150 | AV7: =$AV$18-$AW$8 -> 150 | AX7: good
B8: med/high | C8: 0 | D8: 0 | E8: 40 | F8: 40 | G8: 40 | H8: 40 | I8: =$H$18-H8 -> 155 | K8: Yield | L8: Olsen: | M8: 0-3 | N8: 4-7 | O8: 8-11 | Q8: 12-15 | S8: 16+ | U8: Yield | V8: 0-40 | W8: 41-80 | X8: 81-120 | Z8: 121-160 | AB8: 161+ | AE8: 0.1 | AF8: 210 | AG8: 190 | AH8: 225 | AK8: med/high | AQ8: 150 | AR8: 150 | AS8: 150 | AT8: 150 | AU8: 150 | AV8: =$AV$18-$AW$8 -> 150 | AW8: 85
A9: Alfalfa 1 year old stand | B9: low | C9: 30 | D9: 30 | E9: 80 | F9: 80 | G9: 80 | H9: 80 | J9: fair | K9: <100 | M9: 60 | N9: 40 | O9: 25 | Q9: 10 | S9: 0 | U9: <100 | V9: 100 | W9: =#REF! ->  | X9: =#REF! ->  | Z9: =#REF! ->  | AB9: =#REF! ->  | AE9: 0.15 | AF9: 190 | AG9: 175 | AH9: 210 | AJ9: Alfalfa 1 year old stand | AK9: low | AQ9: =$AV$18-$AW$10 -> 170 | AR9: 170 | AS9: 170 | AT9: 170 | AU9: 170 | AV9: =$AV$18-$AW$10 -> 170 | AX9: fair
B10: med/high | C10: 30 | D10: 30 | E10: 80 | F10: 80 | G10: 80 | H10: 80 | I10: =$H$18-H10 -> 115 | K10: 100-124 | M10: 75 | N10: 50 | O10: 30 | Q10: 10 | S10: 0 | U10: 100-124 | V10: 120 | W10: =#REF! ->  | X10: =#REF! ->  | Z10: =#REF! ->  | AB10: =#REF! ->  | AE10: 0.2 | AF10: 180 | AG10: 165 | AH10: 190 | AK10: med/high | AQ10: 170 | AR10: 170 | AS10: 170 | AT10: 170 | AU10: 170 | AV10: =$AV$18-$AW$10 -> 170 | AW10: 65
A11: Soybeans | B11: low | C11: 100 | D11: 100 | E11: 150 | F11: 150 | G11: 150 | H11: 150 | J11: poor | K11: 125-149 | M11: 85 | N11: 60 | O11: 35 | Q11: 10 | S11: 0 | U11: 125-149 | V11: 145 | W11: =#REF! ->  | X11: =#REF! ->  | Z11: =#REF! ->  | AB11: =#REF! ->  | AJ11: Soybeans | AK11: low | AQ11: =$AV$18-$AW$12 -> 205 | AR11: 205 | AS11: 205 | AT11: 205 | AU11: 205 | AV11: =$AV$18-$AW$12 -> 205 | AX11: poor
B12: med/high | C12: 100 | D12: 100 | E12: 150 | F12: 150 | G12: 150 | H12: 150 | I12: =$H$18-H12 -> 45 | K12: 150-174 | M12: 100 | N12: 70 | O12: 40 | Q12: 15 | S12: 0 | U12: 150-174 | V12: 165 | W12: =#REF! ->  | X12: =#REF! ->  | Z12: =#REF! ->  | AB12: =#REF! ->  | AK12: med/high | AQ12: 205 | AR12: 205 | AS12: 205 | AT12: 205 | AU12: 205 | AV12: =$AV$18-$AW$12 -> 205 | AW12: 30
A13: Edible beans, field peas | B13: low | C13: 125 | D13: 125 | E13: 175 | F13: 175 | G13: 175 | H13: 175 | K13: 175-199 | M13: 110 | N13: 75 | O13: 45 | Q13: 15 | S13: 0 | U13: 175-199 | V13: 185 | W13: =#REF! ->  | X13: =#REF! ->  | Z13: =#REF! ->  | AB13: =#REF! ->  | AE13: Second Year Legume Credit | AJ13: Edible beans, field peas | AK13: low | AQ13: =$AV$18-$AW$14 -> 215 | AR13: 215 | AS13: 215 | AT13: 215 | AU13: 215 | AV13: =$AV$18-$AW$14 -> 215
B14: med/high | C14: 125 | D14: 125 | E14: 175 | F14: 175 | G14: 175 | H14: 175 | I14: =$H$18-H14 -> 20 | K14: 200+ | M14: 120 | N14: 85 | O14: 50 | Q14: 15 | S14: 0 | U14: 200+ | V14: 205 | W14: =#REF! ->  | X14: =#REF! ->  | Z14: =#REF! ->  | AB14: =#REF! ->  | AK14: med/high | AQ14: 215 | AR14: 215 | AS14: 215 | AT14: 215 | AU14: 215 | AV14: =$AV$18-$AW$14 -> 215 | AW14: 20
A15: Group 1 Crops: Clover, fallow, grass/legume hay, grass/leg, pasture, etc. | B15: low | C15: 70 | D15: 70 | E15: 120 | F15: 120 | G15: 120 | H15: 120 | U15: Calculated Potassium Recommendations (Used if test value is entered) | AE15: Legume Crop | AG15: Credit | AJ15: Group 1 Crops: Clover, fallow, grass/legume hay, grass/leg, pasture, etc. | AK15: low | AQ15: =$AV$18-$AW$16 -> 160 | AR15: 160 | AS15: 160 | AT15: 160 | AU15: 160 | AV15: =$AV$18-$AW$16 -> 160
B16: med/high | C16: 70 | D16: 70 | E16: 120 | F16: 120 | G16: 120 | H16: 120 | I16: =$H$18-H16 -> 75 | U16: K20 = [W - (X)*(K ppm)]*(Expected Yield) | Y16: W = | AA16: X= | AE16: Alfalfa 2+ year old stand | AG16: 85 | AK16: med/high | AQ16: 160 | AR16: 160 | AS16: 160 | AT16: 160 | AU16: 160 | AV16: =$AV$18-$AW$16 -> 160 | AW16: 75
A17: Group 2 Crops: Corn, wheat, oats, potatoes, sugar beets, grass, rye, etc. | B17: low | C17: 145 | D17: 145 | E17: 195 | F17: 195 | G17: 195 | H17: 195 | AE17: Alfalfa 1 year old stand | AG17: 65 | AJ17: Group 2 Crops: Corn, wheat, oats, potatoes, sugar beets, grass, rye, etc. | AK17: low | AQ17: =$AV$18 -> 235 | AR17: 235 | AS17: 235 | AT17: 235 | AU17: =$AV$18 -> 235 | AV17: =$AV$18 -> 235
B18: med/high | C18: 145 | D18: 145 | E18: 195 | F18: 195 | G18: 195 | H18: 195 | AE18: Red Clover | AG18: 35 | AK18: med/high | AQ18: 235 | AR18: 235 | AS18: 235 | AT18: 235 | AU18: =$AV$18 -> 235 | AV18: =$AE$5 -> 235
J19: Second Year Legume Credit | M19: Legume Crop | O19: Credit
A20: Calculated Phosphorus Recommendations (Used if test value is entered) | M20: Alfalfa 2+ year old stand | O20: 115
A21: P2O5 = [W - (X)*(Bray P ppm)]*(Expected Yield) | E21: W= | F21: 0.7 | G21: X= | H21: 0.035 | M21: Alfalfa 1 year old stand | O21: 75
A22: P2O5 = [Y - (Z)*(Olsen P ppm)]*(Expected Yield) | E22: Y= | F22: 0.7 | G22: Z= | H22: 0.044 | M22: Red Clover | O22: 35
A24: Calculated Potassium Recommendations (Used if test value is entered)
A25: K20 = [A - (B)*(K ppm)]*(Expected Yield) | E25: A= | F25: 1.166 | G25: B= | H25: 0.0073
A27: Wheat - Wheat - Wheat - Wheat - Wheat - Wheat - Wheat - Wheat - Wheat - Wheat - Wheat - Wheat - Wheat - Wheat - Wheat - Wheat - Wheat
B28: Nitrogen Recommendations | K28: Phosphorus Recommendations (Broadcast)
C29: Expected Yield (bu/BAre) | M29: Soil Test P (ppm)
A30: Crop Grown Last Year | B30: Organic Matter Level | C30: 40-49 | D30: 50-59 | E30: 60-69 | F30: 70-79 | G30: 80+ | M30: Very Low | N30: Low | O30: Medium | Q30: High | S30: Very High
A31: Alfalfa 2+ year old stand | B31: low | C31: 0 | D31: 30 | E31: 55 | F31: 80 | G31: 95 | I31: Alfalfa - good | K31: Expected | L31: Bray: | M31: 0-5 | N31: 6-10 | O31: 11-15 | Q31: 16-20 | S31: 21+
B32: med/high | C32: 0 | D32: 0 | E32: 35 | F32: 60 | G32: 75 | K32: Yield | L32: Olsen: | M32: 0-3 | N32: 4-7 | O32: 8-11 | Q32: 12-15 | S32: 16+
A33: Alfalfa 1 year old stand | B33: low | C33: 30 | D33: 55 | E33: 80 | F33: 105 | G33: 120 | I33: Alfalfa- fair | K33: =C30 -> 40-49 | M33: 40 | N33: 30 | O33: 15 | Q33: 0 | S33: 0
B34: med/high | C34: 0 | D34: 35 | E34: 60 | F34: 85 | G34: 100 | K34: =D30 -> 50-59 | M34: 50 | N34: 35 | O34: 20 | Q34: 0 | S34: 0
A35: Soybeans | B35: low | C35: 60 | D35: 85 | E35: 110 | F35: 135 | G35: 150 | K35: =E30 -> 60-69 | M35: 60 | N35: 45 | O35: 20 | Q35: 0 | S35: 0
B36: med/high | C36: 40 | D36: 65 | E36: 90 | F36: 115 | G36: 130 | K36: =F30 -> 70-79 | M36: 70 | N36: 50 | O36: 25 | Q36: 0 | S36: 0
A37: Edible beans, field peas | B37: low | C37: 70 | D37: 95 | E37: 120 | F37: 145 | G37: 160 | K37: =G30 -> 80+ | M37: 80 | N37: 55 | O37: 25 | Q37: 0 | S37: 0
B38: med/high | C38: 50 | D38: 75 | E38: 100 | F38: 125 | G38: 140 | K38: Calculated Phosphorus Recommendations (Used if test value is entered)
A39: Group 1 Crops: Clover, fallow, grass/legume hay, grass/leg, pasture, etc. | B39: low | C39: 30 | D39: 55 | E39: 80 | F39: 105 | G39: 120 | K39: P2O5 = [W - (X)*(Bray P ppm)]*(Expected Yield) | O39: W= | P39: 1.071 | Q39: X= | R39: 0.054
B40: med/high | C40: 0 | D40: 35 | E40: 60 | F40: 85 | G40: 100 | K40: P2O5 = [Y - (Z)*(Olsen P ppm)]*(Expected Yield) | O40: Y= | P40: 1.071 | Q40: Z= | R40: 0.067
A41: Group 2 Crops: Corn, wheat, oats, potatoes, sugar beets, grass, rye, etc. | B41: low | C41: 80 | D41: 105 | E41: 130 | F41: 155 | G41: 170 | I41: Alfalfa - poor
B42: med/high | C42: 60 | D42: 85 | E42: 110 | F42: 135 | G42: 150 | J42: Second Year Legume Credit | M42: Legume Crop | O42: Credit
A43: Alfalfa good = 2+, Fair = 1 yr, poor considered group 2 | M43: Alfalfa 2+ year old stand | O43: 35
A44: Calculated Potassium Recommendations (Used if test value is entered) | M44: Alfalfa 1 year old stand & birdsfoot trefoil | O44: 25
A45: K2O = [A - (B)*(K ppm)]*(Expected Yield) | E45: A= | F45: 2.71 | G45: B= | H45: 0.017 | M45: Red Clover | O45: 20
A47: Barley - Barley - Barley - Barley - Barley - Barley - Barley - Barley - Barley - Barley - Barley - Barley - Barley - Barley - Barley - Barley - Barley
B48: Nitrogen Recommendations | K48: Phosphorus Recommendations (Broadcast)
C49: Expected Yield (bu/BAre) | M49: Soil Test P (ppm)
A50: Crop Grown Last Year | B50: Organic Matter Level | C50: 0-50 | D50: 50-59 | E50: 60-69 | F50: 70-79 | G50: 80-89 | H50: 90-99 | I50: 100+ | M50: Very Low | N50: Low | O50: Medium | Q50: High | S50: Very High
A51: Alfalfa 2+ year old stand | B51: low | C51: 0 | D51: 0 | E51: 15 | F51: 30 | G51: 45 | H51: 60 | I51: 75 | J51: Good & Fair | K51: Expected | L51: Bray: | M51: 0-5 | N51: 6-10 | O51: 11-15 | Q51: 16-20 | S51: 21+
B52: med/high | C52: 0 | D52: 0 | E52: 0 | F52: 10 | G52: 25 | H52: 40 | I52: 55 | K52: Yield | L52: Olsen: | M52: 0-3 | N52: 4-7 | O52: 8-11 | Q52: 12-15 | S52: 16+
A53: Alfalfa 1 year old stand | B53: low | C53: 30 | D53: 50 | E53: 65 | F53: 80 | G53: 95 | H53: 110 | I53: 125 | J53: Poor | K53: =C50 -> 0-50 | M53: 35 | N53: 25 | O53: 15 | Q53: 0 | S53: 0
B54: med/high | C54: 0 | D54: 30 | E54: 45 | F54: 60 | G54: 75 | H54: 90 | I54: 105 | K54: =D50 -> 50-59 | M54: 40 | N54: 25 | O54: 15 | Q54: 0 | S54: 0
A55: Soybeans | B55: low | C55: 30 | D55: 50 | E55: 65 | F55: 80 | G55: 95 | H55: 110 | I55: 125 | K55: =E50 -> 60-69 | M55: 45 | N55: 30 | O55: 20 | Q55: 0 | S55: 0
B56: med/high | C56: 0 | D56: 30 | E56: 45 | F56: 60 | G56: 75 | H56: 90 | I56: 105 | K56: =F50 -> 70-79 | M56: 50 | N56: 35 | O56: 20 | Q56: 0 | S56: 0
A57: Edible beans, field peas | B57: low | C57: 40 | D57: 60 | E57: 75 | F57: 90 | G57: 105 | H57: 120 | I57: 135 | K57: =G50 -> 80-89 | M57: 60 | N57: 40 | O57: 25 | Q57: 0 | S57: 0
B58: med/high | C58: 0 | D58: 40 | E58: 55 | F58: 70 | G58: 85 | H58: 100 | I58: 115 | K58: =H50 -> 90-99 | M58: 65 | N58: 45 | O58: 25 | Q58: 0 | S58: 0
A59: Group 1 Crops: Clover, fallow, grass/legume hay, grass/leg, pasture, etc. | B59: low | C59: 0 | D59: 20 | E59: 35 | F59: 50 | G59: 65 | H59: 80 | I59: 95 | K59: =I50 -> 100+ | M59: 70 | N59: 50 | O59: 0 | Q59: 0 | S59: 0
B60: med/high | C60: 0 | D60: 0 | E60: 15 | F60: 30 | G60: 45 | H60: 60 | I60: 75 | K60: Calculated Phosphorus Recommendations (Used if test value is entered)
A61: Group 2 Crops: Corn, wheat, oats, potatoes, sugar beets, grass, rye, etc. | B61: low | C61: 50 | D61: 70 | E61: 85 | F61: 100 | G61: 115 | H61: 130 | I61: 145 | K61: P2O5 = [W - (X)*(Bray P ppm)]*(Expected Yield) | O61: W= | P61: 0.785 | Q61: X= | R61: 0.039
B62: med/high | C62: 30 | D62: 50 | E62: 65 | F62: 80 | G62: 95 | H62: 110 | I62: 125 | K62: P2O5 = [Y - (Z)*(Olsen P ppm)]*(Expected Yield) | O62: Y= | P62: 0.785 | Q62: Z= | R62: 0.05
A63: Alfalfa good and Fair combined, poor seperated from soybeans
A64: Calculated Potassium Recommendations (Used if test value is entered) | J64: Second Year Legume Credit | M64: Legume Crop | O64: Credit
A65: K2O = [A - (B)*(K ppm)]*(Expected Yield) | E65: A= | F65: 1.286 | G65: B= | H65: 0.0085 | M65: Alfalfa 2+ year old stand | O65: 35 | Q65: Alfalfa -good
M66: Alfalfa 1 year old stand | O66: 20 | Q66: alfalfa fair & poor combined 20 lb credit used to not short N
M67: Red Clover & birdsfoot trefoil | O67: 20
A69: Oats - Oats - Oats - Oats - Oats - Oats - Oats - Oats - Oats - Oats - Oats - Oats - Oats - Oats - Oats - Oats - Oats - Oats - Oats - Oats - Oats - Oats
B70: Nitrogen Recommendations | K70: Phosphorus Recommendations (Broadcast)
C71: Expected Yield (bu/BAre) | M71: Soil Test P (ppm)
A72: Crop Grown Last Year | B72: Organic Matter Level | C72: 40-60 | D72: 61-80 | E72: 81-100 | F72: 101-120 | G72: 121+ | M72: Very Low | N72: Low | O72: Medium | Q72: High | S72: Very High
A73: Alfalfa 2+ year old stand | B73: low | C73: 0 | D73: 0 | E73: 0 | F73: 0 | G73: 0 | J73: good | K73: Expected | L73: Bray: | M73: 0-5 | N73: 6-10 | O73: 11-15 | Q73: 16-20 | S73: 21+
B74: med/high | C74: 0 | D74: 0 | E74: 0 | F74: 0 | G74: 0 | K74: Yield | L74: Olsen: | M74: 0-3 | N74: 4-7 | O74: 8-11 | Q74: 12-15 | S74: 16+
A75: Alfalfa 1 year old stand | B75: low | C75: 0 | D75: 20 | E75: 40 | F75: 60 | G75: 80 | J75: fair and poor | K75: =C72 -> 40-60 | M75: 30 | N75: 20 | O75: 10 | Q75: 0 | S75: 0
B76: med/high | C76: 0 | D76: 0 | E76: 30 | F76: 50 | G76: 70 | K76: =D72 -> 61-80 | M76: 40 | N76: 30 | O76: 15 | Q76: 0 | S76: 0
A77: Soybeans | B77: low | C77: 0 | D77: 20 | E77: 40 | F77: 60 | G77: 80 | K77: =E72 -> 81-100 | M77: 50 | N77: 35 | O77: 20 | Q77: 0 | S77: 0
B78: med/high | C78: 0 | D78: 0 | E78: 30 | F78: 50 | G78: 70 | K78: =F72 -> 101-120 | M78: 60 | N78: 45 | O78: 25 | Q78: 10 | S78: 0
A79: Edible beans, field peas | B79: low | C79: 20 | D79: 40 | E79: 60 | F79: 80 | G79: 100 | K79: =G72 -> 121+ | M79: 70 | N79: 50 | O79: 30 | Q79: 10 | S79: 0
B80: med/high | C80: 10 | D80: 30 | E80: 50 | F80: 70 | G80: 90
A81: Group 1 Crops: Clover, fallow, grass/legume hay, grass/leg, pasture, etc. | B81: low | C81: 0 | D81: 0 | E81: 0 | F81: 25 | G81: 45
B82: med/high | C82: 0 | D82: 0 | E82: 0 | F82: 15 | G82: 35 | K82: Calculated Phosphorus Recommendations (Used if test value is entered)
A83: Group 2 Crops: Corn, wheat, oats, potatoes, sugar beets, grass, rye, etc. | B83: low | C83: 40 | D83: 60 | E83: 80 | F83: 100 | G83: 120 | K83: P2O5 = [W - (X)*(Bray P ppm)]*(Expected Yield) | O83: W= | P83: 0.644 | Q83: X= | R83: 0.032
B84: med/high | C84: 30 | D84: 50 | E84: 70 | F84: 90 | G84: 110 | K84: P2O5 = [Y - (Z)*(Olsen P ppm)]*(Expected Yield) | O84: Y= | P84: 0.644 | Q84: Z= | R84: 0.041
A85: Alfalfa Poor and Fair combined, poor seperated from soybeans
A86: Calculated Potassium Recommendations (Used if test value is entered)
A87: K2O = [A - (B)*(K ppm)]*(Expected Yield) | E87: A= | F87: 1.277 | G87: B= | H87: 0.0086
A89: Buckwheat - Buckwheat - Buckwheat - Buckwheat - Buckwheat - Buckwheat - Buckwheat - Buckwheat - Buckwheat - Buckwheat - Buckwheat
B90: Nitrogen Recommendations | K90: Phosphorus Recommendations (Broadcast)
C91: Expected Yield (lb/BAre) | M91: Soil Test P (ppm)
A92: Crop Grown Last Year | B92: Organic Matter Level | C92: 1200-1450 | D92: 1451-1700 | E92: 1701-1950 | F92: 1951-2200 | M92: Very Low | N92: Low | O92: Medium | Q92: High | S92: Very High
A93: Alfalfa 2+ year old stand | B93: low | C93: 0 | D93: 0 | E93: 0 | F93: 0 | J93: good | K93: Expected | L93: Bray: | M93: 0-5 | N93: 6-10 | O93: 11-15 | Q93: 16-20 | S93: 21+
B94: med/high | C94: 0 | D94: 0 | E94: 0 | F94: 0 | K94: Yield | L94: Olsen: | M94: 0-3 | N94: 4-7 | O94: 8-11 | Q94: 12-15 | S94: 16+
A95: Alfalfa 1 year old stand | B95: low | C95: 0 | D95: 10 | E95: 20 | F95: 30 | J95: fair & poor | K95: =C92 -> 1200-1450 | M95: 35 | N95: 20 | O95: 15 | Q95: 0 | S95: 0
B96: med/high | C96: 0 | D96: 0 | E96: 0 | F96: 0 | K96: =D92 -> 1451-1700 | M96: 40 | N96: 25 | O96: 15 | Q96: 0 | S96: 0
A97: Soybeans | B97: low | C97: 0 | D97: 10 | E97: 20 | F97: 30 | K97: =E92 -> 1701-1950 | M97: 45 | N97: 30 | O97: 20 | Q97: 0 | S97: 0
B98: med/high | C98: 0 | D98: 0 | E98: 0 | F98: 0 | K98: =F92 -> 1951-2200 | M98: 50 | N98: 35 | O98: 20 | Q98: 0 | S98: 0
A99: Edible beans, field peas | B99: low | C99: 20 | D99: 30 | E99: 40 | F99: 50
B100: med/high | C100: 0 | D100: 10 | E100: 20 | F100: 30
A101: Group 1 Crops: Clover, fallow, grass/legume hay, grass/leg, pasture, etc. | B101: low | C101: 0 | D101: 0 | E101: 0 | F101: 0
B102: med/high | C102: 0 | D102: 0 | E102: 0 | F102: 0 | K102: Calculated Phosphorus Recommendations (Used if test value is entered)
A103: Group 2 Crops: Corn, wheat, oats, potatoes, sugar beets, grass, rye, etc. | B103: low | C103: 40 | D103: 50 | E103: 60 | F103: 70 | K103: P2O5 = [W - (X)*(Bray P ppm)]*(Expected Yield) | O103: W= | P103: 0.0275 | Q103: X= | R103: 0.0014
B104: med/high | C104: 20 | D104: 30 | E104: 40 | F104: 50 | K104: P2O5 = [Y - (Z)*(Olsen P ppm)]*(Expected Yield) | O104: Y= | P104: 0.0275 | Q104: Z= | R104: 0.0017
A105: Alfalfa Poor and Fair combined, poor seperated from soybeans
A106: Calculated Potassium Recommendations (Used if test value is entered)
A107: K2O = [A - (B)*(K ppm)]*(Expected Yield) | E107: A= | F107: 0.0358 | G107: B= | H107: 0.023
A109: Canola - Canola - Canola - Canola - Canola - Canola - Canola - Canola - Canola - Canola - Canola - Canola - Canola - Canola - Canola - Canola
B110: Nitrogen Recommendations | K110: Phosphorus Recommendations (Broadcast)
C111: Expected Yield (cwt/BAre) | M111: Soil Test P (ppm)
A112: Crop Grown Last Year | B112: Organic Matter Level | C112: 10-15 | D112: 16-20 | E112: 21-25 | F112: 25+ | M112: Very Low | N112: Low | O112: Medium | Q112: High | S112: Very High
A113: Alfalfa 2+ year old stand | B113: low | C113: 0 | D113: 0 | E113: 0 | F113: 0 | J113: Good & fair | K113: Expected | L113: Bray: | M113: 0-5 | N113: 6-10 | O113: 11-15 | Q113: 16-20 | S113: 21+
B114: med/high | C114: 0 | D114: 0 | E114: 0 | F114: 0 | K114: Yield | L114: Olsen: | M114: 0-3 | N114: 4-7 | O114: 8-11 | Q114: 12-15 | S114: 16+
A115: Alfalfa 1 year old stand | B115: low | C115: 0 | D115: 10 | E115: 20 | F115: 30 | J115: poor | K115: =C112 -> 10-15 | M115: 40 | N115: 25 | O115: 15 | Q115: 0 | S115: 0
B116: med/high | C116: 0 | D116: 0 | E116: 0 | F116: 0 | K116: =D112 -> 16-20 | M116: 55 | N116: 40 | O116: 25 | Q116: 0 | S116: 0
A117: Soybeans | B117: low | C117: 0 | D117: 10 | E117: 20 | F117: 30 | K117: =E112 -> 21-25 | M117: 75 | N117: 50 | O117: 30 | Q117: 10 | S117: 0
B118: med/high | C118: 0 | D118: 0 | E118: 0 | F118: 0 | K118: =F112 -> 25+ | M118: 80 | N118: 55 | O118: 35 | Q118: 10 | S118: 0
A119: Edible beans, field peas | B119: low | C119: 20 | D119: 30 | E119: 40 | F119: 50 | J119: not in rec's - used those for buckwheat
B120: med/high | C120: 0 | D120: 10 | E120: 20 | F120: 30
A121: Group 1 Crops: Clover, fallow, grass/legume hay, grass/leg, pasture, etc. | B121: low | C121: 0 | D121: 0 | E121: 0 | F121: 0
B122: med/high | C122: 0 | D122: 0 | E122: 0 | F122: 0 | K122: Calculated Phosphorus Recommendations (Used if test value is entered)
A123: Group 2 Crops: Corn, wheat, oats, potatoes, sugar beets, grass, rye, etc. | B123: low | C123: 40 | D123: 50 | E123: 60 | F123: 70 | K123: P2O5 = [W - (X)*(Bray P ppm)]*(Expected Yield) | O123: W= | P123: 3.6 | Q123: X= | R123: 0.17
B124: med/high | C124: 20 | D124: 30 | E124: 40 | F124: 50 | K124: P2O5 = [Y - (Z)*(Olsen P ppm)]*(Expected Yield) | O124: Y= | P124: 3.6 | Q124: Z= | R124: 0.22
A125: Alfalfa good and Fair combined, poor seperated from soybeans
A126: Calculated Potassium Recommendations (Used if test value is entered)
A127: K2O = [A - (B)*(K ppm)]*(Expected Yield) | E127: A= | F127: 5.4 | G127: B= | H127: 0.034
A129: Edible Beans - Edible Beans - Edible Beans - Edible Beans - Edible Beans - Edible Beans - Edible Beans - Edible Beans - Edible Beans
B130: Nitrogen Recommendations | K130: Phosphorus Recommendations (Broadcast)
C131: Expected Yield (lb/BAre) | M131: Soil Test P (ppm)
A132: Crop Grown Last Year | B132: Organic Matter Level | C132: 1401-1900 | D132: 1901-2400 | E132: 2401-2900 | F132: 2901+ | M132: Very Low | N132: Low | O132: Medium | Q132: High | S132: Very High
A133: Alfalfa 2+ year old stand | B133: low | C133: 0 | D133: 0 | E133: 0 | F133: 0 | J133: good | K133: Expected | L133: Bray: | M133: 0-5 | N133: 6-10 | O133: 11-15 | Q133: 16-20 | S133: 21+
B134: med/high | C134: 0 | D134: 0 | E134: 0 | F134: 0 | K134: Yield | L134: Olsen: | M134: 0-3 | N134: 4-7 | O134: 8-11 | Q134: 12-15 | S134: 16+
A135: Alfalfa 1 year old stand | B135: low | C135: 0 | D135: 20 | E135: 40 | F135: 60 | J135: fair and poor | K135: =C132 -> 1401-1900 | M135: 35 | N135: 25 | O135: 15 | Q135: 0 | S135: 0
B136: med/high | C136: 0 | D136: 0 | E136: 10 | F136: 30 | K136: =D132 -> 1901-2400 | M136: 45 | N136: 30 | O136: 20 | Q136: 10 | S136: 0
A137: Soybeans | B137: low | C137: 60 | D137: 80 | E137: 100 | F137: 120 | J137: Not considered a previous crop | K137: =E132 -> 2401-2900 | M137: 55 | N137: 40 | O137: 25 | Q137: 10 | S137: 0
B138: med/high | C138: 30 | D138: 50 | E138: 70 | F138: 90 | J138: used group 2 rec's | K138: =F132 -> 2901+ | M138: 60 | N138: 45 | O138: 25 | Q138: 10 | S138: 0
A139: Edible beans, field peas | B139: low | C139: 60 | D139: 80 | E139: 100 | F139: 120 | J139: Not considered a previous crop
B140: med/high | C140: 30 | D140: 50 | E140: 70 | F140: 90 | J140: used group 2 rec's
A141: Group 1 Crops: Clover, fallow, grass/legume hay, grass/leg, pasture, etc. | B141: low | C141: 0 | D141: 0 | E141: 25 | F141: 45
B142: med/high | C142: 0 | D142: 0 | E142: 0 | F142: 25 | K142: Calculated Phosphorus Recommendations (Used if test value is entered)
A143: Group 2 Crops: Corn, wheat, oats, potatoes, sugar beets, grass, rye, etc. | B143: low | C143: 60 | D143: 80 | E143: 100 | F143: 120 | K143: P2O5 = [W - (X)*(Bray P ppm)]*(Expected Yield) | O143: W= | P143: 0.0231 | Q143: X= | R143: 0.0011
B144: med/high | C144: 30 | D144: 50 | E144: 70 | F144: 90 | K144: P2O5 = [Y - (Z)*(Olsen P ppm)]*(Expected Yield) | O144: Y= | P144: 0.0231 | Q144: Z= | R144: 0.0014
A145: Alfalfa Poor and Fair combined, poor seperated from soybeans
A146: Calculated Potassium Recommendations (Used if test value is entered)
A147: K2O = [A - (B)*(K ppm)]*(Expected Yield) | E147: A= | F147: 0.0346 | G147: B= | H147: 0.0021
A149: Millet - Millet - Millet - Millet - Millet - Millet - Millet - Millet - Millet - Millet - Millet - Millet - Millet - Millet - Millet - Millet - Millet - Millet - Millet
B150: Nitrogen Recommendations | K150: Phosphorus Recommendations (Broadcast)
C151: Expected Yield (lb/BAre) | M151: Soil Test P (ppm)
A152: Crop Grown Last Year | B152: Organic Matter Level | C152: 1500-1900 | D152: 1901-2300 | E152: 2301-2700 | F152: 2701-3000 | G152: 3100+ | M152: Very Low | N152: Low | O152: Medium | Q152: High | S152: Very High
A153: Alfalfa 2+ year old stand | B153: low | C153: 0 | D153: 0 | E153: 0 | F153: 0 | G153: 0 | J153: good | K153: Expected | L153: Bray: | M153: 0-5 | N153: 6-10 | O153: 11-15 | Q153: 16-20 | S153: 21+
B154: med/high | C154: 0 | D154: 0 | E154: 0 | F154: 0 | G154: 0 | K154: Yield | L154: Olsen: | M154: 0-3 | N154: 4-7 | O154: 8-11 | Q154: 12-15 | S154: 16+
A155: Alfalfa 1 year old stand | B155: low | C155: 0 | D155: 10 | E155: 20 | F155: 40 | G155: 60 | J155: fair and ppor | K155: =C152 -> 1500-1900 | M155: 25 | N155: 20 | O155: 10 | Q155: 0 | S155: 0
B156: med/high | C156: 0 | D156: 0 | E156: 0 | F156: 20 | G156: 40 | K156: =D152 -> 1901-2300 | M156: 30 | N156: 25 | O156: 15 | Q156: 0 | S156: 0
A157: Soybeans | B157: low | C157: 0 | D157: 10 | E157: 20 | F157: 40 | G157: 60 | K157: =E152 -> 2301-2700 | M157: 40 | N157: 25 | O157: 15 | Q157: 0 | S157: 0
B158: med/high | C158: 0 | D158: 0 | E158: 0 | F158: 20 | G158: 40 | K158: =F152 -> 2701-3000 | M158: 45 | N158: 30 | O158: 20 | Q158: 0 | S158: 0
A159: Edible beans, field peas | B159: low | C159: 20 | D159: 30 | E159: 40 | F159: 60 | G159: 80 | K159: =G152 -> 3100+ | M159: 45 | N159: 35 | O159: 20 | Q159: 0 | S159: 0
B160: med/high | C160: 0 | D160: 10 | E160: 20 | F160: 40 | G160: 60
A161: Group 1 Crops: Clover, fallow, grass/legume hay, grass/leg, pasture, etc. | B161: low | C161: 0 | D161: 0 | E161: 0 | F161: 0 | G161: 25
B162: med/high | C162: 0 | D162: 0 | E162: 0 | F162: 0 | G162: 0 | K162: Calculated Phosphorus Recommendations (Used if test value is entered)
A163: Group 2 Crops: Corn, wheat, oats, potatoes, sugar beets, grass, rye, etc. | B163: low | C163: 40 | D163: 50 | E163: 60 | F163: 80 | G163: 100 | K163: P2O5 = [W - (X)*(Bray P ppm)]*(Expected Yield) | O163: W= | P163: 0.0171 | Q163: X= | R163: 0.0085
B164: med/high | C164: 20 | D164: 30 | E164: 40 | F164: 60 | G164: 80 | K164: P2O5 = [Y - (Z)*(Olsen P ppm)]*(Expected Yield) | O164: Y= | P164: 0.0171 | Q164: Z= | R164: 0.00114
A165: Alfalfa Poor and Fair combined, poor seperated from soybeans
A166: Calculated Potassium Recommendations (Used if test value is entered)
A167: K2O = [A - (B)*(K ppm)]*(Expected Yield) | E167: A= | F167: 0.03 | G167: B= | H167: 0.00018
A169: Rye - Rye - Rye - Rye - Rye - Rye - Rye - Rye - Rye - Rye - Rye - Rye - Rye - Rye - Rye - Rye - Rye - Rye - Rye - Rye - Rye - Rye - Rye - Rye - Rye
B170: Nitrogen Recommendations | K170: Phosphorus Recommendations (Broadcast)
C171: Expected Yield (bu/BAre) | M171: Soil Test P (ppm)
A172: Crop Grown Last Year | B172: Organic Matter Level | C172: 40-49 | D172: 50-59 | E172: 60-69 | F172: 70-79 | G172: 80+ | M172: Very Low | N172: Low | O172: Medium | Q172: High | S172: Very High
A173: Alfalfa 2+ year old stand | B173: low | C173: 0 | D173: 0 | E173: 40 | F173: 65 | G173: 95 | J173: good and fair | K173: Expected | L173: Bray: | M173: 0-5 | N173: 6-10 | O173: 11-15 | Q173: 16-20 | S173: 21+
B174: med/high | C174: 0 | D174: 0 | E174: 20 | F174: 45 | G174: 75 | K174: Yield | L174: Olsen: | M174: 0-3 | N174: 4-7 | O174: 8-11 | Q174: 12-15 | S174: 16+
A175: Alfalfa 1 year old stand | B175: low | C175: 40 | D175: 65 | E175: 90 | F175: 115 | G175: 140 | J175: poor | K175: =C172 -> 40-49 | M175: 40 | N175: 30 | O175: 15 | Q175: 0 | S175: 0
B176: med/high | C176: 20 | D176: 45 | E176: 70 | F176: 95 | G176: 120 | K176: =D172 -> 50-59 | M176: 50 | N176: 35 | O176: 20 | Q176: 0 | S176: 0
A177: Soybeans | B177: low | C177: 40 | D177: 65 | E177: 90 | F177: 115 | G177: 140 | K177: =E172 -> 60-69 | M177: 60 | N177: 45 | O177: 20 | Q177: 0 | S177: 0
B178: med/high | C178: 20 | D178: 45 | E178: 70 | F178: 95 | G178: 120 | K178: =F172 -> 70-79 | M178: 70 | N178: 50 | O178: 25 | Q178: 0 | S178: 0
A179: Edible beans, field peas | B179: low | C179: 50 | D179: 75 | E179: 100 | F179: 125 | G179: 150 | K179: =G172 -> 80+ | M179: 80 | N179: 55 | O179: 25 | Q179: 0 | S179: 0
B180: med/high | C180: 30 | D180: 55 | E180: 80 | F180: 105 | G180: 130
A181: Group 1 Crops: Clover, fallow, grass/legume hay, grass/leg, pasture, etc. | B181: low | C181: 0 | D181: 35 | E181: 60 | F181: 85 | G181: 110
B182: med/high | C182: 0 | D182: 0 | E182: 40 | F182: 65 | G182: 90 | K182: Calculated Phosphorus Recommendations (Used if test value is entered)
A183: Group 2 Crops: Corn, wheat, oats, potatoes, sugar beets, grass, rye, etc. | B183: low | C183: 60 | D183: 85 | E183: 110 | F183: 135 | G183: 160 | K183: P2O5 = [W - (X)*(Bray P ppm)]*(Expected Yield) | O183: W= | P183: 1.071 | Q183: X= | R183: 0.054
B184: med/high | C184: 40 | D184: 65 | E184: 90 | F184: 115 | G184: 140 | K184: P2O5 = [Y - (Z)*(Olsen P ppm)]*(Expected Yield) | O184: Y= | P184: 1.071 | Q184: Z= | R184: 0.067
A185: Alfalfa good and Fair combined, poor seperated from soybeans
A186: Calculated Potassium Recommendations (Used if test value is entered)
A187: K2O = [A - (B)*(K ppm)]*(Expected Yield) | E187: A= | F187: 2.71 | G187: B= | H187: 0.17
A189: Sunflowers - Sunflowers - Sunflowers - Sunflowers - Sunflowers - Sunflowers - Sunflowers - Sunflowers - Sunflowers - Sunflowers - Sunflowers
B190: Nitrogen Recommendations | K190: Phosphorus Recommendations (Broadcast)
C191: Expected Yield (lb/BAre) | M191: Soil Test P (ppm)
A192: Crop Grown Last Year | B192: Organic Matter Level | C192: 1400-1900 | D192: 1901-2400 | E192: 2401-2900 | F192: 2901-3300 | G192: 3300+ | M192: Very Low | N192: Low | O192: Medium | Q192: High | S192: Very High
A193: Alfalfa 2+ year old stand | B193: low | C193: 0 | D193: 0 | E193: 0 | F193: 0 | G193: 0 | J193: good | K193: Expected | L193: Bray: | M193: 0-5 | N193: 6-10 | O193: 11-15 | Q193: 16-20 | S193: 21+
B194: med/high | C194: 0 | D194: 0 | E194: 0 | F194: 0 | G194: 0 | K194: Yield | L194: Olsen: | M194: 0-3 | N194: 4-7 | O194: 8-11 | Q194: 12-15 | S194: 16+
A195: Alfalfa 1 year old stand | B195: low | C195: 30 | D195: 50 | E195: 70 | F195: 90 | G195: 110 | J195: fair and poor | K195: =C192 -> 1400-1900 | M195: 55 | N195: 35 | O195: 15 | Q195: 0 | S195: 0
B196: med/high | C196: 0 | D196: 20 | E196: 40 | F196: 60 | G196: 80 | J196: 30 lb difference is the most as a result of changing nomenclature | K196: =D192 -> 1901-2400 | M196: 65 | N196: 45 | O196: 20 | Q196: 0 | S196: 0
A197: Soybeans | B197: low | C197: 30 | D197: 50 | E197: 70 | F197: 90 | G197: 110 | K197: =E192 -> 2401-2900 | M197: 75 | N197: 55 | O197: 25 | Q197: 0 | S197: 0
B198: med/high | C198: 0 | D198: 20 | E198: 40 | F198: 60 | G198: 80 | K198: =F192 -> 2901-3300 | M198: 85 | N198: 65 | O198: 25 | Q198: 10 | S198: 0
A199: Edible beans, field peas | B199: low | K199: =G192 -> 3300+ | M199: 90 | N199: 70 | O199: 30 | Q199: 10 | S199: 0
B200: med/high
A201: Group 1 Crops: Clover, fallow, grass/legume hay, grass/leg, pasture, etc. | B201: low | C201: 0 | D201: 15 | E201: 25 | F201: 45 | G201: 65
B202: med/high | C202: 0 | D202: 0 | E202: 0 | F202: 25 | G202: 45 | K202: Calculated Phosphorus Recommendations (Used if test value is entered)
A203: Group 2 Crops: Corn, wheat, oats, potatoes, sugar beets, grass, rye, etc. | B203: low | C203: 70 | D203: 90 | E203: 110 | F203: 130 | G203: 150 | K203: P2O5 = [W - (X)*(Bray P ppm)]*(Expected Yield) | O203: W= | P203: 0.0225 | Q203: X= | R203: 0.0011
B204: med/high | C204: 40 | D204: 60 | E204: 80 | F204: 100 | G204: 120 | K204: P2O5 = [Y - (Z)*(Olsen P ppm)]*(Expected Yield) | O204: Y= | P204: 0.0225 | Q204: Z= | R204: 0.0014
A205: Calculated Potassium Recommendations (Used if test value is entered)
A206: K2O = [A - (B)*(K ppm)]*(Expected Yield) | E206: A= | F206: 0.041 | G206: B= | H206: 0.00027
A208: Tables in Orange will not affect calculations in the spreadsheet although some will affect the tables A-D displayed so they need to be updated regardless
K209: Alfalfa - Alfalfa - Alfalfa - Alfalfa - Alfalfa - Alfalfa - Alfalfa - Alfalfa | AE209: MWPS 2004 Table 6 - Excretion values
A210: Table A1. Annual manure production and nutrient excretion from livestock | G210: Table is updated via chart to right | K210: Phosphorus Recommendations (Broadcast) | AF210: Daily | AQ210: Yearly/1000 lbs of animal
A211: Animal Type | B211: Manure Production per 1,000 lbs. of Animal Weight | D211: Excreted Nutrients in Manure per 1,000 lbs. of Animal Weight | M211: Soil Test P (ppm) | AG211: lbs | AH211: gal | AI211: N | AJ211: P | AK211: K | AL211: lbs manure/lb of animal | AM211: gal manure/lb of animal | AN211: n/lb | AO211: P/lb | AP211: K/lb | AQ211: lb | AR211: gal | AS211: N | AT211: P | AU211: K | AV211: ton
B212: Solid | C212: Liquid | D212: N | E212: P2O5 | F212: K20 | M212: Very Low | N212: Low | O212: Medium | Q212: High | S212: Very High | AD212: Dairy | AE212: Calf | AF212: 150 | AG212: 12 | AH212: 1.38 | AI212: 0.06 | AJ212: 0.01 | AK212: 0.05 | AL212: =AG212/$AF212 -> 0.08 | AM212: =AH212/$AF212 -> 0.0092 | AN212: =AI212/$AF212 -> 0.0004 | AO212: =AJ212/$AF212 -> 6.666666667e-05 | AP212: =AK212/$AF212 -> 0.0003333333333 | AQ212: =AL212*1000*365 -> 29200 | AR212: =AM212*1000*365 -> 3358 | AS212: 146 | AT212: 24.33333333 | AU212: 121.6666667 | AV212: =AQ212/2000 -> 14.6
... 255 more rows

Sheet List Choices (hidden)
A1: Application | B1: Application_2 | D1: Used for LOOKUP | G1: Print Sheets?
A2: Sweep Injection | B2: Sweep Injection | C2: Crops_2 | D2: Crops_2 (alphabetical) | E2: units | G2: MMP | H2: FALSE
A3: Knife Injection | B3: Knife Injection | C3: Corn | D3: Alfalfa | E3: ton | G3: Records | H3: FALSE
A4: Incorp. within 12 hrs | B4: Incorporation within 12 hrs | C4: Soybeans | D4: Alsike Clover | E4: ton | G4: Sheet78 | H4: FALSE
A5: Incorp. within 4 days | B5: Incorporation within 4 days | C5: Alfalfa | D5: Barley | E5: bu | G5: Sheet77 | H5: FALSE
A6: Incorp. after 4 days | B6: Incorporation after 4 days | C6: Alsike Clover | D6: Birdsfoot Trefoil | E6: ton | G6: Sheet76 | H6: FALSE
C7: Barley | D7: Buckwheat | E7: lb | G7: Sheet75 | H7: FALSE
A8: Animals | B8: Manure_test | C8: Birdsfoot Trefoil | D8: Canola | E8: cwt | G8: Sheet74 | H8: FALSE
A9: Dairy | B9: MPCA or U of MN Guidelines | C9: Buckwheat | D9: Corn | E9: bu | G9: Sheet79 | H9: FALSE
A10: Beef | B10: Well Agitated Composite | C10: Canola | D10: Corn Silage | E10: ton
A11: Swine | B11: Well Agitated Single Sample | C11: Corn Silage | D11: Edible Beans | E11: lb
A12: Poultry | B12: Non-Agitated Composite | C12: Edible Beans | D12: Grass/Hay | E12: ton | G12: Registered_animals
A13: Horse | B13: Non-Agitated Single Sample | C13: Grass/Hay | D13: Grass/Legume | E13: ton | G13: Dairy – mature cow (milked or dry) over 1,000 lbs.
A14: Sheep | B14: Stockpile Composite | C14: Grass/Legume | D14: Millet | E14: lb | G14: Dairy – mature cow (milked or dry) under 1,000 lbs.
B15: Stockpile Single Sample | C15: Millet | D15: Oats | E15: bu | G15: Dairy – heifer
A16: App_Time | B16: Sample from Spreader Load | C16: Oats | D16: Peas | E16: lb | G16: Dairy – calf
A17: Spring | B17: No Sample | C17: Peas | D17: Potatoes | E17: cwt | G17: Beef – slaughter steer or stock cow
A18: Summer | B18: Estimate (New Structure) | C18: Potatoes | D18: Red Clover | E18: ton | G18: Beef – feeder cattle (stocker or backgrounding) or heifer
A19: Early Fall | C19: Red Clover | D19: Rye | E19: bu | G19: Beef – cow and calf pair
A20: Late Fall | B20: Sampling | C20: Rye | D20: Sorghum | E20: ton | G20: Beef – calf
A21: Winter | B21: Every Year | C21: Sorghum | D21: Soybeans | E21: bu | G21: Veal – calf
A22: Spring & Fall | B22: Every 2 Years | C22: Sugarbeets | D22: Sugarbeets | E22: ton | G22: Swine – over 300 pounds
A23: Monthly | B23: Every 3 Years | C23: Sunflowers | D23: Sunflowers | E23: lb | G23: Swine – between 55 and 300 pounds
A24: Weekly | B24: Every 4 Years | C24: Sweet Corn | D24: Sweet Corn | E24: ton | G24: Swine – under 55 pounds (and separated from sow)
A25: Daily | B25: No Sampling | C25: Wheat | D25: Wheat | E25: bu | G25: Horse
G26: Sheep or lamb
A27: Animal_2 | B27: Storage | C27: Crops_P | D27: Summer_Crops | E27: MULTIYEAR | G27: Chickens – all sizes with liquid manure system
A28: Beef Feeder (High Forage) | B28: Earthen Basin | C28: Corn | D28: Alfalfa | E28: 1 | G28: Chickens – broiler 5 lbs. and over – dry manure system
A29: Beef Feeder (High Energy) | B29: Underfloor Concrete Pit | C29: Soybeans | D29: Barley | E29: 2 | G29: Chickens – broiler under 5 lbs. – dry manure system
A30: Beef Cow | B30: Outdoor Concrete Pit/Tank | C30: Alfalfa | D30: Buckwheat | E30: 3 | G30: Chickens – layers 5 lbs. and over – dry manure system
A31: Beef Calf | B31: Slurry Store | C31: Alsike Clover | D31: Canola | E31: 4 | G31: Chickens – layers under 5 lbs. – dry manure system
A32: Chickens - Layer | B32: Stockpile | C32: Barley | D32: Clover/Trefoil | E32: 5 | G32: Turkeys – over 5 lbs.
A33: Chickens - Broiler | B33: Lagoon | C33: Barley w/ Straw | D33: Corn | E33: 6 | G33: Turkeys – under 5 lbs.
A34: Dairy Milk Cow | B34: Manure Pack | C34: Birdsfoot Trefoil | D34: Corn Silage | G34: Ducks – dry manure system
A35: Dairy Dry Cow | B35: Daily Scrape and Haul | C35: Buckwheat | D35: Edible Beans | E35: YES_NO | G35: Ducks – liquid manure system
A36: Dairy Heifer | B36: Litter | C36: Buckwheat w/ Straw | D36: Fallow | E36: Yes | G36: Other animals (not listed above):
A37: Dairy Calf | B37: Underfloor Dry Storage | C37: Canola | D37: Grass/Hay | E37: No
A38: Swine - Nursery | C38: Corn Silage | D38: Grass/Legume | F38: Crops_High_P | G38: Crops_3
A39: Swine - Wean/Finish | B39: Spreader | C39: Edible Beans | D39: Millet | E39: Units | F39: Repeat from Year 1 | G39: Corn
A40: Swine- Wean/Finish (wet/dry feed) | B40: Liquid Tanker | C40: Grass/Hay | D40: Oats | E40: lbs/1000 gal | F40: Corn | G40: Soybeans
A41: Swine - Grow/Finish | B41: Solids Spreader | C41: Grass/Legume | D41: Pasture | E41: lbs/ton | F41: Soybeans | G41: Alfalfa (1 yr old stand)
A42: Swine- Grow/Finish (wet/dry feed) | B42: Towed Hose | C42: Oats | D42: Peas | F42: Alfalfa | G42: Alfalfa (2+ yr old stand)
A43: Swine - Gestating Sow | B43: Center Pivot | C43: Oats w/ Straw | D43: Potatoes | E43: Manure_Sources | F43: Alsike Clover | G43: Alsike Clover
A44: Swine - Lactating Sow | B44: Traveling Gun | C44: Millet | D44: Rye | E44: =IF('P Worksheet'!J5<>"",1,"") ->  | F44: Barley | G44: Barley
A45: Swine - Boar | B45: Other | C45: Peas | D45: Sorguhm | E45: =IF('P Worksheet'!J6<>"",2,"") ->  | F45: Barley w/ Straw | G45: Birdsfoot Trefoil
A46: Turkeys | C46: Potatoes | D46: Soybeans | E46: =IF('P Worksheet'!J7<>"",3,"") ->  | F46: Birdsfoot Trefoil | G46: Buckwheat
A47: Horse | B47: Volume | C47: Red Clover | D47: Sugarbeets | E47: =IF('P Worksheet'!J8<>"",4,"") ->  | F47: Buckwheat | G47: Canola
A48: Sheep | B48: Scales | C48: Rye | D48: Sunflowers | E48: =IF('P Worksheet'!J9<>"",5,"") ->  | F48: Buckwheat w/ Straw | G48: Corn Silage
A49: Open Lot Runoff | B49: Spreader Volume | C49: Rye w/ Straw | D49: Sweet Corn | E49: =IF('P Worksheet'!J10<>"",6,"") ->  | F49: Canola | G49: Edible Beans
A50: Milkhouse Waste | B50: Commercial Applicator | C50: Sugarbeets | D50: Vegetables | E50: =IF('P Worksheet'!J11<>"",7,"") ->  | F50: Corn Silage | G50: Grass/Hay
A51: Other Process Wastewater | B51: Unknown | C51: Sunflowers | D51: Wheat | E51: =IF('P Worksheet'!J12<>"",8,"") ->  | F51: Edible Beans | G51: Grass/Legume
B52: Other | C52: Sweet Corn | F52: Grass/Hay | G52: Millet
A53: Sample_Basis | C53: Wheat | F53: Grass/Legume | G53: Oats
A54: Last Year's Sample | B54: Calibration | C54: Wheat w/ Straw | F54: Oats | G54: Peas
A55: This Year's Sample | B55: Loads Applied per Field | F55: Oats w/ Straw | G55: Potatoes
A56: Average of Previous Samples | B56: Acres Covered by One Load | F56: Millet | G56: Red Clover
A57: Book Value | B57: Plastic Sheet Sample | F57: Peas | G57: Rye
A58: Estimate | B58: Commercial Applicator | F58: Potatoes | G58: Sorghum
B59: Flowmeter | F59: Red Clover | G59: Sugarbeets
B60: Unknown | F60: Rye | G60: Sunflowers
B61: Other | F61: Rye w/ Straw | G61: Sweet Corn
F62: Sugarbeets | G62: Wheat
F63: Sunflowers
F64: Sweet Corn
F65: Wheat
F66: Wheat w/ Straw

Sheet Macros Disabled
B2: Sorry, you must enable macros in order to use this workbook.
B4: Instructions for Excel 2007 and newer
B5: When you open the workbook you need to click the "Options" button located just below the ribbon and choose the "Enable this content" option.
B6: There is no need to close and re-open the spreadsheet once this action is performed. Microsoft Excel will make the changes needed to continue using the program without interuption.
B7: Instructions for Excel versions prior to 2007
B8: 1. When you open the workbook you need to click the Enable Macros button.
B9: 2. If you do not see a warning, your macro security may be set to 'High'. You can change this by clicking Tools, Macros, Security from Excel's main menu. Select Medium, which will still allow you to choose whether or not you run macros in a workbook. (See Below) (This is the procedure for Microsoft Excel 2000, 2002, & XP)
B10: 3. You will then need to close and re-open the file in order to use this spreadsheet.

Sheet Checklist (hidden)
Y1: Feedlot inspection checklist
Y2: Feedlot Program
Y3: National Pollutant Discharge Elimination System/
Y4: State Disposal System (NPDES/SDS)
Y5: Doc Type: Inspection
Y6: wq-f3-45e (Revised 6/18/20)
B7: Instructions: | F7: Use this form to evaluate a feedlot’s compliance with Minnesota feedlot rules, statutes, and permit conditions. A list of acronyms is included within the key of this checklist.
B8: Documentation after completion of inspection:
B9: · Send a letter to the feedlot owner and enclose checklist section(s) where non-compliance was identified.
B10: Facility information
B11: Facility name: | V11: Registration number:
D12: The feedlot is Ag Water Quality Certified. | V12: AI ID number:
B13: Address: | V13: County ID number:
B14: City: | L14: State: | N14: Zip:
B15: County: | L15: Township: | V15: Section: | X15: Qtr:
B16: Parcel ID no:
B17: Owner name: | O17: Operator:
B18: Primary phone: | L18: Secondary phone: | Q18: Email:
B20: A MinnFarm or FLEval exists for the feedlot. | W20: FALSE | Y20: FALSE
B21: The feedlot is located in a Drinking Water Supply Management Area. | W21: FALSE | Y21: FALSE
B22: The feedlot is located in shoreland. | W22: FALSE | Y22: FALSE
B23: The feedlot is enrolled in the Open Lot Agreement. | W23: FALSE | Y23: FALSE
B24: The site meets or exceeds the large CAFO threshold or 1,000 animal units | W24: FALSE | X24: TRUE | Y24: FALSE
D25: Note: | E25: You must also include the maximum capacity of any other commonly owned feedlots adjacent to or within ¼ mile of this feedlot when making this determination. (see MPCA Multi-site policy) | X25: FALSE
B26: * If Yes, MPCA staff must conduct inspections and permitting | W26: FALSE | X26: FALSE
B27: Recent activity | W27: FALSE | X27: FALSE | Y27: FALSE
B28: Date of most recent registration: | W28: TRUE | X28: FALSE | Y28: FALSE
B29: Most recent inspection: | N29: Date: | T29: Result:
B30: Current permit type: | H30: FALSE | I30: FALSE | Q30: Expiration date:
B31: Most recent enforcement type: | U31: Issuance date:
B32: Current inspection information
B33: Inspector name: | S33: Insepction date: | W33: Time:
B34: Others present:
B35: Types of inspection(s): | H35: Facility compliance (includes N) | N35: include optional P review in the compliance inspection
B36: (check all that apply) | H36: Desktop N & P records review | O36: In field land application | W36: Stockpile only
B37: Animal types | M37: Registered number | Q37: On-site number | V37: Notes
A44: 1 | B44: 1. | D44: Expansion and stocking requirements | V44: Notes:
D45: Checklist questions | R45: C | S45: NC | T45: NA | U45: NI
A46: C | B46: 1.1. | D46: Facility registration is current (date within previous 4-year block).
D47: (7020.0350 Subp. 4.)
A48: C | B48: 1.2. | D48: Animal units and animal species, (types and numbers) matches the most recent registration or authorization (i.e. permit, notice of construction, change of ownership, termination) AND animal holding areas and manure storage areas match the most recent permit, Notice of Construction or Expansion, MinnFarm or inspection.
D49: (7020.0405, supb. 2. & 5., 7020.2000 Subp. 5.)
A50: N | B50: 1.3. | D50: NPDES/SDS - Feed storage area(s) have not been constructed or expanded unless authorized by permit.
D51: (NPDES/SDS Part 5.6.1.2.)
A52: 1.2 | D52: Inspection requirement | R52: C | S52: NC | T52: NA | U52: NI
A53: I | B53: 1.4. | D53: Construction or expansion requirements are met.
D54: (7020.0405, supb. 2. & 5., 7020.0350 subp 4, 7020.2000 Subp. 5., NPDES/SDS Parts 5.6.1.2. & 11.)
A55: 2 | B55: 2. | D55: Animal confinement barn(s) | V55: Notes:
D56: Checklist questions | R56: C | S56: NC | T56: NA | U56: NI
A57: C | B57: 2.1. | D57: There is evidence (e.g., inadequate buffer, steep slopes, channels, matted or dead vegetation, clean water run-on, stormwater flow) that manure seepage from barn(s) reaches waters of the state or tile intakes, sinkholes, fractured bedrock, well, mine or quarry.
D58: (7020.2003, subp. 1. & 3., 7050.0210, subp. 2. & 13., Specific to NPDES/SDS 7020.2003, subp. 2.)
A59: C | B59: 2.2. | D59: There is evidence (e.g., ponding, coarse-textured soils, depth to water table) that manure seepage from barn(s) could impact ground water.
D60: (7020.2003, subp. 1., 7050.0210, subp. 2. & 13., 7060.0600, subp. 2.)
A61: 2.2 | D61: Inspection requirement | R61: C | S61: NC | T61: NA | U61: NI
A62: I | B62: 2.3. | D62: Confinement barn discharge requirements are met.
D63: (7020.2003, subp. 1. & 3., 7050.0210, subp. 2. & 13., 7060.0600, subp. 2., NPDES or SDS permit)
A64: 3 | B64: 3. | D64: Open lot(s) | V64: Notes:
D65: Checklist questions | R65: C | S65: NC | T65: NA | U65: NI
A66: C | B66: 3.1. | D66: Animals do not have access to a lake classified by the Minnesota Department of Natural Resources (DNR).
D67: (7020.2015, subp. 2, 7050.0210, subp. 2 & 13, 7060.0600, subp. 2.)
A68: C | B68: 3.2. | D68: There is evidence (e.g., inadequate buffer, steep slopes, channels, matted or dead vegetation, clean water run-on, stormwater flow) that open lot runoff reaches waters of the state or tile intakes, sinkholes, fractured bedrock, well, mine or quarry.
D69: (7020.2003, subp. 1. & 3., 7050.0210, subp. 2. & 13., Specific to NPDES/SDS 7020.2003, subp. 2.)
A70: C | B70: 3.3. | D70: There is evidence (e.g., ponding, coarse-textured soils, depth to water table) that open lot runoff could impact ground water.
D71: (7020.2003, subp. 1., 7050.0210, subp. 2. & 13., 7060.0600, subp. 2.)
A72: N | B72: 3.4. | D72: NPDES/SDS - Runoff from open lot is contained in an approved structure or system.
D73: (NPDES/SDS Parts 2. & 3.2, 7050.0210, subp. 2 & 13, 7060.0600, subp. 2)
A74: 3.2 | D74: Inspection requirement | R74: C | S74: NC | T74: NA | U74: NI
A75: I | B75: 3.5. | D75: Open lot discharge requirements are met.
D76: (7020.2003, subp. 1. & 3., 7050.0210, subp. 2. & 13., 7060.0600, subp. 2., NPDES or SDS permit)
D77: Additional considerations:
D78: · | E78: Where runoff controls/treatment (i.e. clean water diversions, solid setting areas, vegetative buffers) were part of the original permit approval for the site or necessary for open lot compliance, are runoff controls/treatment operational and being maintained (O&M)?
D79: · | E79: If the site is non-compliant, is the Owner currently signed up for cost share? [3/6/09 Memorandum of Understanding (MOU)-MPCA, Minnesota Department of Agriculture (MDA), Board of Water and Soil Resources (BWSR)]
A80: 4 | B80: 4. | D80: Feed storage area(s) | V80: Notes:
D81: Checklist questions | R81: C | S81: NC | T81: NA | U81: NI
A82: C | B82: 4.1. | D82: There is evidence (e.g., inadequate buffer, steep slopes, channels, matted or dead vegetation, clean water run-on, stormwater flow) that feed storage area runoff reaches waters of the state or tile intakes, sinkholes, fractured bedrock, well, mine or quarry.
D83: (7020.2003, subp. 1. & 3., 7050.0210, subp. 2. & 13., Specific to NPDES/SDS 7020.2003, subp. 2.)
A84: C | B84: 4.2. | D84: There is evidence (e.g., ponding, coarse-textured soils, depth to water table) that the feed storage area could impact ground water.
D85: (7020.2003, subp. 1., 7050.0210, subp. 2. & 13., 7060.0600, subp. 2.)
A86: N | B86: 4.3. | D86: NPDES/SDS - Manure is not stored on the feed storage area pad unless the storage is part of the approved design.
D87: (NPDES/SDS Part 3.5, 7050.0210, subp. 2 & 13, 7060.0600, subp. 2)
A88: N | B88: 4.4. | D88: NPDES/SDS - Feed storage area leachate and runoff is contained in an approved structure or system.
D89: (NPDES/SDS Part 3.5.2.)
A90: N | B90: 4.5. | D90: NPDES/SDS - If leachate and feed storage area runoff is managed with a VIB, operation and maintenance activities are performed as required by permit.
D91: (NPDES/SDS Parts 3.5.2.2.)
A92: 4.2 | D92: Inspection requirement | R92: C | S92: NC | T92: NA | U92: NI
A93: I | B93: 4.6. | D93: Feed storage area discharge requirements are met.
D94: (7020.2003, subp. 1. & 3., 7050.0210, subp. 2. & 13., 7060.0600, subp. 2., NPDES or SDS permit)
D95: Additional considerations:
D96: · | E96: If the site stores 1,000 tons or more of sweet corn silage stored on site at any one time and does not have an NPDES or SDS permit, the site should be referred to MPCA staff.
A97: 5 | B97: 5._ | D97: Process wastewater handling system(s) (milk house wastewater / egg wash / truck wash) | V97: Notes:
D98: Checklist questions | R98: C | S98: NC | T98: NA | U98: NI
A99: N | B99: 5.1. | D99: NPDES/SDS - Process wastewater from the facility is contained in an approved structure or system.
D100: (NPDES/SDS Parts 2. & 3.2.)
A101: C | B101: 5.2. | D101: There is evidence (e.g., inadequate buffer, steep slopes, channels, matted or dead vegetation, clean water run-on, stormwater flow) that process wastewater reaches waters of the state or tile intakes, sinkholes, fractured bedrock, well, mine or quarry.
D102: (7020.2003, subp. 1. & 3., 7050.0210, subp. 2. & 13., Specific to NPDES/SDS 7020.2003, subp. 2.)
A103: C | B103: 5.3. | D103: There is evidence (e.g., ponding, coarse-textured soils, depth to water table) that process wastewater could impact ground water.
D104: (7020.2003, subp. 1., 7050.0210, subp. 2. & 13., 7060.0600, subp. 2.)
A105: 5.2 | D105: Inspection requirement | R105: C | S105: NC | T105: NA | U105: NI
A106: I | B106: 5.4. | D106: Process wastewater (milk house wastewater / egg wash / truck wash) discharge requirements are met.
D107: (7020.2003, subp. 1. & 3., 7050.0210, subp. 2. & 13., 7060.0600, subp. 2., NPDES or SDS permit)
A108: 6 | B108: 6. | D108: Short-term manure stockpile site(s) | V108: Notes:
D109: Technical checklist questions | R109: C | S109: NC | T109: NA | U109: NI
A110: C | B110: 6.1. | D110: The required location prohibitions for short-term manure stockpiles are met (shoreland, flood plain, sinkhole and wells).
D111: (7020.2005 Subp. 1, 7050.0210, subp. 2 & 13, 7060.0600, subp. 2)
A112: C | B112: 6.2. | D112: The required 50’ horizontal and 300’ flow distance to surface water and road ditches are met.
D113: (7020.2125 Subp 2. C.)
A114: C | B114: 6.3. | D114: The nearest well is at least 100’ away if the well is cased, or at least 200’ if it is not cased.
D115: [7020.2125 Subp 2. C. (4)]
A116: C | B116: 6.4. | D116: The short-term manure stockpile is located on slopes less than 6%.
D117: [7020.2125 Subp 2. E. (1)]
A118: C | B118: 6.5. | D118: There is at least a 2’ separation between the short-term manure stockpile and the seasonal high water table.
D119: (7020.2125 Subp 2. D.)
A120: C | B120: 6.6. | D120: Soils at the short-term stockpile site are sandy loam or finer in the top 5’.
D121: [7020.2125 Subp 2. E. (3)]
A122: C | B122: 6.7. | D122: Rock quarry(s), gravel or sand pit(s), bedrock, or any mining excavation site(s) are not used for the short-term manure stockpile site.
D123: (7020.2125 Subp 1. C.)
A124: C | B124: 6.8. | D124: The manure in the short-term stockpile can be stacked with slopes of at least 3:1 and contains at least 15% solids.
D125: (7020.2125 Subp 1. B.)
A126: C | B126: 6.9. | D126: The volume of short-term stockpiled manure is less than 320 acres based on N.
D127: (7020.2125 Subp 1. D.)
A128: C | B128: 6.10. | D128: Clean water diversions are in place and operational on short-term manure stockpile sites with a slope of 2-6%.
D129: [7020.2125 Subp 2. E. (2)]
A130: C | B130: 6.11. | D130: All manure is removed from the short-term stockpile site within 1 year.
D131: (7020.2125 Subp 2. A.)
A132: C | B132: 6.12. | D132: Vegetation is re-established for 1 growing season prior to site re-use as a short-term stockpile site.
D133: (7020.2125 Subp 2. B.)
A134: C | B134: 6.13. | D134: Records for short-term manure stockpiles are maintained and kept on file for the recent 3 year period.
D135: (7020.2125 Subp 3.)
A136: 6.2 | D136: Technical inspection requirement | R136: C | S136: NC | T136: NA | U136: NI
A137: I | B137: 6.14. | D137: Short-term stockpile site technical requirements are met.
D138: (7020.2125, subp. 1, 2 & 3)
D139: Discharge checklist questions | R139: C | S139: NC | T139: NA | U139: NI
A140: C | B140: 6.15. | D140: There is evidence (e.g., inadequate buffer, steep slopes, channels, matted or dead vegetation, clean water run-on, stormwater flow) that runoff from the short-term stockpile reaches waters of the state or tile intakes, sinkholes, fractured bedrock, well, mine or quarry.
D141: (7020.2003, subp. 1. & 3., 7050.0210, subp. 2. & 13., Specific to NPDES/SDS 7020.2003, subp. 2.)
A142: C | B142: 6.16. | D142: There is evidence (e.g., ponding, coarse-textured soils, depth to water table) that the short-term stockpile could impact ground water.
D143: (7020.2003, subp. 1., 7050.0210, subp. 2. & 13., 7060.0600, subp. 2.)
A144: 6.4 | D144: Discharge inspection requirement | R144: C | S144: NC | T144: NA | U144: NI
A145: I | B145: 6.17. | D145: Short-term stockpile site(s) discharge requirements are met.
D146: (7020.2003, subp. 1. & 3., 7050.0210, subp. 2. & 13., 7060.0600, subp. 2., NPDES or SDS permit)
A147: 7 | B147: 7. | D147: Permanent manure stockpile site(s) | V147: Notes:
D148: Technical checklist questions | R148: C | S148: NC | T148: NA | U148: NI
A149: C | B149: 7.1. | D149: The required location prohibitions for permanent manure stockpiles are met (shoreland, flood plain, sinkhole and wells).
D150: (7020.2005 Subp. 1.)
A151: C | B151: 7.2. | D151: Rock quarry(s), gravel or sand pit(s), bedrock, or any mining excavation site(s) are not used for the permanent stockpile site.
D152: (7020.2125 Subp 1. C.)
A153: C | B153: 7.3. | D153: The permanent manure stockpile is located on an impervious pad.
D154: (7020.2125 Subp 4. B.)
A155: C | B155: 7.4. | D155: Upslope clean water diversions are present if slopes are greater than 2%.
D156: (7020.2125 Subp 4. C.)
A157: C | B157: 7.5. | D157: Runoff from the permanent manure stockpile site is managed adequately. For example: vegetative treatment, settling basins, LMSAs, cropped fields, etc. (containment is required for NPDES/SDS sites)
D158: (7020.2125 Subp. 4.)
A159: C | B159: 7.6. | D159: The permanent manure stockpile runoff system is maintained and operating properly.
D160: (7020.2125 Subp. 4. D.)
A161: C | B161: 7.7. | D161: The manure stockpile is stacked at slopes of at least 3:1 and contains at least 15% solids.
D162: (7020.2125 Subp 1. B.)
A163: 7.2 | D163: Technical inspection requirement | R163: C | S163: NC | T163: NA | U163: NI
A164: I | B164: 7.8. | D164: Permanent stockpile site technical requirements are met.
D165: (7020.2125, subp. 1 & 4, 7020.2005 subp. 1)
D166: Discharge checklist questions | R166: C | S166: NC | T166: NA | U166: NI
A167: C | B167: 7.9. | D167: There is evidence (e.g., inadequate buffer, steep slopes, channels, matted or dead vegetation, clean water run-on, stormwater flow) that runoff from the permanent stockpile reaches waters of the state or tile intakes, sinkholes, fractured bedrock, well, mine or quarry.
D168: (7020.2003, subp. 1. & 3., 7050.0210, subp. 2. & 13., Specific to NPDES/SDS 7020.2003, subp. 2.)
A169: C | B169: 7.10. | D169: There is evidence (e.g., ponding, coarse-textured soils, depth to water table) that the permenant stockpile could impact ground water.
D170: (7020.2003, subp. 1., 7050.0210, subp. 2. & 13., 7060.0600, subp. 2.)
A171: 7.4 | D171: Discharge inspection requirement | R171: C | S171: NC | T171: NA | U171: NI
A172: I | B172: 7.11. | D172: Permanent stockpile site discharge requirements are met.
D173: (7020.2003, subp. 1. & 3., 7050.0210, subp. 2. & 13., 7060.0600, subp. 2., NPDES or SDS permit)
A174: 8 | B174: 8. | D174: Manure compost site(s) | V174: Notes:
D175: Technical checklist questions | R175: C | S175: NC | T175: NA | U175: NI
A176: C | B176: 8.1. | D176: The site meets the technical manure composting requirements (e.g., clean water diversions, pathogen reduction, record keeping). If not, evaluate the site as a manure stockpile site.
D177: (7020.2150, subp. 2 & 3)
A178: 8.2 | D178: Technical inspection requirement | R178: C | S178: NC | T178: NA | U178: NI
A179: I | B179: 8.2. | D179: Manure compost site technical requirements are met.
D180: (7020.2150)
D181: Discharge checklist questions | R181: C | S181: NC | T181: NA | U181: NI
A182: C | B182: 8.3. | D182: There is evidence (e.g., inadequate buffer, steep slopes, channels, matted or dead vegetation, clean water run-on, stormwater flow) that runoff from the manure compost reaches waters of the state or tile intakes, sinkholes, fractured bedrock, well, mine or quarry.
D183: (7020.2003, subp. 1. & 3., 7050.0210, subp. 2. & 13., Specific to NPDES/SDS 7020.2003, subp. 2.)
A184: C | B184: 8.4. | D184: There is evidence (e.g., ponding, coarse-textured soils, depth to water table) that the manure compost site could impact ground water.
D185: (7020.2003, subp. 1., 7050.0210, subp. 2. & 13., 7060.0600, subp. 2.)
A186: 8.4 | D186: Discharge inspection requirement | R186: C | S186: NC | T186: NA | U186: NI
A187: I | B187: 8.5. | D187: Manure compost site discharge requirements are met.
D188: (7020.2003, subp. 1. & 3., 7050.0210, subp. 2. & 13., 7060.0600, subp. 2., NPDES or SDS permit)
D189: Additional considerations: If the manure compost site contains:
D190: · | E190: Dead animals (refer to Board of Animal Health)
D191: · | E191: Solid waste (refer to solid waste staff)
A192: 9 | B192: 9. | D192: Liquid manure storage area(s) (LMSA) | V192: Notes:
D193: Checklist questions (LMSA permitting, certification, or approval) | R193: C | S193: NC | T193: NA | U193: NI
A194: C | B194: 9.1. | D194: All LMSA(s) at the site have been permitted, previously certified or previously approved.
D195: (7020.0405, 7020.2110 Subp. 4. & 5., 7020.2100 Subp. 4., 7020.2000 Subp. 5.)
D196: For any LMSA(s) that are not permitted, previously certified, or previously approved; - Unpermitted / unapproved LMSA(s) constructed BEFORE 10-23-2000 must obtain an approval to continue to operate the LMSA (see 7020.2110 Subp. 5.). - Unpermitted / unapproved LMSA(s) constructed AFTER 10-23-2000 are NOT ALLOWED (see 7020.2110 Subp. 4. & 5.). Require Corrective Actions (closure or submittal of information identified in 7020.2110 Subp.5.) when an LMSA is not permitted, previously certified or previously approved.
A197: 9.2 | D197: Inspection requirement | R197: C | S197: NC | T197: NA | U197: NI
A198: I | B198: 9.2. | D198: LMSA permitting, certification or approval requirements are met.
D199: (7020.0405, 7020.2110 Subp. 4. & 5., 7020.2100 Subp. 4., 7020.2000 Subp. 5. )
D200: Checklist questions (all LMSA technical requirements) | R200: C | S200: NC | T200: NA | U200: NI
A201: C | B201: 9.3. | D201: Design Freeboard capacity is maintained.
D202: (7020.2100 Subp. 4. D.)
A203: C | B203: 9.4. | D203: For LMSA(s) where a modification is identified: The modification to the LMSA(s) was approved before the modification was made.
D204: (7020.2100 Subp. 4., 7020.0405)
A205: C | B205: 9.5. | D205: Unless otherwise approved, only manure and process wastewater is stored in the LMSA.
D206: (7020.0205 I.)
A207: C | B207: 9.6. | D207: For LMSA(s) NOT under a barn: There is a perimeter fence, or berms/sidewalls at least 5’ tall.
... 210 more rows

Sheet Nitrogen Worksheet (hidden)
A1: Nitrogen record review worksheet
A2: This worksheet should be completed to verify compliance with Nitrogen application rate restrictions.
A3: Complete one worksheet for each crop rotation and manure application combination. For multiple combinations, choose the three that receive the most manure or are most common.
C4: = Where to enter information | H4: = Automatic calculations
A6: Producer: | J6: Registration #: | P6: Crop Year:
A8: Step 1 - List the crop rotation
B9: =IF(ISBLANK(Q6),"Crop Grown","Crop Grown ("&Q6&")") -> Crop Grown | E9: Yield | G9: =IF(ISBLANK(Q6),"Crop Last Year",Q6-1 &" Crop") -> Crop Last Year | K9: =IF(ISBLANK(Q6),"Crop 2 Years Ago",Q6-2 &" Crop") -> Crop 2 Years Ago
B11: FALSE
A13: Step 2 - List the nitrogen recommendation for the crop grown based on Table 1: | N13: =IF(OR(ISBLANK(B10),ISBLANK(E10),ISBLANK(G10),ISBLANK(K10)),"",IFERROR(NNeeds(B10,G10,K10,E10,B11)-second_Year_N(B10,G10,K10,B11),"error")) ->  | P13: (N removal value)
C14: Table 1
C15: Crop to Be Grown | E15: Yield | G15: Crop Last Year | J15: Crop 2 Years Ago | N15: Max N Needs | P15: Max N Needs * (irrigated sands)
C16: =IF(ISBLANK(Q6),"","("&Q6&")") ->  | G16: =IF(ISBLANK(Q6),"","("&Q6-1&")") ->  | J16: =IF(ISBLANK(Q6),"","("&Q6-2&")") -> 
C17: Corn | E17: Any | G17: Soybeans | J17: No Alfalfa | N17: =Database!$H$13 -> 150 | P17: =Database!$X$123 -> 205
C18: Corn | E18: Any | G18: Corn | J18: No Alfalfa | N18: =Database!$P$13 -> 195 | P18: =Database!$AF$123 -> 235
C19: Corn | E19: Any | G19: Corn | J19: Alfalfa (2+ yr old stand) | N19: =Database!$P$13-Database!$C$111 -> 80 | P19: =Database!$AF$123-Database!$S$127 -> 150
C20: Corn | E20: Any | G20: Corn | J20: Alfalfa (1 yr old stand) | N20: =Database!$P$13-Database!$D$111 -> 120 | P20: =Database!$AF$123-Database!$T$127 -> 170
C21: Corn | E21: Any | G21: Alfalfa | J21: Alfalfa | N21: =Database!$E$13 -> 40 | P21: =Database!$U$123 -> 150
C22: Corn | E22: Any | G22: Alfalfa | J22: No Alfalfa | N22: =Database!$F$13 -> 80 | P22: =Database!$V$123 -> 170
C23: Wheat | E23: 60 – 80 bu | G23: Corn | J23: No Alfalfa | N23: =Database!$AR$17 & " - " & Database!$AR$19 -> 110 - 150 | P23: not applicable
C24: Wheat | E24: 60 – 80 bu | G24: Soybeans | J24: No Alfalfa | N24: =Database!$AJ$17 & " - " & Database!$AJ$19 -> 90 - 130 | P24: not applicable
C25: Oats | E25: 81 – 100 bu | G25: Corn | J25: No Alfalfa | N25: =Database!$AR$31 -> 70 | P25: not applicable
C26: Oats | E26: 81 – 100 bu | G26: Soybeans | J26: No Alfalfa | N26: =Database!$AJ$31 -> 30 | P26: not applicable
C27: Sweet Corn | E27: 8 - 9 tons | G27: Corn | J27: Any | N27: =Database!$AR$86 -> 120 | P27: not applicable
C28: Sweet Corn | E28: 8 - 9 tons | G28: Soybeans | J28: Any | N28: =Database!$AJ$86 -> 90 | P28: not applicable
C29: NOTE: "corn" includes corn silage crops
C30: * Only for corn grown on irrigated sands - Soil type of the field must end with "sand" and the field must be irrigated. Max available N from manure limited to 180 lbs. Commercial fertilizer only applied at planting or to growing crops.
A31: Step 3 - List the manure source and nutrient analysis
A32: Manure Source (description):
C33: Animal Type: | G33: Analysis: | H33: N: | J33: P: | M33: K: | P33: units:
A35: Step 4 - List the method of manure application:
A37: Step 5 - List the first year nitrogen availability from Table 2: | J37: =IF(OR(ISBLANK(D33),ISBLANK(H35)),"",IFERROR(Manure_avail(D33,H35)/100,"error")) -> 
C38: Table 2
D39: Broadcast Incorporation Timing | J39: Injection
D40: > 96 hours | F40: 12 - 96 hours | H40: < 12 hours | J40: Sweep | K40: Knife
C41: Beef | D41: ='Data Update Form'!$B$296 & "%" -> 25% | F41: ='Data Update Form'!$C$296& "%" -> 45% | H41: ='Data Update Form'!$D$296& "%" -> 60% | J41: ='Data Update Form'!$E$296& "%" -> 60% | K41: ='Data Update Form'!$F$296& "%" -> 50%
C42: Dairy | D42: ='Data Update Form'!$B$300 & "%" -> 20% | F42: ='Data Update Form'!$C$300& "%" -> 40% | H42: ='Data Update Form'!$D$300& "%" -> 55% | J42: ='Data Update Form'!$E$300& "%" -> 55% | K42: ='Data Update Form'!$F$300& "%" -> 50%
C43: Swine | D43: ='Data Update Form'!$B$304 & "%" -> 35% | F43: ='Data Update Form'!$C$304& "%" -> 55% | H43: ='Data Update Form'!$D$304& "%" -> 75% | J43: ='Data Update Form'!$E$304& "%" -> 80% | K43: ='Data Update Form'!$F$304& "%" -> 70%
C44: Poultry | D44: ='Data Update Form'!$B$308 & "%" -> 45% | F44: ='Data Update Form'!$C$308& "%" -> 55% | H44: ='Data Update Form'!$D$308& "%" -> 70% | J44: ='Data Update Form'!$E$308& "%" -> 70% | K44: ='Data Update Form'!$F$308& "%" -> 70%
A46: =IF(ISBLANK(Q6),"Step 6 - Determine how many pounds of nitrogen were available the first year for every 1,000 gallons or tons of manure applied per acre.","Step 6 - Determine how many pounds of nitrogen were available the first year ("&Q6&") for every 1,000 gallons or tons of manure applied per acre.") -> Step 6 - Determine how many pounds of nitrogen were available the first year for every 1,000 gallons or tons of manure applied per acre.
A47: A) | B47: =IF(I33="","",I33) ->  | D47: =IF(Q33="","",Q33) ->  | F47: X | J47: =IF(Q33="","",IF(Q33="lbs/ton","tons/acre","gal/acre")) ->  | K47: = | M47: =IF(OR(B47="",ISBLANK(G47),ISBLANK($Q$33)),"",IFERROR(IF($Q$33="lbs/1000 gal",B47*G47/1000,B47*G47),"error")) ->  | Q47: lbs
B48: Manure N Test Result from Step 3 | G48: Application Rate* | M48: Total Manure N Applied/Acre
B49: *When done long-hand, don't forget to also divide result by 1,000 for liquid manure test results reported in lbs/1,000 gal
A50: B) | B50: =IF(M47="","",M47) ->  | D50: =Q47 -> lbs | F50: X | G50: =IF(J37="","",J37) ->  | K50: = | M50: =IF(OR(B50="",G50=""),"",IFERROR(B50*G50,"error")) ->  | Q50: lbs
B51: Total Manure N Applied/Acre | G51: Availability Factor from Step 5 | M51: Total Manure N Available/Acre
A53: =IF(ISBLANK(Q6),"Step 7 - Determine how many pounds of phosphorus were available the first year for every 1,000 gallons or tons of manure applied per acre.","Step 7 - Determine how many pounds of phosphorus were available the first year ("&Q6&") for every 1,000 gallons or tons of manure applied per acre.") -> Step 7 - Determine how many pounds of phosphorus were available the first year for every 1,000 gallons or tons of manure applied per acre.
A54: A) | B54: =IF(K33="","",K33) ->  | D54: =IF(Q33="","",Q33) ->  | F54: X | G54: =IF(G47="","",G47) ->  | J54: =IF(Q33="","",IF(Q33="lbs/ton","tons/acre","gal/acre")) ->  | K54: = | M54: =IF(OR(B54="",G54="",ISBLANK($Q$33)),"",IFERROR(IF($Q$33="lbs/1000 gal",B54*G54/1000,B54*G54),"error")) ->  | Q54: lbs
B55: Manure P Test Result from Step 3 | G55: Application Rate* | M55: Total Manure P Applied/Acre
B56: *When done long-hand, don't forget to also divide result by 1,000 for liquid manure test results reported in lbs/1,000 gal
A57: B) | B57: =IF(M54="","",M54) ->  | D57: =Q54 -> lbs | F57: X | G57: 0.8 | K57: = | M57: =IF(OR(B57="",G57=""),"",IFERROR(B57*G57,"error")) ->  | Q57: lbs
B58: Total Manure P Applied/Acre | G58: Availability Factor (always 80% for P) | M58: P2O5 Available/Acre
A60: Step 8 - Determine the second year nitrogen credit (if none leave blank) | P60: Animal Type of Manure Last Year:
B61: =IF(ISBLANK(Q6),"(Residual N from manure applications for the previous years crop)","(Residual N from manure applications for the "&Q6-1&" crop)") -> (Residual N from manure applications for the previous years crop)
A62: A) | F62: X | J62: =IF(D62="","",IF(D62="lbs/ton","tons/acre","gal/acre")) ->  | K62: = | M62: =IF(OR(ISBLANK(B62),ISBLANK(G62),ISBLANK(D62)),"",IFERROR(IF(D62="lbs/1000 gal",B62*G62/1000,B62*G62),"error")) ->  | Q62: lbs
B63: Last Years Manure N Test | D63: units | G63: Application Rate* | M63: Total Manure N Applied/Acre Last Year
B64: *When done long-hand, don't forget to also divide result by 1,000 for liquid manure test results reported in lbs/1,000 gal
A65: B) | B65: =IF(M62="","",M62) ->  | D65: lbs | F65: X | G65: =IF(ISBLANK(Q60),"",IF(Q60="Swine", 0.15, 0.25)) ->  | K65: = | M65: =IF(OR(ISBLANK(B62),ISBLANK(G62),ISBLANK(D62)),"",IFERROR(B65*G65,"error")) ->  | Q65: lbs
B66: Total Manure N Applied/Acre Last Year | G66: Availability Factor Swine = 15% All others = 25% | M66: 2nd Year N Credit
A68: Step 9 - List additional nutrient contributions from commercial fertilizers and irrigation water
A69: A) | D69: lbs/acre | G69: B) | K69: lbs/acre | N69: C) | Q69: lbs/acre
B70: N from Fertilizer (all types)* | H70: P2O5 from Fertilizer (all types)* | O70: N from Irrigation Water
B71: *List available N & P2O5, not the amont of fertilzer product applied. Include starter, herbicide carrier, supplemental, etc.
A73: Step 10 - Determine the total nutrient budget
A74: A) | B74: =IF(M50="","",M50) ->  | D74: lbs | E74: + | F74: =IF(B74="","",IF(M65="",0,M65)) ->  | H74: lbs | I74: + | J74: =IF(B74="","",IF(AND(B69="",O69=""),0,B69+O69)) ->  | M74: lbs | N74: = | O74: =IF(OR(B74=""),"",IFERROR(B74+F74+J74,"error")) ->  | Q74: lbs
B75: Total Manure N Available | F75: 2nd Year N Credit | J75: N from Other Sources | O75: Total N Applied per acre
B76: (Step 6B) | F76: (Step 8B) | J76: (Step 9A + Step 9C) | N76: =IFERROR(IF(O74="","",IF(O74>(N13*1.2),"Significantly More Nitrogen than Recommended","")),"") -> 
A77: B) | B77: =IF(M57="","",M57) ->  | D77: lbs | E77: + | F77: =IF(B77="","",IF(H69="",0,H69)) ->  | H77: lbs | I77: = | J77: =IF(B77="","",IFERROR(B77+F77,"error")) ->  | L77: lbs
B78: Total Manure P2O5 Available (Step 7B) | F78: Fertilizer P Credit (Step 9B) | J78: Total P Applied per acre

Sheet P Worksheet (hidden)
A1: 6-year Soil phosphorus management calculator
A2: Use this worksheet to determine if soil phosphorus levels are expected to be maintained (or reduced) over a 6 year period. Completet the worksheet below using the typical crop rotations and nutirent applications employed by the farm. Up to 5 different scenarios can be evaluated with this worksheet. You will need 6 years of records in order to determine the crop rotation; if not available, you will have to contact the farmer for more info on their typical rotation.
A3: Manure Analysis Results
A4: Source ID | B4: Description | J4: Animal | L4: N | O4: P | P4: K | S4: Units
A5: Manure Source #1:
A6: Manure Source #2:
A7: Manure Source #3:
A8: Manure Source #4:
A9: Manure Source #5:
A10: Manure Source #6:
A11: Manure Source #7:
A12: Manure Source #8:
A13: Manure Source #9:
A14: Manure Source #10:
A15: Manure Source #11:
A16: Manure Source #12:
C18: Scenario 1 | G18: Scenario 2 | K18: Scenario 3 | O18: Scenario 4 | S18: Scenario 5
A19: Crop (Year 1)
A20: Yield | D20: =IF(ISERROR(LOOKUP(B19,'List Choices'!$D$3:$E$25)),"",LOOKUP(B19,'List Choices'!$D$3:$E$25)) ->  | H20: =IF(ISERROR(LOOKUP(F19,'List Choices'!$D$3:$E$25)),"",LOOKUP(F19,'List Choices'!$D$3:$E$25)) ->  | L20: =IF(ISERROR(LOOKUP(J19,'List Choices'!$D$3:$E$25)),"",LOOKUP(J19,'List Choices'!$D$3:$E$25)) ->  | P20: =IF(ISERROR(LOOKUP(N19,'List Choices'!$D$3:$E$25)),"",LOOKUP(N19,'List Choices'!$D$3:$E$25)) ->  | T20: =IF(ISERROR(LOOKUP(R19,'List Choices'!$D$3:$E$25)),"",LOOKUP(R19,'List Choices'!$D$3:$E$25)) -> 
A21: Manure Application Source (1-8) & Rate | D21: =IF(B21="","",IF((VLOOKUP("Manure Source #"&B21&":",$A$5:$T$12,19,FALSE))="lbs/1000 gal","gal", IF((VLOOKUP("Manure Source #"&B21&":",$A$5:$T$12,19,FALSE))="lbs/ton","ton",""))) ->  | H21: =IF(F21="","",IF((VLOOKUP("Manure Source #"&F21&":",$A$5:$T$12,19,FALSE))="lbs/1000 gal","gal", IF((VLOOKUP("Manure Source #"&F21&":",$A$5:$T$12,19,FALSE))="lbs/ton","ton",""))) ->  | L21: =IF(J21="","",IF((VLOOKUP("Manure Source #"&J21&":",$A$5:$T$12,19,FALSE))="lbs/1000 gal","gal", IF((VLOOKUP("Manure Source #"&J21&":",$A$5:$T$12,19,FALSE))="lbs/ton","ton",""))) ->  | P21: =IF(N21="","",IF((VLOOKUP("Manure Source #"&N21&":",$A$5:$T$12,19,FALSE))="lbs/1000 gal","gal", IF((VLOOKUP("Manure Source #"&N21&":",$A$5:$T$12,19,FALSE))="lbs/ton","ton",""))) ->  | T21: =IF(R21="","",IF((VLOOKUP("Manure Source #"&R21&":",$A$5:$T$12,19,FALSE))="lbs/1000 gal","gal", IF((VLOOKUP("Manure Source #"&R21&":",$A$5:$T$12,19,FALSE))="lbs/ton","ton",""))) -> 
A22: 2nd Manure Application | D22: =IF(B22="","",IF((VLOOKUP("Manure Source #"&B22&":",$A$5:$T$12,19,FALSE))="lbs/1000 gal","gal", IF((VLOOKUP("Manure Source #"&B22&":",$A$5:$T$12,19,FALSE))="lbs/ton","ton",""))) ->  | H22: =IF(F22="","",IF((VLOOKUP("Manure Source #"&F22&":",$A$5:$T$12,19,FALSE))="lbs/1000 gal","gal", IF((VLOOKUP("Manure Source #"&F22&":",$A$5:$T$12,19,FALSE))="lbs/ton","ton",""))) ->  | L22: =IF(J22="","",IF((VLOOKUP("Manure Source #"&J22&":",$A$5:$T$12,19,FALSE))="lbs/1000 gal","gal", IF((VLOOKUP("Manure Source #"&J22&":",$A$5:$T$12,19,FALSE))="lbs/ton","ton",""))) ->  | P22: =IF(N22="","",IF((VLOOKUP("Manure Source #"&N22&":",$A$5:$T$12,19,FALSE))="lbs/1000 gal","gal", IF((VLOOKUP("Manure Source #"&N22&":",$A$5:$T$12,19,FALSE))="lbs/ton","ton",""))) ->  | T22: =IF(R22="","",IF((VLOOKUP("Manure Source #"&R22&":",$A$5:$T$12,19,FALSE))="lbs/1000 gal","gal", IF((VLOOKUP("Manure Source #"&R22&":",$A$5:$T$12,19,FALSE))="lbs/ton","ton",""))) -> 
A23: Fertilizer P (total) | D23: =IF(B20="","","lbs") ->  | H23: =IF(F20="","","lbs") ->  | L23: =IF(J20="","","lbs") ->  | P23: =IF(N20="","","lbs") ->  | T23: =IF(R20="","","lbs") -> 
A24: Crop (Year 2)
A25: Yield | D25: =IF(ISERROR(LOOKUP(B24,'List Choices'!$D$3:$E$25)),"",LOOKUP(B24,'List Choices'!$D$3:$E$25)) ->  | H25: =IF(ISERROR(LOOKUP(F24,'List Choices'!$D$3:$E$25)),"",LOOKUP(F24,'List Choices'!$D$3:$E$25)) ->  | L25: =IF(ISERROR(LOOKUP(J24,'List Choices'!$D$3:$E$25)),"",LOOKUP(J24,'List Choices'!$D$3:$E$25)) ->  | P25: =IF(ISERROR(LOOKUP(N24,'List Choices'!$D$3:$E$25)),"",LOOKUP(N24,'List Choices'!$D$3:$E$25)) ->  | T25: =IF(ISERROR(LOOKUP(R24,'List Choices'!$D$3:$E$25)),"",LOOKUP(R24,'List Choices'!$D$3:$E$25)) -> 
A26: Manure Application Source (1-8) & Rate | D26: =IF(B26="","",IF((VLOOKUP("Manure Source #"&B26&":",$A$5:$T$12,19,FALSE))="lbs/1000 gal","gal", IF((VLOOKUP("Manure Source #"&B26&":",$A$5:$T$12,19,FALSE))="lbs/ton","ton",""))) ->  | H26: =IF(F26="","",IF((VLOOKUP("Manure Source #"&F26&":",$A$5:$T$12,19,FALSE))="lbs/1000 gal","gal", IF((VLOOKUP("Manure Source #"&F26&":",$A$5:$T$12,19,FALSE))="lbs/ton","ton",""))) ->  | L26: =IF(J26="","",IF((VLOOKUP("Manure Source #"&J26&":",$A$5:$T$12,19,FALSE))="lbs/1000 gal","gal", IF((VLOOKUP("Manure Source #"&J26&":",$A$5:$T$12,19,FALSE))="lbs/ton","ton",""))) ->  | P26: =IF(N26="","",IF((VLOOKUP("Manure Source #"&N26&":",$A$5:$T$12,19,FALSE))="lbs/1000 gal","gal", IF((VLOOKUP("Manure Source #"&N26&":",$A$5:$T$12,19,FALSE))="lbs/ton","ton",""))) ->  | T26: =IF(R26="","",IF((VLOOKUP("Manure Source #"&R26&":",$A$5:$T$12,19,FALSE))="lbs/1000 gal","gal", IF((VLOOKUP("Manure Source #"&R26&":",$A$5:$T$12,19,FALSE))="lbs/ton","ton",""))) -> 
A27: 2nd Manure Application | D27: =IF(B27="","",IF((VLOOKUP("Manure Source #"&B27&":",$A$5:$T$12,19,FALSE))="lbs/1000 gal","gal", IF((VLOOKUP("Manure Source #"&B27&":",$A$5:$T$12,19,FALSE))="lbs/ton","ton",""))) ->  | H27: =IF(F27="","",IF((VLOOKUP("Manure Source #"&F27&":",$A$5:$T$12,19,FALSE))="lbs/1000 gal","gal", IF((VLOOKUP("Manure Source #"&F27&":",$A$5:$T$12,19,FALSE))="lbs/ton","ton",""))) ->  | L27: =IF(J27="","",IF((VLOOKUP("Manure Source #"&J27&":",$A$5:$T$12,19,FALSE))="lbs/1000 gal","gal", IF((VLOOKUP("Manure Source #"&J27&":",$A$5:$T$12,19,FALSE))="lbs/ton","ton",""))) ->  | P27: =IF(N27="","",IF((VLOOKUP("Manure Source #"&N27&":",$A$5:$T$12,19,FALSE))="lbs/1000 gal","gal", IF((VLOOKUP("Manure Source #"&N27&":",$A$5:$T$12,19,FALSE))="lbs/ton","ton",""))) ->  | T27: =IF(R27="","",IF((VLOOKUP("Manure Source #"&R27&":",$A$5:$T$12,19,FALSE))="lbs/1000 gal","gal", IF((VLOOKUP("Manure Source #"&R27&":",$A$5:$T$12,19,FALSE))="lbs/ton","ton",""))) -> 
A28: Fertilizer P (total) | D28: =IF(B24="","","lbs") ->  | H28: =IF(F24="","","lbs") ->  | L28: =IF(J24="","","lbs") ->  | P28: =IF(N24="","","lbs") ->  | T28: =IF(R24="","","lbs") -> 
A29: Crop (Year 3)
A30: Yield | D30: =IF(ISERROR(LOOKUP(B29,'List Choices'!$D$3:$E$25)),"",LOOKUP(B29,'List Choices'!$D$3:$E$25)) ->  | H30: =IF(ISERROR(LOOKUP(F29,'List Choices'!$D$3:$E$25)),"",LOOKUP(F29,'List Choices'!$D$3:$E$25)) ->  | L30: =IF(ISERROR(LOOKUP(J29,'List Choices'!$D$3:$E$25)),"",LOOKUP(J29,'List Choices'!$D$3:$E$25)) ->  | P30: =IF(ISERROR(LOOKUP(N29,'List Choices'!$D$3:$E$25)),"",LOOKUP(N29,'List Choices'!$D$3:$E$25)) ->  | T30: =IF(ISERROR(LOOKUP(R29,'List Choices'!$D$3:$E$25)),"",LOOKUP(R29,'List Choices'!$D$3:$E$25)) -> 
A31: Manure Application Source (1-8) & Rate | D31: =IF(B31="","",IF((VLOOKUP("Manure Source #"&B31&":",$A$5:$T$12,19,FALSE))="lbs/1000 gal","gal", IF((VLOOKUP("Manure Source #"&B31&":",$A$5:$T$12,19,FALSE))="lbs/ton","ton",""))) ->  | H31: =IF(F31="","",IF((VLOOKUP("Manure Source #"&F31&":",$A$5:$T$12,19,FALSE))="lbs/1000 gal","gal", IF((VLOOKUP("Manure Source #"&F31&":",$A$5:$T$12,19,FALSE))="lbs/ton","ton",""))) ->  | L31: =IF(J31="","",IF((VLOOKUP("Manure Source #"&J31&":",$A$5:$T$12,19,FALSE))="lbs/1000 gal","gal", IF((VLOOKUP("Manure Source #"&J31&":",$A$5:$T$12,19,FALSE))="lbs/ton","ton",""))) ->  | P31: =IF(N31="","",IF((VLOOKUP("Manure Source #"&N31&":",$A$5:$T$12,19,FALSE))="lbs/1000 gal","gal", IF((VLOOKUP("Manure Source #"&N31&":",$A$5:$T$12,19,FALSE))="lbs/ton","ton",""))) ->  | T31: =IF(R31="","",IF((VLOOKUP("Manure Source #"&R31&":",$A$5:$T$12,19,FALSE))="lbs/1000 gal","gal", IF((VLOOKUP("Manure Source #"&R31&":",$A$5:$T$12,19,FALSE))="lbs/ton","ton",""))) -> 
A32: 2nd Manure Application | D32: =IF(B32="","",IF((VLOOKUP("Manure Source #"&B32&":",$A$5:$T$12,19,FALSE))="lbs/1000 gal","gal", IF((VLOOKUP("Manure Source #"&B32&":",$A$5:$T$12,19,FALSE))="lbs/ton","ton",""))) ->  | H32: =IF(F32="","",IF((VLOOKUP("Manure Source #"&F32&":",$A$5:$T$12,19,FALSE))="lbs/1000 gal","gal", IF((VLOOKUP("Manure Source #"&F32&":",$A$5:$T$12,19,FALSE))="lbs/ton","ton",""))) ->  | L32: =IF(J32="","",IF((VLOOKUP("Manure Source #"&J32&":",$A$5:$T$12,19,FALSE))="lbs/1000 gal","gal", IF((VLOOKUP("Manure Source #"&J32&":",$A$5:$T$12,19,FALSE))="lbs/ton","ton",""))) ->  | P32: =IF(N32="","",IF((VLOOKUP("Manure Source #"&N32&":",$A$5:$T$12,19,FALSE))="lbs/1000 gal","gal", IF((VLOOKUP("Manure Source #"&N32&":",$A$5:$T$12,19,FALSE))="lbs/ton","ton",""))) ->  | T32: =IF(R32="","",IF((VLOOKUP("Manure Source #"&R32&":",$A$5:$T$12,19,FALSE))="lbs/1000 gal","gal", IF((VLOOKUP("Manure Source #"&R32&":",$A$5:$T$12,19,FALSE))="lbs/ton","ton",""))) -> 
A33: Fertilizer P (total) | D33: =IF(B29="","","lbs") ->  | H33: =IF(F29="","","lbs") ->  | L33: =IF(J29="","","lbs") ->  | P33: =IF(N29="","","lbs") ->  | T33: =IF(R29="","","lbs") -> 
A34: Crop (Year 4)
A35: Yield | D35: =IF(ISERROR(LOOKUP(B34,'List Choices'!$D$3:$E$25)),"",LOOKUP(B34,'List Choices'!$D$3:$E$25)) ->  | H35: =IF(ISERROR(LOOKUP(F34,'List Choices'!$D$3:$E$25)),"",LOOKUP(F34,'List Choices'!$D$3:$E$25)) ->  | L35: =IF(ISERROR(LOOKUP(J34,'List Choices'!$D$3:$E$25)),"",LOOKUP(J34,'List Choices'!$D$3:$E$25)) ->  | P35: =IF(ISERROR(LOOKUP(N34,'List Choices'!$D$3:$E$25)),"",LOOKUP(N34,'List Choices'!$D$3:$E$25)) ->  | T35: =IF(ISERROR(LOOKUP(R34,'List Choices'!$D$3:$E$25)),"",LOOKUP(R34,'List Choices'!$D$3:$E$25)) -> 
A36: Manure Application Source (1-8) & Rate | D36: =IF(B36="","",IF((VLOOKUP("Manure Source #"&B36&":",$A$5:$T$12,19,FALSE))="lbs/1000 gal","gal", IF((VLOOKUP("Manure Source #"&B36&":",$A$5:$T$12,19,FALSE))="lbs/ton","ton",""))) ->  | H36: =IF(F36="","",IF((VLOOKUP("Manure Source #"&F36&":",$A$5:$T$12,19,FALSE))="lbs/1000 gal","gal", IF((VLOOKUP("Manure Source #"&F36&":",$A$5:$T$12,19,FALSE))="lbs/ton","ton",""))) ->  | L36: =IF(J36="","",IF((VLOOKUP("Manure Source #"&J36&":",$A$5:$T$12,19,FALSE))="lbs/1000 gal","gal", IF((VLOOKUP("Manure Source #"&J36&":",$A$5:$T$12,19,FALSE))="lbs/ton","ton",""))) ->  | P36: =IF(N36="","",IF((VLOOKUP("Manure Source #"&N36&":",$A$5:$T$12,19,FALSE))="lbs/1000 gal","gal", IF((VLOOKUP("Manure Source #"&N36&":",$A$5:$T$12,19,FALSE))="lbs/ton","ton",""))) ->  | T36: =IF(R36="","",IF((VLOOKUP("Manure Source #"&R36&":",$A$5:$T$12,19,FALSE))="lbs/1000 gal","gal", IF((VLOOKUP("Manure Source #"&R36&":",$A$5:$T$12,19,FALSE))="lbs/ton","ton",""))) -> 
A37: 2nd Manure Application | D37: =IF(B37="","",IF((VLOOKUP("Manure Source #"&B37&":",$A$5:$T$12,19,FALSE))="lbs/1000 gal","gal", IF((VLOOKUP("Manure Source #"&B37&":",$A$5:$T$12,19,FALSE))="lbs/ton","ton",""))) ->  | H37: =IF(F37="","",IF((VLOOKUP("Manure Source #"&F37&":",$A$5:$T$12,19,FALSE))="lbs/1000 gal","gal", IF((VLOOKUP("Manure Source #"&F37&":",$A$5:$T$12,19,FALSE))="lbs/ton","ton",""))) ->  | L37: =IF(J37="","",IF((VLOOKUP("Manure Source #"&J37&":",$A$5:$T$12,19,FALSE))="lbs/1000 gal","gal", IF((VLOOKUP("Manure Source #"&J37&":",$A$5:$T$12,19,FALSE))="lbs/ton","ton",""))) ->  | P37: =IF(N37="","",IF((VLOOKUP("Manure Source #"&N37&":",$A$5:$T$12,19,FALSE))="lbs/1000 gal","gal", IF((VLOOKUP("Manure Source #"&N37&":",$A$5:$T$12,19,FALSE))="lbs/ton","ton",""))) ->  | T37: =IF(R37="","",IF((VLOOKUP("Manure Source #"&R37&":",$A$5:$T$12,19,FALSE))="lbs/1000 gal","gal", IF((VLOOKUP("Manure Source #"&R37&":",$A$5:$T$12,19,FALSE))="lbs/ton","ton",""))) -> 
A38: Fertilizer P (total) | D38: =IF(B34="","","lbs") ->  | H38: =IF(F34="","","lbs") ->  | L38: =IF(J34="","","lbs") ->  | P38: =IF(N34="","","lbs") ->  | T38: =IF(R34="","","lbs") -> 
A39: Crop (Year 5)
A40: Yield | D40: =IF(ISERROR(LOOKUP(B39,'List Choices'!$D$3:$E$25)),"",LOOKUP(B39,'List Choices'!$D$3:$E$25)) ->  | H40: =IF(ISERROR(LOOKUP(F39,'List Choices'!$D$3:$E$25)),"",LOOKUP(F39,'List Choices'!$D$3:$E$25)) ->  | L40: =IF(ISERROR(LOOKUP(J39,'List Choices'!$D$3:$E$25)),"",LOOKUP(J39,'List Choices'!$D$3:$E$25)) ->  | P40: =IF(ISERROR(LOOKUP(N39,'List Choices'!$D$3:$E$25)),"",LOOKUP(N39,'List Choices'!$D$3:$E$25)) ->  | T40: =IF(ISERROR(LOOKUP(R39,'List Choices'!$D$3:$E$25)),"",LOOKUP(R39,'List Choices'!$D$3:$E$25)) -> 
A41: Manure Application Source (1-8) & Rate | D41: =IF(B41="","",IF((VLOOKUP("Manure Source #"&B41&":",$A$5:$T$12,19,FALSE))="lbs/1000 gal","gal", IF((VLOOKUP("Manure Source #"&B41&":",$A$5:$T$12,19,FALSE))="lbs/ton","ton",""))) ->  | H41: =IF(F41="","",IF((VLOOKUP("Manure Source #"&F41&":",$A$5:$T$12,19,FALSE))="lbs/1000 gal","gal", IF((VLOOKUP("Manure Source #"&F41&":",$A$5:$T$12,19,FALSE))="lbs/ton","ton",""))) ->  | L41: =IF(J41="","",IF((VLOOKUP("Manure Source #"&J41&":",$A$5:$T$12,19,FALSE))="lbs/1000 gal","gal", IF((VLOOKUP("Manure Source #"&J41&":",$A$5:$T$12,19,FALSE))="lbs/ton","ton",""))) ->  | P41: =IF(N41="","",IF((VLOOKUP("Manure Source #"&N41&":",$A$5:$T$12,19,FALSE))="lbs/1000 gal","gal", IF((VLOOKUP("Manure Source #"&N41&":",$A$5:$T$12,19,FALSE))="lbs/ton","ton",""))) ->  | T41: =IF(R41="","",IF((VLOOKUP("Manure Source #"&R41&":",$A$5:$T$12,19,FALSE))="lbs/1000 gal","gal", IF((VLOOKUP("Manure Source #"&R41&":",$A$5:$T$12,19,FALSE))="lbs/ton","ton",""))) -> 
A42: 2nd Manure Application | D42: =IF(B42="","",IF((VLOOKUP("Manure Source #"&B42&":",$A$5:$T$12,19,FALSE))="lbs/1000 gal","gal", IF((VLOOKUP("Manure Source #"&B42&":",$A$5:$T$12,19,FALSE))="lbs/ton","ton",""))) ->  | H42: =IF(F42="","",IF((VLOOKUP("Manure Source #"&F42&":",$A$5:$T$12,19,FALSE))="lbs/1000 gal","gal", IF((VLOOKUP("Manure Source #"&F42&":",$A$5:$T$12,19,FALSE))="lbs/ton","ton",""))) ->  | L42: =IF(J42="","",IF((VLOOKUP("Manure Source #"&J42&":",$A$5:$T$12,19,FALSE))="lbs/1000 gal","gal", IF((VLOOKUP("Manure Source #"&J42&":",$A$5:$T$12,19,FALSE))="lbs/ton","ton",""))) ->  | P42: =IF(N42="","",IF((VLOOKUP("Manure Source #"&N42&":",$A$5:$T$12,19,FALSE))="lbs/1000 gal","gal", IF((VLOOKUP("Manure Source #"&N42&":",$A$5:$T$12,19,FALSE))="lbs/ton","ton",""))) ->  | T42: =IF(R42="","",IF((VLOOKUP("Manure Source #"&R42&":",$A$5:$T$12,19,FALSE))="lbs/1000 gal","gal", IF((VLOOKUP("Manure Source #"&R42&":",$A$5:$T$12,19,FALSE))="lbs/ton","ton",""))) -> 
A43: Fertilizer P (total) | D43: =IF(B39="","","lbs") ->  | H43: =IF(F39="","","lbs") ->  | L43: =IF(J39="","","lbs") ->  | P43: =IF(N39="","","lbs") ->  | T43: =IF(R39="","","lbs") -> 
A44: Crop (Year 6)
A45: Yield | D45: =IF(ISERROR(LOOKUP(B44,'List Choices'!$D$3:$E$25)),"",LOOKUP(B44,'List Choices'!$D$3:$E$25)) ->  | H45: =IF(ISERROR(LOOKUP(F44,'List Choices'!$D$3:$E$25)),"",LOOKUP(F44,'List Choices'!$D$3:$E$25)) ->  | L45: =IF(ISERROR(LOOKUP(J44,'List Choices'!$D$3:$E$25)),"",LOOKUP(J44,'List Choices'!$D$3:$E$25)) ->  | P45: =IF(ISERROR(LOOKUP(N44,'List Choices'!$D$3:$E$25)),"",LOOKUP(N44,'List Choices'!$D$3:$E$25)) ->  | T45: =IF(ISERROR(LOOKUP(R44,'List Choices'!$D$3:$E$25)),"",LOOKUP(R44,'List Choices'!$D$3:$E$25)) -> 
A46: Manure Application Source (1-8) & Rate | D46: =IF(B46="","",IF((VLOOKUP("Manure Source #"&B46&":",$A$5:$T$12,19,FALSE))="lbs/1000 gal","gal", IF((VLOOKUP("Manure Source #"&B46&":",$A$5:$T$12,19,FALSE))="lbs/ton","ton",""))) ->  | H46: =IF(F46="","",IF((VLOOKUP("Manure Source #"&F46&":",$A$5:$T$12,19,FALSE))="lbs/1000 gal","gal", IF((VLOOKUP("Manure Source #"&F46&":",$A$5:$T$12,19,FALSE))="lbs/ton","ton",""))) ->  | L46: =IF(J46="","",IF((VLOOKUP("Manure Source #"&J46&":",$A$5:$T$12,19,FALSE))="lbs/1000 gal","gal", IF((VLOOKUP("Manure Source #"&J46&":",$A$5:$T$12,19,FALSE))="lbs/ton","ton",""))) ->  | P46: =IF(N46="","",IF((VLOOKUP("Manure Source #"&N46&":",$A$5:$T$12,19,FALSE))="lbs/1000 gal","gal", IF((VLOOKUP("Manure Source #"&N46&":",$A$5:$T$12,19,FALSE))="lbs/ton","ton",""))) ->  | T46: =IF(R46="","",IF((VLOOKUP("Manure Source #"&R46&":",$A$5:$T$12,19,FALSE))="lbs/1000 gal","gal", IF((VLOOKUP("Manure Source #"&R46&":",$A$5:$T$12,19,FALSE))="lbs/ton","ton",""))) -> 
A47: 2nd Manure Application | D47: =IF(B47="","",IF((VLOOKUP("Manure Source #"&B47&":",$A$5:$T$12,19,FALSE))="lbs/1000 gal","gal", IF((VLOOKUP("Manure Source #"&B47&":",$A$5:$T$12,19,FALSE))="lbs/ton","ton",""))) ->  | H47: =IF(F47="","",IF((VLOOKUP("Manure Source #"&F47&":",$A$5:$T$12,19,FALSE))="lbs/1000 gal","gal", IF((VLOOKUP("Manure Source #"&F47&":",$A$5:$T$12,19,FALSE))="lbs/ton","ton",""))) ->  | L47: =IF(J47="","",IF((VLOOKUP("Manure Source #"&J47&":",$A$5:$T$12,19,FALSE))="lbs/1000 gal","gal", IF((VLOOKUP("Manure Source #"&J47&":",$A$5:$T$12,19,FALSE))="lbs/ton","ton",""))) ->  | P47: =IF(N47="","",IF((VLOOKUP("Manure Source #"&N47&":",$A$5:$T$12,19,FALSE))="lbs/1000 gal","gal", IF((VLOOKUP("Manure Source #"&N47&":",$A$5:$T$12,19,FALSE))="lbs/ton","ton",""))) ->  | T47: =IF(R47="","",IF((VLOOKUP("Manure Source #"&R47&":",$A$5:$T$12,19,FALSE))="lbs/1000 gal","gal", IF((VLOOKUP("Manure Source #"&R47&":",$A$5:$T$12,19,FALSE))="lbs/ton","ton",""))) -> 
A48: Fertilizer P (total) | D48: =IF(B44="","","lbs") ->  | H48: =IF(F44="","","lbs") ->  | L48: =IF(J44="","","lbs") ->  | P48: =IF(N44="","","lbs") ->  | T48: =IF(R44="","","lbs") -> 
A49: Results
A50: P Applied over 6 Yrs | B50: =IF(OR(B19="",B24="",B29="",B34="",B39="",B44=""),"",Manure_Nutrients(B46,"",C46,"P")+Manure_Nutrients(B47,"",C47,"P")+B48+Manure_Nutrients(B41,"",C41,"P")+Manure_Nutrients(B42,"",C42,"P")+B43+Manure_Nutrients(B36,"",C36,"P")+Manure_Nutrients(B37,"",C37,"P")+B38+Manure_Nutrients(B31,"",C31,"P")+Manure_Nutrients(B32,"",C32,"P")+B33+Manure_Nutrients(B26,"",C26,"P")+Manure_Nutrients(B27,"",C27,"P")+B28+Manure_Nutrients(B21,"",C21,"P")+Manure_Nutrients(B22,"",C22,"P")+B23) ->  | D50: lbs | F50: =IF(OR(F19="",F24="",F29="",F34="",F39="",F44=""),"",Manure_Nutrients(F46,"",G46,"P")+Manure_Nutrients(F47,"",G47,"P")+F48+Manure_Nutrients(F41,"",G41,"P")+Manure_Nutrients(F42,"",G42,"P")+F43+Manure_Nutrients(F36,"",G36,"P")+Manure_Nutrients(F37,"",G37,"P")+F38+Manure_Nutrients(F31,"",G31,"P")+Manure_Nutrients(F32,"",G32,"P")+F33+Manure_Nutrients(F26,"",G26,"P")+Manure_Nutrients(F27,"",G27,"P")+F28+Manure_Nutrients(F21,"",G21,"P")+Manure_Nutrients(F22,"",G22,"P")+F23) ->  | H50: lbs | J50: =IF(OR(J19="",J24="",J29="",J34="",J39="",J44=""),"",Manure_Nutrients(J46,"",K46,"P")+Manure_Nutrients(J47,"",K47,"P")+J48+Manure_Nutrients(J41,"",K41,"P")+Manure_Nutrients(J42,"",K42,"P")+J43+Manure_Nutrients(J36,"",K36,"P")+Manure_Nutrients(J37,"",K37,"P")+J38+Manure_Nutrients(J31,"",K31,"P")+Manure_Nutrients(J32,"",K32,"P")+J33+Manure_Nutrients(J26,"",K26,"P")+Manure_Nutrients(J27,"",K27,"P")+J28+Manure_Nutrients(J21,"",K21,"P")+Manure_Nutrients(J22,"",K22,"P")+J23) ->  | L50: lbs | N50: =IF(OR(N19="",N24="",N29="",N34="",N39="",N44=""),"",Manure_Nutrients(N46,"",O46,"P")+Manure_Nutrients(N47,"",O47,"P")+N48+Manure_Nutrients(N41,"",O41,"P")+Manure_Nutrients(N42,"",O42,"P")+N43+Manure_Nutrients(N36,"",O36,"P")+Manure_Nutrients(N37,"",O37,"P")+N38+Manure_Nutrients(N31,"",O31,"P")+Manure_Nutrients(N32,"",O32,"P")+N33+Manure_Nutrients(N26,"",O26,"P")+Manure_Nutrients(N27,"",O27,"P")+N28+Manure_Nutrients(N21,"",O21,"P")+Manure_Nutrients(N22,"",O22,"P")+N23) ->  | P50: lbs | R50: =IF(OR(R19="",R24="",R29="",R34="",R39="",R44=""),"",Manure_Nutrients(R46,"",S46,"P")+Manure_Nutrients(R47,"",S47,"P")+R48+Manure_Nutrients(R41,"",S41,"P")+Manure_Nutrients(R42,"",S42,"P")+R43+Manure_Nutrients(R36,"",S36,"P")+Manure_Nutrients(R37,"",S37,"P")+R38+Manure_Nutrients(R31,"",S31,"P")+Manure_Nutrients(R32,"",S32,"P")+R33+Manure_Nutrients(R26,"",S26,"P")+Manure_Nutrients(R27,"",S27,"P")+R28+Manure_Nutrients(R21,"",S21,"P")+Manure_Nutrients(R22,"",S22,"P")+R23) ->  | T50: lbs
A51: P Removed over 6 Yrs | B51: =IF(OR(B19="",B24="",B29="",B34="",B39="",B44=""),"",B20*VLOOKUP(B19,HighP_Removal,2,FALSE)+B25*VLOOKUP(B24,HighP_Removal,2,FALSE)+B30*VLOOKUP(B29,HighP_Removal,2,FALSE)+B35*VLOOKUP(B34,HighP_Removal,2,FALSE)+B40*VLOOKUP(B39,HighP_Removal,2,FALSE)+B45*VLOOKUP(B44,HighP_Removal,2,FALSE)) ->  | D51: lbs | F51: =IF(OR(F19="",F24="",F29="",F34="",F39="",F44=""),"",F20*VLOOKUP(F19,HighP_Removal,2,FALSE)+F25*VLOOKUP(F24,HighP_Removal,2,FALSE)+F30*VLOOKUP(F29,HighP_Removal,2,FALSE)+F35*VLOOKUP(F34,HighP_Removal,2,FALSE)+F40*VLOOKUP(F39,HighP_Removal,2,FALSE)+F45*VLOOKUP(F44,HighP_Removal,2,FALSE)) ->  | H51: lbs | J51: =IF(OR(J19="",J24="",J29="",J34="",J39="",J44=""),"",J20*VLOOKUP(J19,HighP_Removal,2,FALSE)+J25*VLOOKUP(J24,HighP_Removal,2,FALSE)+J30*VLOOKUP(J29,HighP_Removal,2,FALSE)+J35*VLOOKUP(J34,HighP_Removal,2,FALSE)+J40*VLOOKUP(J39,HighP_Removal,2,FALSE)+J45*VLOOKUP(J44,HighP_Removal,2,FALSE)) ->  | L51: lbs | N51: =IF(OR(N19="",N24="",N29="",N34="",N39="",N44=""),"",N20*VLOOKUP(N19,HighP_Removal,2,FALSE)+N25*VLOOKUP(N24,HighP_Removal,2,FALSE)+N30*VLOOKUP(N29,HighP_Removal,2,FALSE)+N35*VLOOKUP(N34,HighP_Removal,2,FALSE)+N40*VLOOKUP(N39,HighP_Removal,2,FALSE)+N45*VLOOKUP(N44,HighP_Removal,2,FALSE)) ->  | P51: lbs | R51: =IF(OR(R19="",R24="",R29="",R34="",R39="",R44=""),"",R20*VLOOKUP(R19,HighP_Removal,2,FALSE)+R25*VLOOKUP(R24,HighP_Removal,2,FALSE)+R30*VLOOKUP(R29,HighP_Removal,2,FALSE)+R35*VLOOKUP(R34,HighP_Removal,2,FALSE)+R40*VLOOKUP(R39,HighP_Removal,2,FALSE)+R45*VLOOKUP(R44,HighP_Removal,2,FALSE)) ->  | T51: lbs
A52: Will Rotation Build Soil Phosphorus Levels? | B52: =IF(OR(B19="",B24="",B29="",B34="",B39="",B44=""),"",IF(B50>B51,"Yes - Modify the Rotation", "No")) ->  | F52: =IF(OR(F19="",F24="",F29="",F34="",F39="",F44=""),"",IF(F50>F51,"Yes - Modify the Rotation", "No")) ->  | J52: =IF(OR(J19="",J24="",J29="",J34="",J39="",J44=""),"",IF(J50>J51,"Yes - Modify the Rotation", "No")) ->  | N52: =IF(OR(N19="",N24="",N29="",N34="",N39="",N44=""),"",IF(N50>N51,"Yes - Modify the Rotation", "No")) ->  | R52: =IF(OR(R19="",R24="",R29="",R34="",R39="",R44=""),"",IF(R50>R51,"Yes - Modify the Rotation", "No")) -> 
